Departmental Family,Entity,Date,Expense Type,Expense Area,Supplier,Transaction Number,Amount
Department for Work and Pensions,Jobcentre Plus,30-Dec-11,ACCOMMODATION,COO,TELEREAL TRILLIUM,2023772051,"29,482,308"
Department for Work and Pensions,European Social Fund,22-Dec-11,ESF Expenditure,STR,NATIONAL OFFENDER MANAGEMENT SERVICES,5000000841,"9,418,939"
Department for Work and Pensions,Corporate,14-Dec-11,NETWORK,CIT,BT GLOBAL SERVICES,2023545049,"8,629,644"
Department for Work and Pensions,Corporate,07-Dec-11,HOSTING,CIT,HP ENTERPRISE SERVICES UK LTD,2023479128,"7,715,076"
Department for Work and Pensions,Corporate,13-Dec-11,HOSTING,CIT,HP ENTERPRISE SERVICES UK LTD,2023536459,"7,312,548"
Department for Work and Pensions,Corporate,13-Dec-11,COMPUTER SERVICES,CIT,HP ENTERPRISE SERVICES UK LTD,2023536459,"5,705,935"
Department for Work and Pensions,Corporate,30-Dec-11,BANKING AND ENCASHMENT COSTS,F&C,POST OFFICE LTD,1005062,"5,513,626"
Department for Work and Pensions,Corporate,22-Dec-11,EMPLOYMENT PROGRAMMES,Excluded,NEST CORPORATION,2002963,"4,600,000"
Department for Work and Pensions,Corporate,30-Dec-11,TRADE DEBTORS,Excluded,TELEREAL TRILLIUM,2023772051,"4,564,518"
Department for Work and Pensions,Jobcentre Plus,30-Dec-11,ACCOMMODATION,COO,TELEREAL TRILLIUM,2023772053,"4,521,927"
Department for Work and Pensions,Jobcentre Plus,14-Dec-11,MEDICAL SERVICES,COO,ATOS HEALTHCARE,2023543982,"4,037,709"
Department for Work and Pensions,Employment Programmes,02-Dec-11,GRANTS IN AID,STR,REMPLOY LTD,1005042,"4,000,000"
Department for Work and Pensions,Jobcentre Plus,12-Dec-11,ACCOMMODATION COSTS,COO,TELEREAL TRILLIUM,2023534162,"3,709,353"
Department for Work and Pensions,European Social Fund,14-Dec-11,ESF Expenditure,STR,SOUTH EAST ENGLAND DEVELOPMENT AGENCY,5000000824,"3,275,483"
Department for Work and Pensions,Jobcentre Plus,16-Dec-11,MEDICAL SERVICES,COO,ATOS HEALTHCARE,2023611615,"3,255,316"
Department for Work and Pensions,European Social Fund,23-Dec-11,ESF Expenditure,STR,LONDON DWP,5000000847,"3,217,682"
Department for Work and Pensions,Corporate,21-Dec-11,TELEPHONE AND POSTAGE,F&C,UK MAIL,2023690914,"3,152,838"
Department for Work and Pensions,Jobcentre Plus,06-Dec-11,AOS CONTRACTED OUT SERVICES,COO,BALFOUR BEATTY WORKPLACE LTD,2023451969,"2,820,550"
Department for Work and Pensions,"Pension, Disability Carers Services",30-Dec-11,ACCOMMODATION,COO,TELEREAL TRILLIUM,2023772051,"2,452,701"
Department for Work and Pensions,Corporate,12-Dec-11,IS/IT,CIT,COMPUTACENTER UK LTD,2023530591,"2,212,201"
Department for Work and Pensions,Jobcentre Plus,30-Dec-11,ACCOMMODATION,COO,TELEREAL TRILLIUM,2023772051,"1,917,409"
Department for Work and Pensions,Corporate,15-Dec-11,COMPUTER SERVICES,CIT,BT GLOBAL SERVICES,2023606403,"1,909,201"
Department for Work and Pensions,Corporate,05-Dec-11,SIAM,CIT,HP ENTERPRISE SERVICES UK LTD,2023449052,"1,897,027"
Department for Work and Pensions,Corporate,12-Dec-11,IS/IT,CIT,HP ENTERPRISE SERVICES UK LTD,2023532843,"1,888,574"
Department for Work and Pensions,Jobcentre Plus,30-Dec-11,ACCOMMODATION,COO,TELEREAL TRILLIUM,2023772055,"1,656,909"
Department for Work and Pensions,Corporate,09-Dec-11,COMPUTER SERVICES,CIT,HP ENTERPRISE SERVICES UK LTD,2023528014,"1,609,451"
Department for Work and Pensions,Corporate,07-Dec-11,COMPUTER SERVICES,CIT,HP ENTERPRISE SERVICES UK LTD,2023479128,"1,575,236"
Department for Work and Pensions,Jobcentre Plus,09-Dec-11,PAYMENTS TO CSAS,COO,DEPARTMENT FOR SOCIAL DEVELOPMENT,1005043,"1,525,813"
Department for Work and Pensions,Jobcentre Plus,22-Dec-11,MEDICAL SERVICES,COO,ATOS HEALTHCARE,2023695823,"1,441,290"
Department for Work and Pensions,Corporate,23-Dec-11,COMPUTER SERVICES,CIT,ACCENTURE UK LTD,2023706818,"1,423,401"
Department for Work and Pensions,European Social Fund,14-Dec-11,ESF Expenditure,STR,NORTH WEST DWP,5000000822,"1,415,976"
Department for Work and Pensions,European Social Fund,15-Dec-11,INTRA DWP PAYABLES,STR,EUROPEAN COMISSION,3004873,"1,296,593"
Department for Work and Pensions,Corporate,30-Dec-11,ACCOMMODATION,F&C,TELEREAL TRILLIUM,2023772051,"1,213,602"
Department for Work and Pensions,Corporate,09-Dec-11,COMPUTER SERVICES,CIT,XEROX UK LTD 3W,2023528956,"1,197,326"
Department for Work and Pensions,Corporate,16-Dec-11,OTHER MAJOR CONTRACTS,F&C,SANTANDER,1005047,"1,191,476"
Department for Work and Pensions,Corporate,06-Dec-11,COMPUTER SERVICES,CIT,ACCENTURE,2023451891,"1,175,514"
Department for Work and Pensions,European Social Fund,20-Dec-11,ESF Expenditure,STR,SOUTH WEST DWP,5000000836,"1,164,323"
Department for Work and Pensions,Corporate,12-Dec-11,CONTRACTED OUT SERVICES,F&C,XEROX UK LTD 3W,2023534265,"1,152,891"
Department for Work and Pensions,Corporate,05-Dec-11,TELEPHONE AND POSTAGE,F&C,ROYAL MAIL GROUP PLC,2023449928,"1,049,182"
Department for Work and Pensions,Jobcentre Plus,01-Dec-11,POSTAGE,COO,TNT UK LTD,2023440528,"1,037,009"
Department for Work and Pensions,Housing Benefits,14-Dec-11,Housing Benefit Admin,COO,BIRMINGHAM CITY COUNCIL,2023605764,"1,032,452"
Department for Work and Pensions,Corporate,19-Dec-11,PRINCES YOUTH TRUST,Change PMU,MANCHESTER CITY COUNCIL,2023619393,"1,000,000"
Department for Work and Pensions,European Social Fund,13-Dec-11,ESF Expenditure,STR,LONDON COUNCILS,5000000813,"984,047"
Department for Work and Pensions,Corporate,30-Dec-11,TRADE DEBTORS,Excluded,TELEREAL TRILLIUM,2023772053,"953,253"
Department for Work and Pensions,Corporate,05-Dec-11,OTHER GOODS AND SERVICES,STR,VALUATION OFFICE AGENCY,2002938,"950,000"
Department for Work and Pensions,Employment Programmes,29-Dec-11,EP PROVIDER PAYMENT - NON-WORK PROGRAMME,COO,SERCO LTD,2023775191,"937,274"
Department for Work and Pensions,European Social Fund,16-Dec-11,ESF Expenditure,STR,EAST OF ENGLAND DWP,5000000826,"903,431"
Department for Work and Pensions,Corporate,20-Dec-11,COMPUTER SERVICES,CIT,BT GLOBAL SERVICES,2023621845,"893,892"
Department for Work and Pensions,European Social Fund,15-Dec-11,ESF Expenditure,STR,SOUTH EAST ENGLAND DEVELOPMENT AGENCY,5000000825,"885,506"
Department for Work and Pensions,Corporate,14-Dec-11,COMPUTER SERVICES,CIT,ACCENTURE,2023543934,"879,166"
Department for Work and Pensions,European Social Fund,15-Dec-11,INTRA DWP PAYABLES,STR,EUROPEAN COMISSION,3004872,"824,022"
Department for Work and Pensions,"Pension, Disability Carers Services",14-Dec-11,APPS DEV,Change PMU,HP ENTERPRISE SERVICES UK LTD,2023562579,"816,578"
Department for Work and Pensions,Corporate,19-Dec-11,COMPUTER SERVICES,CIT,ATOS ORIGIN IT SERVICES UK LTD,2023616210,"797,748"
Department for Work and Pensions,"Pension, Disability Carers Services",02-Dec-11,OTHER EXPENDITURE,Change PMU,ATOS ORIGIN IT SERVICES UK LTD,2023442738,"796,908"
Department for Work and Pensions,Housing Benefits,14-Dec-11,Housing Benefit Admin,COO,CITY OF GLASGOW,2023605812,"789,476"
Department for Work and Pensions,Corporate,20-Dec-11,COMPUTER SERVICES,CIT,BT GLOBAL SERVICES,2023621845,"768,987"
Department for Work and Pensions,Corporate,21-Dec-11,COMPUTER SERVICES,CIT,BT GLOBAL SERVICES,2023633504,"762,087"
Department for Work and Pensions,"Pension, Disability Carers Services",06-Dec-11,AOS CONTRACTED OUT SERVICES,COO,BALFOUR BEATTY WORKPLACE LTD,2023451969,"711,148"
Department for Work and Pensions,Corporate,12-Dec-11,COMPUTER SERVICES,F&C,FUJITSU SERVICES LTD,2023532687,"702,444"
Department for Work and Pensions,Corporate,30-Dec-11,ACCOMMODATION,F&C,TELEREAL TRILLIUM,2023772051,"699,952"
Department for Work and Pensions,Corporate,02-Dec-11,OTHER OPERATING LEASES,F&C,ZURICH INSURANCE PLC,617962,"689,390"
Department for Work and Pensions,"Pension, Disability Carers Services",14-Dec-11,AOS CONTRACTED OUT SERVICES,COO,CLUB 24 LTD T/A VENTURA,2023549965,"684,141"
Department for Work and Pensions,Corporate,29-Dec-11,TOTAL IT & EQUIPMENT COSTS,STR,HM REVENUE & CUSTOMS,2002966,"632,397"
Department for Work and Pensions,Corporate,13-Dec-11,COMPUTER SERVICES,CIT,HP ENTERPRISE SERVICES UK LTD,2023536459,"631,650"
Department for Work and Pensions,Housing Benefits,14-Dec-11,Housing Benefit Admin,COO,LIVERPOOL CITY COUNCIL,2023605914,"625,683"
Department for Work and Pensions,Corporate,12-Dec-11,COMPUTER SERVICES,CIT,HP ENTERPRISE SERVICES UK LTD,2023532843,"618,258"
Department for Work and Pensions,Corporate,29-Dec-11,COMPUTER SERVICES,CIT,HP ENTERPRISE SERVICES UK LTD,2023774101,"597,809"
Department for Work and Pensions,Corporate,13-Dec-11,Accommodation Costs,F&C,STANDARD LIFE INVESTMENTS,2023537691,"590,594"
Department for Work and Pensions,Corporate,14-Dec-11,COMPUTER SERVICES,CIT,ACCENTURE UK LTD,2023543935,"584,132"
Department for Work and Pensions,Corporate,05-Dec-11,MISCELLANEOUS EXPENDITURE,STR,INDEPENDENT LIVING FUND,2002937,"580,000"
Department for Work and Pensions,Corporate,14-Dec-11,COMPUTER SERVICES,CIT,BT GLOBAL SERVICES,2023545049,"579,396"
Department for Work and Pensions,Housing Benefits,14-Dec-11,Housing Benefit Admin,COO,LEEDS CITY COUNCIL,2023605909,"559,512"
Department for Work and Pensions,Corporate,22-Dec-11,COMPUTER SERVICES,CIT,ATOS ORIGIN IT SERVICES UK LTD,2023695824,"551,250"
Department for Work and Pensions,Corporate,05-Dec-11,COMPUTER SERVICES,CIT,HP ENTERPRISE SERVICES UK LTD,2023449052,"543,157"
Department for Work and Pensions,Corporate,05-Dec-11,COMPUTER SERVICES,CIT,HP ENTERPRISE SERVICES UK LTD,2023449052,"542,601"
Department for Work and Pensions,Corporate,30-Dec-11,ACCOMMODATION,F&C,TELEREAL TRILLIUM,2023772051,"540,521"
Department for Work and Pensions,Jobcentre Plus,02-Dec-11,AOS CONTRACTED OUT SERVICES,COO,VERTEX DATA SCIENCE LTD,2023445194,"537,739"
Department for Work and Pensions,Corporate,30-Dec-11,ACCOMMODATION,F&C,TELEREAL TRILLIUM,2023772051,"536,267"
Department for Work and Pensions,Jobcentre Plus,08-Dec-11,COMPUTER SERVICES,COO,STERIA,2023524750,"522,297"
Department for Work and Pensions,Housing Benefits,14-Dec-11,Housing Benefit Admin,COO,MANCHESTER CITY COUNCIL,2023605947,"521,148"
Department for Work and Pensions,Corporate,08-Dec-11,BANKING AND ENCASHMENT COSTS,F&C,HSBC BANK PLC,2023523477,"501,683"
Department for Work and Pensions,Jobcentre Plus,14-Dec-11,AOS CONTRACTED OUT SERVICES,COO,VERTEX DATA SCIENCE LTD,2023602566,"488,062"
Department for Work and Pensions,Jobcentre Plus,22-Dec-11,CONTRACTED OUT SERVICES,COO,CAPITA BUSINESS SERVICES LTD,2023696131,"486,484"
Department for Work and Pensions,Jobcentre Plus,09-Dec-11,MEDICAL SERVICES,Change PMU,ATOS HEALTHCARE,2023526561,"470,740"
Department for Work and Pensions,Housing Benefits,14-Dec-11,Housing Benefit Admin,COO,DURHAM COUNCIL,2023605841,"446,708"
Department for Work and Pensions,Housing Benefits,14-Dec-11,Housing Benefit Admin,COO,BRADFORD METROPOLITAN BOROUGH COUNCIL,2023605777,"443,966"
Department for Work and Pensions,Corporate,12-Dec-11,COMPUTER SERVICES,CIT,HP ENTERPRISE SERVICES UK LTD,2023532843,"434,481"
Department for Work and Pensions,Corporate,15-Dec-11,COMPUTER SERVICES,CIT,ATOS ORIGIN IT SERVICES UK LTD,2023606338,"422,959"
Department for Work and Pensions,"Pension, Disability Carers Services",30-Dec-11,ACCOMMODATION,COO,TELEREAL TRILLIUM,2023772053,"406,890"
Department for Work and Pensions,Employment Programmes,12-Dec-11,EP PROVIDER PAYMENT - NON-WORK PROGRAMME,COO,A4E LTD,2023530338,"397,015"
Department for Work and Pensions,Housing Benefits,14-Dec-11,Housing Benefit Admin,COO,LONDON BOROUGH OF TOWER HAMLETS,2023605940,"388,535"
Department for Work and Pensions,Housing Benefits,14-Dec-11,Housing Benefit Admin,COO,SHEFFIELD CITY COUNCIL,2023606027,"382,037"
Department for Work and Pensions,Corporate,22-Dec-11,OTHER EXPENDITURE,My Civil Seevice Pension,XAFINITY CLAYBROOK,2023699796,"379,764"
Department for Work and Pensions,Corporate,28-Dec-11,COMPUTER SERVICES,CIT,TELEFONICA O2 UK LTD,2023770648,"378,195"
Department for Work and Pensions,Housing Benefits,14-Dec-11,Housing Benefit Admin,COO,LONDON BOROUGH OF LAMBETH,2023605932,"370,235"
Department for Work and Pensions,Housing Benefits,14-Dec-11,Housing Benefit Admin,COO,CORNWALL COUNCIL,2023605821,"368,509"
Department for Work and Pensions,Housing Benefits,14-Dec-11,Housing Benefit Admin,COO,LONDON BOROUGH OF LEWISHAM,2023605933,"365,854"
Department for Work and Pensions,Housing Benefits,14-Dec-11,Housing Benefit Admin,COO,HACKNEY LBC,2023605880,"364,812"
Department for Work and Pensions,Housing Benefits,14-Dec-11,Housing Benefit Admin,COO,BRISTOL CITY COUNCIL,2023605783,"363,124"
Department for Work and Pensions,Corporate,01-Dec-11,MISCELLANEOUS EXPENDITURE,STR,OFFICE FOR NATIONAL STATISTICS,2023439715,"362,958"
Department for Work and Pensions,Corporate,30-Dec-11,TRADE DEBTORS,Excluded,TELEREAL TRILLIUM,2023772055,"360,385"
Department for Work and Pensions,Housing Benefits,14-Dec-11,Housing Benefit Admin,COO,LONDON BOROUGH OF SOUTHWARK,2023605938,"353,365"
Department for Work and Pensions,Corporate,30-Dec-11,ACCOMMODATION,F&C,TELEREAL TRILLIUM,2023772053,"345,487"
Department for Work and Pensions,European Social Fund,13-Dec-11,ESF Expenditure,STR,EAST OF ENGLAND DEVELOPMENT AGENCY,5000000810,"341,417"
Department for Work and Pensions,"Pension, Disability Carers Services",02-Dec-11,OTHER EXPENDITURE,Change PMU,ATOS ORIGIN IT SERVICES UK,2023442737,"340,856"
Department for Work and Pensions,"Pension, Disability Carers Services",07-Dec-11,OTHER EXPENDITURE,Change PMU,ATOS ORIGIN IT SERVICES UK,2023462238,"340,856"
Department for Work and Pensions,"Pension, Disability Carers Services",21-Dec-11,OTHER EXPENDITURE,Change PMU,ATOS ORIGIN IT SERVICES UK LTD,2023632383,"340,800"
Department for Work and Pensions,Corporate,06-Dec-11,APPS DEV,Change PMU,HP ENTERPRISE SERVICES UK LTD,2023453862,"338,668"
Department for Work and Pensions,Housing Benefits,14-Dec-11,Housing Benefit Admin,COO,LONDON BOROUGH OF NEWHAM,2023605935,"338,233"
Department for Work and Pensions,Housing Benefits,14-Dec-11,Housing Benefit Admin,COO,EDINBURGH DISTRICT COUNCIL,2023605858,"338,190"
Department for Work and Pensions,Jobcentre Plus,15-Dec-11,ACCOMMODATION,COO,TELEREAL TRILLIUM,2023609312,"330,093"
Department for Work and Pensions,Corporate,13-Dec-11,APPS DEV,Change PMU,HP ENTERPRISE SERVICES UK LTD,2023536459,"323,705"
Department for Work and Pensions,"Pension, Disability Carers Services",22-Dec-11,CONTRACTED OUT SERVICES,COO,CAPITA BUSINESS SERVICES LTD,2023696131,"320,543"
Department for Work and Pensions,Housing Benefits,14-Dec-11,Housing Benefit Admin,COO,LONDON BOROUGH OF BRENT,2023605918,"317,783"
Department for Work and Pensions,Housing Benefits,14-Dec-11,Housing Benefit Admin,COO,KIRKLEES METROPOLITAN BOROUGH COUNCIL,2023605905,"311,862"
Department for Work and Pensions,European Social Fund,23-Dec-11,ESF Expenditure,STR,NATIONAL OFFENDER MANAGEMENT SERVICES,5000000850,"309,759"
Department for Work and Pensions,Corporate,19-Dec-11,COMPUTER SERVICES,CIT,ATOS ORIGIN IT SERVICES UK LTD,2023616210,"309,752"
Department for Work and Pensions,Housing Benefits,14-Dec-11,Housing Benefit Admin,COO,SANDWELL BOROUGH COUNCIL,2023606020,"306,783"
Department for Work and Pensions,Housing Benefits,14-Dec-11,Housing Benefit Admin,COO,CROYDON PEO%,2023605828,"305,707"
Department for Work and Pensions,Corporate,30-Dec-11,ACCOMMODATION,F&C,TELEREAL TRILLIUM,2023772051,"304,508"
Department for Work and Pensions,European Social Fund,20-Dec-11,ESF Expenditure,STR,NATIONAL OFFENDER MANAGEMENT SERVICES,5000000834,"302,733"
Department for Work and Pensions,Housing Benefits,14-Dec-11,Housing Benefit Admin,COO,LONDON BOROUGH OF ISLINGTON,2023605930,"302,185"
Department for Work and Pensions,Housing Benefits,14-Dec-11,Housing Benefit Admin,COO,LONDON BOROUGH OF EALING,2023605921,"301,452"
Department for Work and Pensions,European Social Fund,14-Dec-11,ESF Expenditure,STR,BARNSLEY METROPOLITAN BOROUGH COUNCIL,5000000816,"298,488"
Department for Work and Pensions,Housing Benefits,14-Dec-11,Housing Benefit Admin,COO,LONDON BOROUGH OF HARINGEY,2023605925,"293,615"
Department for Work and Pensions,Housing Benefits,14-Dec-11,Housing Benefit Admin,COO,NOTTINGHAM CITY COUNCIL,2023605984,"293,187"
Department for Work and Pensions,Jobcentre Plus,30-Dec-11,ACCOMMODATION,COO,TELEREAL TRILLIUM,2023772053,"291,461"
Department for Work and Pensions,Employment Programmes,09-Dec-11,YOUNG PERSON'S GUARANTEE,COO,TNG LTD,2023528898,"291,054"
Department for Work and Pensions,Housing Benefits,14-Dec-11,Housing Benefit Admin,COO,LEICESTER CITY COUNCIL,2023605910,"287,913"
Department for Work and Pensions,Housing Benefits,14-Dec-11,Housing Benefit Admin,COO,LONDON BOROUGH OF ENFIELD,2023605922,"287,554"
Department for Work and Pensions,Corporate,30-Dec-11,ACCOMMODATION,F&C,TELEREAL TRILLIUM,2023772051,"285,545"
Department for Work and Pensions,Corporate,30-Dec-11,ACCOMMODATION,F&C,TELEREAL TRILLIUM,2023772051,"285,412"
Department for Work and Pensions,European Social Fund,19-Dec-11,ESF Expenditure,STR,CORNWALL COLLEGE,5000000830,"284,630"
Department for Work and Pensions,Corporate,30-Dec-11,ACCOMMODATION,F&C,TELEREAL TRILLIUM,2023772053,"284,233"
Department for Work and Pensions,Housing Benefits,14-Dec-11,Housing Benefit Admin,COO,NORTH LANARKSHIRE COUNCIL,2023605974,"283,007"
Department for Work and Pensions,Corporate,29-Dec-11,APPS DEV,CIT,HP ENTERPRISE SERVICES UK LTD,2023774101,"282,436"
Department for Work and Pensions,Housing Benefits,14-Dec-11,Housing Benefit Admin,COO,SUNDERLAND CITY COUNCIL,2023606066,"281,931"
Department for Work and Pensions,Housing Benefits,14-Dec-11,Housing Benefit Admin,COO,WAKEFIELD METROPOLITAN DISTRICT COUNCIL,2023606092,"276,618"
Department for Work and Pensions,Housing Benefits,14-Dec-11,Housing Benefit Admin,COO,COVENTRY CITY COUNCIL,2023605825,"276,337"
Department for Work and Pensions,Jobcentre Plus,06-Dec-11,APPS DEV,Change PMU,HP ENTERPRISE SERVICES UK LTD,2023453862,"275,698"
Department for Work and Pensions,Housing Benefits,14-Dec-11,Housing Benefit Admin,COO,KINGSTON UPON HULL CITY COUNCIL,2023605904,"274,061"
Department for Work and Pensions,Housing Benefits,14-Dec-11,Housing Benefit Admin,COO,WIRRAL BOROUGH COUNCIL,2023606115,"271,978"
Department for Work and Pensions,Housing Benefits,14-Dec-11,Housing Benefit Admin,COO,BRIGHTON & HOVE COUNCIL,2023605782,"271,462"
Department for Work and Pensions,Housing Benefits,14-Dec-11,Housing Benefit Admin,COO,WALSALL BOROUGH COUNCIL,2023606093,"270,578"
Department for Work and Pensions,Corporate,06-Dec-11,AOS CONTRACTED OUT SERVICES,F&C,BALFOUR BEATTY WORKPLACE LTD,2023451969,"270,405"
Department for Work and Pensions,Corporate,13-Dec-11,APPS DEV,Change PMU,HP ENTERPRISE SERVICES UK LTD,2023536459,"268,193"
Department for Work and Pensions,Corporate,13-Dec-11,COMPUTER SERVICES,CIT,BT GLOBAL SERVICES,2023535593,"267,687"
Department for Work and Pensions,Corporate,13-Dec-11,COMPUTER SERVICES,CIT,HP ENTERPRISE SERVICES UK LTD,2023536459,"264,855"
Department for Work and Pensions,Housing Benefits,14-Dec-11,Housing Benefit Admin,COO,LONDON BOROUGH OF WANDSWORTH,2023605942,"264,293"
Department for Work and Pensions,Corporate,13-Dec-11,COMPUTER SERVICES,CIT,IBM UNITED KINGDOM LTD,2023536489,"263,531"
Department for Work and Pensions,Housing Benefits,14-Dec-11,Housing Benefit Admin,COO,FIFE COUNCIL,2023605867,"262,739"
Department for Work and Pensions,Corporate,13-Dec-11,APPS DEV,CIT,HP ENTERPRISE SERVICES UK LTD,2023536459,"260,538"
Department for Work and Pensions,Housing Benefits,14-Dec-11,Housing Benefit Admin,COO,LONDON BOROUGH OF GREENWICH,2023605923,"260,369"
Department for Work and Pensions,Corporate,12-Dec-11,APPS DEV,CIT,HP ENTERPRISE SERVICES UK LTD,2023532843,"260,119"
Department for Work and Pensions,Corporate,13-Dec-11,AMS,CIT,HP ENTERPRISE SERVICES UK LTD,2023536459,"259,180"
Department for Work and Pensions,Corporate,06-Dec-11,COMPUTER SERVICES,CIT,BT GLOBAL SERVICES,2023452010,"257,765"
Department for Work and Pensions,Corporate,12-Dec-11,COMPUTER SERVICES,Change PMU,ACCENTURE UK LTD,2023530343,"257,097"
Department for Work and Pensions,Housing Benefits,14-Dec-11,Housing Benefit Admin,COO,CARDIFF CITY COUNCIL,2023605795,"255,850"
Department for Work and Pensions,Housing Benefits,14-Dec-11,Housing Benefit Admin,COO,LONDON BOROUGH OF CAMDEN,2023605920,"255,078"
Department for Work and Pensions,Corporate,08-Dec-11,BANKING AND ENCASHMENT COSTS,F&C,HSBC BANK PLC,2023523476,"252,408"
Department for Work and Pensions,Corporate,29-Dec-11,APPS DEV,CIT,HP ENTERPRISE SERVICES UK LTD,2023774101,"252,199"
Department for Work and Pensions,Housing Benefits,14-Dec-11,Housing Benefit Admin,COO,WOLVERHAMPTON CITY COUNCIL,2023606118,"251,247"
Department for Work and Pensions,Employment Programmes,14-Dec-11,RESIDENTIAL TRAINING,COO,ST LOYES COLLEGE FOUNDATION,2023598825,"249,601"
Department for Work and Pensions,Corporate,29-Dec-11,APPS DEV,Change PMU,HP ENTERPRISE SERVICES UK LTD,2023774101,"249,542"
Department for Work and Pensions,Corporate,20-Dec-11,BANKING AND ENCASHMENT COSTS,F&C,HSBC BANK PLC,2023623149,"248,976"
Department for Work and Pensions,Housing Benefits,14-Dec-11,Housing Benefit Admin,COO,LONDON BOROUGH OF BARNET,2023605916,"246,635"
Department for Work and Pensions,Jobcentre Plus,23-Dec-11,MEDICAL SERVICES,Change PMU,ATOS HEALTHCARE,2023706850,"245,329"
Department for Work and Pensions,Housing Benefits,14-Dec-11,Housing Benefit Admin,COO,NEWCASTLE CITY COUNCIL,2023605964,"244,177"
Department for Work and Pensions,Housing Benefits,14-Dec-11,Housing Benefit Admin,COO,DONCASTER METROPOLITAN BOROUGH COUNCIL,2023605836,"242,625"
Department for Work and Pensions,Corporate,16-Dec-11,COMPUTER SERVICES,CIT,ATOS ORIGIN IT SERVICES UK LTD,2023611616,"242,485"
Department for Work and Pensions,Employment Programmes,08-Dec-11,RESIDENTIAL TRAINING,COO,QUEEN ELIZABETHS FOUNDATION TRAINING COLLEGE,2023524384,"242,227"
Department for Work and Pensions,Corporate,09-Dec-11,IS/IT,CIT,COMPUTACENTER UK LTD,2023526718,"242,076"
Department for Work and Pensions,Corporate,20-Dec-11,COMPUTER SERVICES,CIT,ATOS ORIGIN IT SERVICES UK LTD,2023621722,"241,586"
Department for Work and Pensions,Jobcentre Plus,12-Dec-11,NETWORK,COO,AIRWAVE SOLUTIONS LTD,2023530351,"241,270"
Department for Work and Pensions,Housing Benefits,14-Dec-11,Housing Benefit Admin,COO,SALFORD CITY COUNCIL,2023606019,"240,644"
Department for Work and Pensions,Housing Benefits,14-Dec-11,Housing Benefit Admin,COO,SOUTH LANARKSHIRE COUNCIL,2023606042,"239,641"
Department for Work and Pensions,Jobcentre Plus,06-Dec-11,APPS DEV,COO,HP ENTERPRISE SERVICES UK LTD,2023453862,"236,504"
Department for Work and Pensions,Housing Benefits,14-Dec-11,Housing Benefit Admin,COO,CITY OF WESTMINSTER,2023605813,"235,056"
Department for Work and Pensions,Jobcentre Plus,13-Dec-11,APPS DEV,COO,HP ENTERPRISE SERVICES UK LTD,2023536459,"233,868"
Department for Work and Pensions,Housing Benefits,14-Dec-11,Housing Benefit Admin,COO,LONDON BOROUGH OF WALTHAM FOREST,2023605941,"232,821"
Department for Work and Pensions,Corporate,14-Dec-11,COMPUTER SERVICES,CIT,HP ENTERPRISE SERVICES UK LTD,2023562579,"232,234"
Department for Work and Pensions,Housing Benefits,14-Dec-11,Housing Benefit Admin,COO,WIGAN BOROUGH COUNCIL,2023606111,"231,937"
Department for Work and Pensions,Housing Benefits,14-Dec-11,Housing Benefit Admin,COO,WILTSHIRE COUNCIL,2023606112,"229,642"
Department for Work and Pensions,Corporate,30-Dec-11,ACCOMMODATION,F&C,TELEREAL TRILLIUM,2023772051,"226,221"
Department for Work and Pensions,Housing Benefits,14-Dec-11,Housing Benefit Admin,COO,DUDLEY METROPOLITAN BOROUGH COUNCIL,2023605838,"221,667"
Department for Work and Pensions,Housing Benefits,14-Dec-11,Housing Benefit Admin,COO,STOKE ON TRENT CITY COUNCIL,2023606062,"219,935"
Department for Work and Pensions,Jobcentre Plus,06-Dec-11,APPS DEV,CIT,HP ENTERPRISE SERVICES UK LTD,2023453862,"219,226"
Department for Work and Pensions,"Pension, Disability Carers Services",06-Dec-11,CONTRACTED OUT OFFICE SERVICES,COO,BALFOUR BEATTY WORKPLACE LTD,2023451969,"219,065"
Department for Work and Pensions,Housing Benefits,14-Dec-11,Housing Benefit Admin,COO,BOLTON METROPOLITAN BOROUGH COUNCIL,2023605770,"217,405"
Department for Work and Pensions,Housing Benefits,14-Dec-11,Housing Benefit Admin,COO,SEFTON METROPOLITAN BOROUGH COUNCIL,2023606024,"216,843"
Department for Work and Pensions,Corporate,01-Dec-11,COMPUTER SERVICES,Change PMU,ACCENTURE UK LTD,2023436480,"215,196"
Department for Work and Pensions,Corporate,01-Dec-11,COMPUTER SERVICES,CIT,ACCENTURE UK LTD,2023436480,"212,925"
Department for Work and Pensions,Housing Benefits,14-Dec-11,Housing Benefit Admin,COO,NORTHUMBERLAND COUNCIL,2023605982,"212,210"
Department for Work and Pensions,"Pension, Disability Carers Services",16-Dec-11,MEDICAL SERVICES,COO,ATOS HEALTHCARE,2023611615,"212,195"
Department for Work and Pensions,"Pension, Disability Carers Services",30-Dec-11,ACCOMMODATION,COO,TELEREAL TRILLIUM,2023772055,"207,035"
Department for Work and Pensions,Employment Programmes,14-Dec-11,RESIDENTIAL TRAINING,COO,FINCHALE TRAINING COLLEGE,2023559188,"205,353"
Department for Work and Pensions,Housing Benefits,14-Dec-11,Housing Benefit Admin,COO,PLYMOUTH CITY COUNCIL,2023605994,"202,462"
Department for Work and Pensions,Housing Benefits,14-Dec-11,Housing Benefit Admin,COO,LONDON BOROUGH OF HOUNSLOW,2023605929,"201,896"
Department for Work and Pensions,Housing Benefits,14-Dec-11,Housing Benefit Admin,COO,LONDON BOROUGH OF HILLINGDON,2023605928,"201,509"
Department for Work and Pensions,Housing Benefits,14-Dec-11,Housing Benefit Admin,COO,ROTHERHAM BOROUGH COUNCIL,2023606011,"196,790"
Department for Work and Pensions,Corporate,05-Dec-11,IS/IT,CIT,HP ENTERPRISE SERVICES UK LTD,2023449052,"195,416"
Department for Work and Pensions,Corporate,14-Dec-11,COMPUTER SERVICES,CIT,BT GLOBAL SERVICES,2023545049,"192,255"
Department for Work and Pensions,Housing Benefits,14-Dec-11,Housing Benefit Admin,COO,EAST RIDING OF YORKSHIRE BOROUGH COUNCIL,2023605853,"191,497"
Department for Work and Pensions,Housing Benefits,14-Dec-11,Housing Benefit Admin,COO,CHESHIRE WEST & CHESTER COUNCIL,2023605805,"191,385"
Department for Work and Pensions,Housing Benefits,14-Dec-11,Housing Benefit Admin,COO,MEDWAY TOWNS COUNCIL,2023605949,"191,188"
Department for Work and Pensions,Housing Benefits,14-Dec-11,Housing Benefit Admin,COO,TAMESIDE BOROUGH COUNCIL,2023606071,"191,093"
Department for Work and Pensions,Housing Benefits,14-Dec-11,Housing Benefit Admin,COO,LONDON BOROUGH OF HAMMERSMITH & FULHAM,2023605924,"190,663"
Department for Work and Pensions,Housing Benefits,14-Dec-11,Housing Benefit Admin,COO,SOUTHAMPTON CITY COUNCIL,2023606050,"187,775"
Department for Work and Pensions,Housing Benefits,14-Dec-11,Housing Benefit Admin,COO,PORTSMOUTH CITY COUNCIL,2023605996,"187,378"
Department for Work and Pensions,Housing Benefits,14-Dec-11,Housing Benefit Admin,COO,RHONDDA CYNON TAFF COUNTY BOROUGH COUNCIL,2023606004,"186,767"
Department for Work and Pensions,Jobcentre Plus,29-Dec-11,APPS DEV,COO,HP ENTERPRISE SERVICES UK LTD,2023774101,"186,384"
Department for Work and Pensions,Housing Benefits,14-Dec-11,Housing Benefit Admin,COO,CHESHIRE EAST BOROUGH COUNCIL,2023605804,"184,198"
Department for Work and Pensions,Corporate,07-Dec-11,COMPUTER SERVICES,CIT,HP ENTERPRISE SERVICES UK LTD,2023479128,"183,950"
Department for Work and Pensions,Housing Benefits,14-Dec-11,Housing Benefit Admin,COO,STOCKPORT BOROUGH COUNCIL,2023606060,"182,624"
Department for Work and Pensions,"Pension, Disability Carers Services",15-Dec-11,ACCOMMODATION,COO,TELEREAL TRILLIUM,2023609312,"181,117"
Department for Work and Pensions,Housing Benefits,14-Dec-11,Housing Benefit Admin,COO,LONDON BOROUGH OF HARROW,2023605926,"181,018"
Department for Work and Pensions,Housing Benefits,14-Dec-11,Housing Benefit Admin,COO,BARNSLEY BOROUGH COUNCIL,2023605757,"180,115"
Department for Work and Pensions,Housing Benefits,14-Dec-11,Housing Benefit Admin,COO,MILTON KEYNES BOROUGH COUNCIL,2023605958,"178,651"
Department for Work and Pensions,Jobcentre Plus,29-Dec-11,APPS DEV,Change PMU,HP ENTERPRISE SERVICES UK LTD,2023774101,"178,249"
Department for Work and Pensions,Housing Benefits,14-Dec-11,Housing Benefit Admin,COO,SWANSEA CITY COUNCIL,2023606069,"176,582"
Department for Work and Pensions,Housing Benefits,14-Dec-11,Housing Benefit Admin,COO,DERBY CITY COUNCIL,2023605834,"175,281"
Department for Work and Pensions,Employment Programmes,09-Dec-11,YOUNG PERSON'S GUARANTEE,COO,TNG LTD,2023528898,"175,241"
Department for Work and Pensions,Housing Benefits,14-Dec-11,Housing Benefit Admin,COO,ROCHDALE BOROUGH COUNCIL,2023606007,"174,891"
Department for Work and Pensions,Housing Benefits,14-Dec-11,Housing Benefit Admin,COO,OLDHAM BOROUGH COUNCIL,2023605987,"174,833"
Department for Work and Pensions,Housing Benefits,14-Dec-11,Housing Benefit Admin,COO,LONDON BOROUGH OF KENSINGTON & CHELSEA,2023605931,"173,743"
Department for Work and Pensions,Corporate,15-Dec-11,ACCOMMODATION,F&C,TELEREAL TRILLIUM,2023609312,"172,470"
Department for Work and Pensions,Housing Benefits,14-Dec-11,Housing Benefit Admin,COO,LONDON BOROUGH OF BROMLEY,2023605919,"171,631"
Department for Work and Pensions,Housing Benefits,14-Dec-11,Housing Benefit Admin,COO,SHROPSHIRE COUNCIL,2023606030,"170,683"
Department for Work and Pensions,Housing Benefits,14-Dec-11,Housing Benefit Admin,COO,LONDON BOROUGH OF BARKING & DAGENHAM,2023605915,"169,473"
Department for Work and Pensions,Jobcentre Plus,12-Dec-11,MEDICAL SERVICES,COO,ATOS HEALTHCARE,2023530365,"167,795"
Department for Work and Pensions,Housing Benefits,14-Dec-11,Housing Benefit Admin,COO,KNOWSLEY BOROUGH COUNCIL,2023605907,"167,742"
Department for Work and Pensions,Housing Benefits,14-Dec-11,Housing Benefit Admin,COO,GATESHEAD BOROUGH COUNCIL,2023605872,"167,075"
Department for Work and Pensions,Corporate,29-Dec-11,COMPUTER SERVICES,CIT,ATOS ORIGIN IT SERVICES UK LTD,2023772239,"166,909"
Department for Work and Pensions,Corporate,19-Dec-11,PRINTING STATIONERY IT CONSUMABLES,F&C,XEROX UK LTD 3W,2023620139,"165,554"
Department for Work and Pensions,Housing Benefits,14-Dec-11,Housing Benefit Admin,COO,LONDON BOROUGH OF REDBRIDGE,2023605936,"164,618"
Department for Work and Pensions,"Pension, Disability Carers Services",14-Dec-11,COMPUTER SERVICES,COO,LAND REGISTRY,2023579232,"163,568"
Department for Work and Pensions,Housing Benefits,14-Dec-11,Housing Benefit Admin,COO,BLACKPOOL BOROUGH COUNCIL,2023605767,"162,953"
Department for Work and Pensions,Corporate,08-Dec-11,COMPUTER SERVICES,CIT,HP ENTERPRISE SERVICES UK LTD,2023523475,"161,250"
Department for Work and Pensions,Housing Benefits,14-Dec-11,Housing Benefit Admin,COO,BOURNEMOUTH BOROUGH COUNCIL,2023605775,"157,665"
Department for Work and Pensions,Housing Benefits,14-Dec-11,Housing Benefit Admin,COO,MIDDLESBROUGH COUNCIL,2023605956,"157,582"
Department for Work and Pensions,Housing Benefits,14-Dec-11,Housing Benefit Admin,COO,CALDERDALE BOROUGH COUNCIL,2023605791,"157,069"
Department for Work and Pensions,Employment Programmes,23-Dec-11,YOUNG PERSON'S GUARANTEE,COO,LONDON BOROUGH OF EALING,2023740734,"156,900"
Department for Work and Pensions,Housing Benefits,14-Dec-11,Housing Benefit Admin,COO,NORTH TYNESIDE BOROUGH COUNCIL,2023605978,"154,947"
Department for Work and Pensions,Housing Benefits,14-Dec-11,Housing Benefit Admin,COO,RENFREWSHIRE COUNCIL,2023606003,"154,503"
Department for Work and Pensions,Housing Benefits,14-Dec-11,Housing Benefit Admin,COO,PETERBOROUGH CITY COUNCIL,2023605993,"154,406"
Department for Work and Pensions,Housing Benefits,14-Dec-11,Housing Benefit Admin,COO,DUNDEE CITY COUNCIL,2023605840,"153,546"
Department for Work and Pensions,Housing Benefits,14-Dec-11,Housing Benefit Admin,COO,ST HELENS BOROUGH COUNCIL,2023606055,"153,140"
Department for Work and Pensions,Housing Benefits,14-Dec-11,Housing Benefit Admin,COO,NORTHAMPTON BOROUGH COUNCIL,2023605981,"152,650"
Department for Work and Pensions,Housing Benefits,14-Dec-11,Housing Benefit Admin,COO,NORTH EAST LINCOLNSHIRE COUNCIL,2023605971,"152,348"
Department for Work and Pensions,"Pension, Disability Carers Services",23-Dec-11,OTHER EXPENDITURE,Change PMU,ATOS ORIGIN IT SERVICES UK LTD,2023706851,"148,529"
Department for Work and Pensions,European Social Fund,22-Dec-11,ESF Expenditure,STR,CORNWALL COLLEGE,5000000840,"148,032"
Department for Work and Pensions,Housing Benefits,14-Dec-11,Housing Benefit Admin,COO,STOCKTON  BOROUGH COUNCIL,2023606061,"146,783"
Department for Work and Pensions,Corporate,14-Dec-11,COMPUTER SERVICES,CIT,VODAFONE LTD,2023602573,"146,696"
Department for Work and Pensions,Housing Benefits,14-Dec-11,Housing Benefit Admin,COO,LUTON BOROUGH COUNCIL,2023605943,"146,527"
Department for Work and Pensions,Housing Benefits,14-Dec-11,Housing Benefit Admin,COO,HIGHLAND COUNCIL,2023605893,"146,382"
Department for Work and Pensions,Corporate,12-Dec-11,NETWORK,CIT,BT GLOBAL SERVICES,2023530424,"146,314"
Department for Work and Pensions,Corporate,12-Dec-11,STAFF COSTS,HRD,RIGHT CORECARE,2023533804,"146,256"
Department for Work and Pensions,Housing Benefits,14-Dec-11,Housing Benefit Admin,COO,NORTH SOMERSET COUNCIL,2023605977,"146,237"
Department for Work and Pensions,Employment Programmes,21-Dec-11,EP PROVIDER PAYMENT - WORK PROGRAMME,COO,CAREERS DEVELOPMENT GROUP,2023638542,"145,600"
Department for Work and Pensions,Housing Benefits,14-Dec-11,Housing Benefit Admin,COO,THANET DISTRICT COUNCIL,2023606079,"143,795"
Department for Work and Pensions,Housing Benefits,14-Dec-11,Housing Benefit Admin,COO,SOUTHEND ON SEA BOROUGH COUNCIL,2023606051,"143,761"
Department for Work and Pensions,"Pension, Disability Carers Services",05-Dec-11,TELEPHONE AND POSTAGE,COO,ROYAL MAIL GROUP PLC,2023449928,"140,700"
Department for Work and Pensions,Housing Benefits,14-Dec-11,Housing Benefit Admin,COO,TORBAY  COUNCIL,2023606084,"140,673"
Department for Work and Pensions,Jobcentre Plus,13-Dec-11,APPS DEV,Change PMU,HP ENTERPRISE SERVICES UK LTD,2023536459,"139,605"
Department for Work and Pensions,Housing Benefits,14-Dec-11,Housing Benefit Admin,COO,LONDON BOROUGH OF HAVERING,2023605927,"139,103"
Department for Work and Pensions,Corporate,30-Dec-11,ACCOMMODATION,F&C,TELEREAL TRILLIUM,2023772051,"139,077"
Department for Work and Pensions,Housing Benefits,14-Dec-11,Housing Benefit Admin,COO,LONDON BOROUGH OF BEXLEY,2023605917,"138,794"
Department for Work and Pensions,Housing Benefits,14-Dec-11,Housing Benefit Admin,COO,SOUTH TYNESIDE METROPOLITAN BOROUGH COUNCIL,2023606049,"138,217"
Department for Work and Pensions,Housing Benefits,14-Dec-11,Housing Benefit Admin,COO,SOUTH GLOUCESTERSHIRE COUNCIL,2023606037,"137,635"
Department for Work and Pensions,Corporate,22-Dec-11,PAYMENTS TO CSAS,HRD,ATOS HEALTHCARE,2023695823,"137,065"
Department for Work and Pensions,Housing Benefits,14-Dec-11,Housing Benefit Admin,COO,TRAFFORD BOROUGH COUNCIL,2023606087,"136,601"
Department for Work and Pensions,Employment Programmes,12-Dec-11,EP PROVIDER PAYMENT - NON-WORK PROGRAMME,COO,SEETEC BUSINESS TECHNOLOGY CENTRE LTD,2023534027,"135,683"
Department for Work and Pensions,Jobcentre Plus,01-Dec-11,EU PROGRAMMES,COO,GREATER LONDON ENTERPRISE,2023438468,"135,660"
Department for Work and Pensions,Employment Programmes,14-Dec-11,RESIDENTIAL TRAINING,COO,PORTLAND COLLEGE,2023588499,"135,007"
Department for Work and Pensions,Housing Benefits,14-Dec-11,Housing Benefit Admin,COO,BOROUGH OF TELFORD & WREKIN COUNCIL,2023605772,"134,540"
Department for Work and Pensions,Corporate,30-Dec-11,PRINCES YOUTH TRUST,Change PMU,MANCHESTER CITY COUNCIL,1005060,"134,400"
Department for Work and Pensions,Housing Benefits,14-Dec-11,Housing Benefit Admin,COO,BASILDON DISTRICT COUNCIL,2023605759,"133,613"
Department for Work and Pensions,Housing Benefits,14-Dec-11,Housing Benefit Admin,COO,LONDON BOROUGH OF MERTON,2023605934,"133,101"
Department for Work and Pensions,Housing Benefits,14-Dec-11,Housing Benefit Admin,COO,BURY METROPOLITAN BOROUGH COUNCIL,2023605789,"133,002"
Department for Work and Pensions,European Social Fund,14-Dec-11,ESF Expenditure,STR,GOVERNMENT OF GIBRALTAR DEPARTMENT OF EDUCATION & TRAINING,5000000817,"132,574"
Department for Work and Pensions,Corporate,21-Dec-11,OTHER PROJECTS,STR,BBC,2023633471,"132,054"
Department for Work and Pensions,Corporate,22-Dec-11,COMPUTER SERVICES,HRD,HM REVENUE & CUSTOMS,2002962,"132,000"
Department for Work and Pensions,Housing Benefits,14-Dec-11,Housing Benefit Admin,COO,SWINDON BOROUGH COUNCIL,2023606070,"131,877"
Department for Work and Pensions,Housing Benefits,14-Dec-11,Housing Benefit Admin,COO,NORTH AYRSHIRE COUNCIL,2023605967,"131,001"
Department for Work and Pensions,Housing Benefits,14-Dec-11,Housing Benefit Admin,COO,BLACKBURN BOROUGH COUNCIL,2023605766,"130,093"
Department for Work and Pensions,Corporate,23-Dec-11,STAFF COSTS,HRD,RIGHT CORECARE,2023752584,"130,084"
Department for Work and Pensions,Corporate,15-Dec-11,TRADE DEBTORS,Excluded,TELEREAL TRILLIUM,2023609312,"129,359"
Department for Work and Pensions,Housing Benefits,14-Dec-11,Housing Benefit Admin,COO,CAERPHILLY COUNTY BOROUGH COUNCIL,2023605790,"129,074"
Department for Work and Pensions,Housing Benefits,14-Dec-11,Housing Benefit Admin,COO,LONDON BOROUGH OF SUTTON,2023605939,"129,052"
Department for Work and Pensions,Corporate,01-Dec-11,POSTAGE,F&C,TNT UK LTD,2023440528,"128,549"
Department for Work and Pensions,Corporate,06-Dec-11,AOS CONTRACTED OUT SERVICES,F&C,BALFOUR BEATTY WORKPLACE LTD,2023451969,"128,303"
Department for Work and Pensions,Corporate,16-Dec-11,PROFESSIONAL FEES,F&C,GARTNER,618653,"127,600"
Department for Work and Pensions,Housing Benefits,14-Dec-11,Housing Benefit Admin,COO,REDCAR & CLEVELAND BOROUGH  COUNCIL,2023606001,"126,622"
Department for Work and Pensions,Housing Benefits,14-Dec-11,Housing Benefit Admin,COO,NORWICH CITY COUNCIL,2023605983,"126,542"
Department for Work and Pensions,Housing Benefits,14-Dec-11,Housing Benefit Admin,COO,TENDRING DISTRICT COUNCIL,2023606076,"125,983"
Department for Work and Pensions,Housing Benefits,14-Dec-11,Housing Benefit Admin,COO,CENTRAL BEDFORDSHIRE DISTRICT COUNCIL,2023605798,"125,868"
Department for Work and Pensions,Employment Programmes,12-Dec-11,EP PROVIDER PAYMENT - NON-WORK PROGRAMME,COO,TNG LTD,2023534181,"125,573"
Department for Work and Pensions,Housing Benefits,14-Dec-11,Housing Benefit Admin,COO,ABERDEEN CITY COUNCIL,2023605745,"125,393"
Department for Work and Pensions,Housing Benefits,14-Dec-11,Housing Benefit Admin,COO,WEST LOTHIAN COUNCIL,2023606107,"123,574"
Department for Work and Pensions,Housing Benefits,14-Dec-11,Housing Benefit Admin,COO,NORTH LINCOLNSHIRE COUNCIL,2023605975,"122,277"
Department for Work and Pensions,Corporate,30-Dec-11,ACCOMMODATION,F&C,TELEREAL TRILLIUM,2023772053,"121,586"
Department for Work and Pensions,Housing Benefits,14-Dec-11,Housing Benefit Admin,COO,CARMARTHENSHIRE COUNTY COUNCIL,2023605796,"121,563"
Department for Work and Pensions,Housing Benefits,14-Dec-11,Housing Benefit Admin,COO,ISLE OF WIGHT COUNTY COUNCIL,2023605901,"121,156"
Department for Work and Pensions,Corporate,13-Dec-11,APPS DEV,Change PMU,HP ENTERPRISE SERVICES UK LTD,2023536459,"120,957"
Department for Work and Pensions,Employment Programmes,12-Dec-11,EP PROVIDER PAYMENT - NON-WORK PROGRAMME,COO,PINNACLE PEOPLE,2023533687,"120,314"
Department for Work and Pensions,Housing Benefits,14-Dec-11,Housing Benefit Admin,COO,DUMFRIES & GALLOWAY COUNCIL,2023605839,"120,266"
Department for Work and Pensions,Corporate,09-Dec-11,PAYMENTS TO CSAS,HRD,ATOS HEALTHCARE,2023526561,"119,320"
Department for Work and Pensions,Corporate,22-Dec-11,COMPUTER SERVICES,CIT,ACCENTURE UK LTD,2023695794,"118,271"
Department for Work and Pensions,Employment Programmes,14-Dec-11,RESIDENTIAL TRAINING,COO,RNCB ROYAL NATIONAL COLLEGE FOR BLIND,2023591200,"118,239"
Department for Work and Pensions,Housing Benefits,14-Dec-11,Housing Benefit Admin,COO,SOLIHULL METROPOLITAN BOROUGH COUNCIL,2023606032,"117,560"
Department for Work and Pensions,Corporate,08-Dec-11,OTHER PROJECTS,STR,BBC,2023521657,"116,929"
Department for Work and Pensions,Housing Benefits,14-Dec-11,Housing Benefit Admin,COO,BEDFORD BOROUGH COUNCIL,2023605763,"116,749"
Department for Work and Pensions,Corporate,19-Dec-11,COMPUTER SERVICES,CIT,ACCENTURE,2023616178,"115,394"
Department for Work and Pensions,Corporate,29-Dec-11,COMPUTER SERVICES,CIT,ATOS ORIGIN IT SERVICES UK LTD,2023772239,"115,392"
Department for Work and Pensions,Corporate,29-Dec-11,PRINTING STATIONERY IT CONSUMABLES,F&C,XEROX UK LTD 3W,2023775413,"115,391"
Department for Work and Pensions,Housing Benefits,14-Dec-11,Housing Benefit Admin,COO,READING BOROUGH COUNCIL,2023606000,"115,026"
Department for Work and Pensions,Housing Benefits,14-Dec-11,Housing Benefit Admin,COO,WARRINGTON BOROUGH COUNCIL,2023606094,"114,286"
Department for Work and Pensions,European Social Fund,23-Dec-11,ESF Expenditure,STR,LIVERPOOL CHAMBER OF COMMERCE,5000000845,"113,948"
Department for Work and Pensions,Jobcentre Plus,30-Dec-11,ACCOMMODATION,COO,TELEREAL TRILLIUM,2023772055,"113,733"
Department for Work and Pensions,Employment Programmes,14-Dec-11,RESIDENTIAL TRAINING,COO,QUEEN ALEXANDRA COLLEGE,2023588526,"113,163"
Department for Work and Pensions,Employment Programmes,19-Dec-11,JSP ESF DEL P COSTS,COO,WORKING LINKS,2023620137,"112,633"
Department for Work and Pensions,Housing Benefits,14-Dec-11,Housing Benefit Admin,COO,THURROCK BOROUGH COUNCIL,2023606082,"112,469"
Department for Work and Pensions,Corporate,30-Dec-11,ACCOMMODATION,F&C,TELEREAL TRILLIUM,2023772051,"112,444"
Department for Work and Pensions,Housing Benefits,14-Dec-11,Housing Benefit Admin,COO,SLOUGH BOROUGH COUNCIL,2023606031,"112,375"
Department for Work and Pensions,Housing Benefits,14-Dec-11,Housing Benefit Admin,COO,HALTON BOROUGH COUNCIL,2023605881,"112,183"
Department for Work and Pensions,Corporate,30-Dec-11,ACCOMMODATION,F&C,TELEREAL TRILLIUM,2023772051,"112,055"
Department for Work and Pensions,Housing Benefits,14-Dec-11,Housing Benefit Admin,COO,NEATH PORT TALBOT COUNTY BOROUGH COUNCIL,2023605961,"111,346"
Department for Work and Pensions,Employment Programmes,09-Dec-11,YOUNG PERSON'S GUARANTEE,COO,TNG LTD,2023528898,"111,218"
Department for Work and Pensions,Housing Benefits,14-Dec-11,Housing Benefit Admin,COO,ABERDEENSHIRE COUNCIL,2023605746,"110,675"
Department for Work and Pensions,Employment Programmes,12-Dec-11,EP PROVIDER PAYMENT - NON-WORK PROGRAMME,COO,REED IN PARTNERSHIP LTD,2023533794,"110,011"
Department for Work and Pensions,Housing Benefits,14-Dec-11,Housing Benefit Admin,COO,FALKIRK DISTRICT COUNCIL,2023605864,"109,810"
Department for Work and Pensions,Housing Benefits,14-Dec-11,Housing Benefit Admin,COO,NEWPORT CITY COUNCIL,2023605966,"109,795"
Department for Work and Pensions,Housing Benefits,14-Dec-11,Housing Benefit Admin,COO,EAST LINDSEY DISTRICT COUNCIL,2023605849,"107,744"
Department for Work and Pensions,Corporate,13-Dec-11,APPS DEV,CIT,HP ENTERPRISE SERVICES UK LTD,2023536459,"107,706"
Department for Work and Pensions,Jobcentre Plus,29-Dec-11,APPS DEV,CIT,HP ENTERPRISE SERVICES UK LTD,2023774101,"107,353"
Department for Work and Pensions,Housing Benefits,14-Dec-11,Housing Benefit Admin,COO,HASTINGS BOROUGH COUNCIL,2023605888,"107,349"
Department for Work and Pensions,Employment Programmes,12-Dec-11,EP PROVIDER PAYMENT - NON-WORK PROGRAMME,COO,PERTEMPS,2023533683,"106,495"
Department for Work and Pensions,Corporate,30-Dec-11,ACCOMMODATION,F&C,TELEREAL TRILLIUM,2023772051,"105,780"
Department for Work and Pensions,Housing Benefits,14-Dec-11,Housing Benefit Admin,COO,EAST AYRSHIRE COUNCIL FINANCE DEPARTMENT,2023605842,"105,756"
Department for Work and Pensions,Housing Benefits,14-Dec-11,Housing Benefit Admin,COO,BRIDGEND COUNTY BOROUGH COUNCIL,2023605781,"105,740"
Department for Work and Pensions,Jobcentre Plus,06-Dec-11,APPS DEV,Change PMU,HP ENTERPRISE SERVICES UK LTD,2023453862,"105,119"
Department for Work and Pensions,Corporate,29-Dec-11,PROFESSIONAL FEES,STR,TNS BMRB,2023775302,"104,045"
Department for Work and Pensions,Corporate,22-Dec-11,COMPUTER SERVICES,CIT,ACCENTURE,2023695793,"103,905"
Department for Work and Pensions,Housing Benefits,14-Dec-11,Housing Benefit Admin,COO,HARTLEPOOL BOROUGH COUNCIL,2023605887,"103,357"
Department for Work and Pensions,Housing Benefits,14-Dec-11,Housing Benefit Admin,COO,WEST DUNBARTONSHIRE COUNCIL,2023606104,"103,105"
Department for Work and Pensions,Jobcentre Plus,13-Dec-11,APPS DEV,Change PMU,HP ENTERPRISE SERVICES UK LTD,2023536459,"103,026"
Department for Work and Pensions,Housing Benefits,14-Dec-11,Housing Benefit Admin,COO,HEREFORDSHIRE COUNCIL,2023605890,"102,338"
Department for Work and Pensions,Corporate,30-Dec-11,PRINCES YOUTH TRUST,Change PMU,LEICESTER CITY COUNCIL,1005057,"102,281"
Department for Work and Pensions,Employment Programmes,12-Dec-11,EP PROVIDER PAYMENT - NON-WORK PROGRAMME,COO,PINNACLE PEOPLE,2023533687,"102,155"
Department for Work and Pensions,Corporate,12-Dec-11,APPS DEV,CIT,HP ENTERPRISE SERVICES UK LTD,2023532843,"102,113"
Department for Work and Pensions,Housing Benefits,14-Dec-11,Housing Benefit Admin,COO,LONDON BOROUGH OF RICHMOND UPON THAMES,2023605937,"102,105"
Department for Work and Pensions,Housing Benefits,14-Dec-11,Housing Benefit Admin,COO,CITY OF YORK COUNCIL,2023605814,"101,543"
Department for Work and Pensions,Corporate,12-Dec-11,COMPUTER SERVICES,CIT,DETICA LTD,2023530738,"101,110"
Department for Work and Pensions,Housing Benefits,14-Dec-11,Housing Benefit Admin,COO,SCARBOROUGH BOROUGH COUNCIL,2023606021,"100,215"
Department for Work and Pensions,Housing Benefits,14-Dec-11,Housing Benefit Admin,COO,PRESTON BOROUGH COUNCIL,2023605998,"100,099"
Department for Work and Pensions,Employment Programmes,12-Dec-11,Financial Assets,COO,THE FIVE LAMPS ORGANISATION,2023534171,"100,000"
Department for Work and Pensions,Housing Benefits,14-Dec-11,Housing Benefit Admin,COO,BATH & NORTH EAST SOMERSET COUNCIL,2023605762,"99,037"
Department for Work and Pensions,Housing Benefits,14-Dec-11,Housing Benefit Admin,COO,ARUN DISTRICT COUNCIL,2023605752,"98,951"
Department for Work and Pensions,Corporate,30-Dec-11,PRINCES YOUTH TRUST,Change PMU,LONDON BOROUGH OF BARNET,1005058,"97,938"
Department for Work and Pensions,Housing Benefits,14-Dec-11,Housing Benefit Admin,COO,KINGS LYNN & WEST NORFOLK BOROUGH COUNCIL,2023605903,"97,628"
Department for Work and Pensions,Corporate,16-Dec-11,BANKING AND ENCASHMENT COSTS,F&C,VOCALINK,2023614658,"97,252"
Department for Work and Pensions,Corporate,01-Dec-11,COMPUTER SERVICES,CIT,ORANGE PCS LTD,2023439716,"97,208"
Department for Work and Pensions,European Social Fund,14-Dec-11,ESF Expenditure,STR,GROUNDWORK UK,5000000819,"97,202"
Department for Work and Pensions,Corporate,29-Dec-11,OTHER GOODS AND SERVICES,Change PMU,DLA PIPER UK,2023772605,"96,813"
Department for Work and Pensions,Housing Benefits,14-Dec-11,Housing Benefit Admin,COO,COLCHESTER BOROUGH COUNCIL,2023605816,"95,771"
Department for Work and Pensions,Housing Benefits,14-Dec-11,Housing Benefit Admin,COO,IPSWICH BOROUGH COUNCIL,2023605899,"95,545"
Department for Work and Pensions,Housing Benefits,14-Dec-11,Housing Benefit Admin,COO,SOUTH SOMERSET DISTRICT COUNCIL,2023606047,"95,157"
Department for Work and Pensions,Employment Programmes,14-Dec-11,RESIDENTIAL TRAINING,COO,DONCASTER DEAF TRUST,2023553798,"95,111"
Department for Work and Pensions,Employment Programmes,12-Dec-11,EP PROVIDER PAYMENT - NON-WORK PROGRAMME,COO,A4E LTD,2023530338,"95,028"
Department for Work and Pensions,Jobcentre Plus,09-Dec-11,MEDICAL SERVICES,COO,ATOS HEALTHCARE,2023526562,"94,894"
Department for Work and Pensions,Housing Benefits,14-Dec-11,Housing Benefit Admin,COO,SWALE BOROUGH COUNCIL,2023606068,"93,818"
Department for Work and Pensions,Housing Benefits,14-Dec-11,Housing Benefit Admin,COO,GLOUCESTER CITY COUNCIL,2023605874,"93,271"
Department for Work and Pensions,Housing Benefits,14-Dec-11,Housing Benefit Admin,COO,ROYAL BOROUGH OF KINGSTON UPON THAMES,2023606012,"92,853"
Department for Work and Pensions,Employment Programmes,12-Dec-11,EP PROVIDER PAYMENT - NON-WORK PROGRAMME,COO,A4E LTD,2023530338,"92,745"
Department for Work and Pensions,Jobcentre Plus,13-Dec-11,APPS DEV,Change PMU,HP ENTERPRISE SERVICES UK LTD,2023536459,"91,978"
Department for Work and Pensions,Corporate,22-Dec-11,COMPUTER SERVICES,CIT,ACCENTURE UK LTD,2023695794,"91,575"
Department for Work and Pensions,Housing Benefits,14-Dec-11,Housing Benefit Admin,COO,GREAT YARMOUTH COUNCIL,2023605877,"91,238"
Department for Work and Pensions,Housing Benefits,14-Dec-11,Housing Benefit Admin,COO,BRAINTREE DISTRICT COUNCIL,2023605778,"91,224"
Department for Work and Pensions,"Pension, Disability Carers Services",14-Dec-11,AOS CONTRACTED OUT SERVICES,COO,XEROX UK LTD,2023603078,"90,586"
Department for Work and Pensions,Corporate,13-Dec-11,COMPUTER SERVICES,CIT,BT GLOBAL SERVICES,2023535593,"90,448"
Department for Work and Pensions,Corporate,02-Dec-11,PROFESSIONAL FEES,PS,ORC INTERNATIONAL LTD,2023444835,"89,986"
Department for Work and Pensions,Corporate,30-Dec-11,PRINCES YOUTH TRUST,Change PMU,ESSEX COUNTY COUNCIL,1005056,"89,963"
Department for Work and Pensions,Housing Benefits,14-Dec-11,Housing Benefit Admin,COO,WAVENEY DISTRICT COUNCIL,2023606097,"89,606"
Department for Work and Pensions,Housing Benefits,14-Dec-11,Housing Benefit Admin,COO,LANCASTER CITY COUNCIL,2023605908,"88,544"
Department for Work and Pensions,Corporate,22-Dec-11,COMPUTER SERVICES,Change PMU,ACCENTURE UK LTD,2023695794,"88,297"
Department for Work and Pensions,Housing Benefits,14-Dec-11,Housing Benefit Admin,COO,BURNLEY BOROUGH COUNCIL,2023605788,"88,067"
Department for Work and Pensions,Housing Benefits,14-Dec-11,Housing Benefit Admin,COO,EASTBOURNE BOROUGH COUNCIL,2023605855,"87,969"
Department for Work and Pensions,European Social Fund,23-Dec-11,ESF Expenditure,STR,MERSEYSIDE EXPANDING HORIZONS LTD,5000000848,"87,647"
Department for Work and Pensions,Employment Programmes,12-Dec-11,EP PROVIDER PAYMENT - NON-WORK PROGRAMME,COO,ESG HOLDINGS LTD,2023532656,"87,418"
Department for Work and Pensions,Housing Benefits,14-Dec-11,Housing Benefit Admin,COO,SOUTH AYRSHIRE COUNCIL,2023606033,"87,382"
Department for Work and Pensions,Housing Benefits,14-Dec-11,Housing Benefit Admin,COO,INVERCLYDE DISTRICT COUNCIL,2023605898,"86,800"
Department for Work and Pensions,Jobcentre Plus,08-Dec-11,EMPLOYMENT PROGRAMMES,Excluded,WORKING LINKS EMPLOYMENT LIMITED,2023524908,"86,767"
Department for Work and Pensions,Housing Benefits,14-Dec-11,Housing Benefit Admin,COO,OXFORD CITY COUNCIL,2023605989,"86,447"
Department for Work and Pensions,Employment Programmes,12-Dec-11,EP PROVIDER PAYMENT - NON-WORK PROGRAMME,COO,A4E LTD,2023530338,"86,405"
Department for Work and Pensions,Employment Programmes,06-Dec-11,EP PROVIDER PAYMENT - WORK PROGRAMME,COO,WORKING LINKS,2023455950,"86,000"
Department for Work and Pensions,Corporate,14-Dec-11,MANAGEMENT CONSULTANCY,CIT,CAPGEMINI UK PLC,2023549929,"85,758"
Department for Work and Pensions,Housing Benefits,14-Dec-11,Housing Benefit Admin,COO,FLINTSHIRE COUNTY COUNCIL,2023605868,"85,757"
Department for Work and Pensions,Jobcentre Plus,23-Dec-11,MEDICAL SERVICES,Change PMU,ATOS HEALTHCARE,2023706850,"85,167"
Department for Work and Pensions,Housing Benefits,14-Dec-11,Housing Benefit Admin,COO,PERTH & KINROSS COUNCIL,2023605992,"85,118"
Department for Work and Pensions,Housing Benefits,14-Dec-11,Housing Benefit Admin,COO,POOLE BOROUGH COUNCIL,2023605995,"85,056"
Department for Work and Pensions,Jobcentre Plus,02-Dec-11,COMPUTER SERVICES,Change PMU,ACCENTURE UK LTD,2023442716,"84,979"
Department for Work and Pensions,Housing Benefits,14-Dec-11,Housing Benefit Admin,COO,DARLINGTON BOROUGH COUNCIL,2023605830,"84,596"
Department for Work and Pensions,Housing Benefits,14-Dec-11,Housing Benefit Admin,COO,BASINGSTOKE DISTRICT COUNCIL,2023605760,"84,281"
Department for Work and Pensions,Housing Benefits,14-Dec-11,Housing Benefit Admin,COO,NUNEATON BOROUGH COUNCIL,2023605985,"83,851"
Department for Work and Pensions,Housing Benefits,14-Dec-11,Housing Benefit Admin,COO,WYCOMBE DISTRICT COUNCIL,2023606123,"83,612"
Department for Work and Pensions,Housing Benefits,14-Dec-11,Housing Benefit Admin,COO,DACORUM BOROUGH COUNCIL,2023605829,"83,545"
Department for Work and Pensions,Corporate,15-Dec-11,UNALLOCATED BUDGET GROUP,STR,MOTABILITY,1005046,"83,330"
Department for Work and Pensions,Employment Programmes,12-Dec-11,EP PROVIDER PAYMENT - NON-WORK PROGRAMME,COO,INGEUS UK LTD,2023532883,"83,221"
Department for Work and Pensions,Housing Benefits,14-Dec-11,Housing Benefit Admin,COO,HUNTINGDON DISTRICT COUNCIL,2023605896,"83,110"
Department for Work and Pensions,Housing Benefits,14-Dec-11,Housing Benefit Admin,COO,AYLESBURY VALE DISTRICT COUNCIL,2023605755,"83,036"
Department for Work and Pensions,Housing Benefits,14-Dec-11,Housing Benefit Admin,COO,ASHFIELD DISTRICT COUNCIL,2023605753,"82,987"
Department for Work and Pensions,European Social Fund,14-Dec-11,ESF Expenditure,STR,PLUSS,5000000823,"82,965"
Department for Work and Pensions,Employment Programmes,12-Dec-11,EP PROVIDER PAYMENT - NON-WORK PROGRAMME,COO,JHP GROUP LTD,2023533070,"82,941"
Department for Work and Pensions,Housing Benefits,14-Dec-11,Housing Benefit Admin,COO,NEW FOREST DISTRICT COUNCIL,2023605962,"82,865"
Department for Work and Pensions,Housing Benefits,14-Dec-11,Housing Benefit Admin,COO,CHELMSFORD BOROUGH COUNCIL,2023605801,"82,804"
Department for Work and Pensions,Housing Benefits,14-Dec-11,Housing Benefit Admin,COO,CANTERBURY CITY COUNCIL,2023605794,"82,650"
Department for Work and Pensions,Housing Benefits,14-Dec-11,Housing Benefit Admin,COO,MANSFIELD DISTRICT COUNCIL,2023605948,"82,260"
Department for Work and Pensions,Housing Benefits,14-Dec-11,Housing Benefit Admin,COO,CONWY COUNTY BOROUGH  COUNCIL,2023605818,"81,715"
Department for Work and Pensions,Corporate,30-Dec-11,ACCOMMODATION,F&C,TELEREAL TRILLIUM,2023772051,"81,659"
Department for Work and Pensions,Housing Benefits,14-Dec-11,Housing Benefit Admin,COO,PENDLE BOROUGH COUNCIL,2023605991,"81,549"
Department for Work and Pensions,Housing Benefits,14-Dec-11,Housing Benefit Admin,COO,SHEPWAY DISTRICT COUNCIL,2023606028,"80,796"
Department for Work and Pensions,Corporate,13-Dec-11,COMPUTER SERVICES,CIT,HP ENTERPRISE SERVICES UK LTD,2023536459,"80,681"
Department for Work and Pensions,Corporate,19-Dec-11,COMPUTER SERVICES,CIT,ACCENTURE UK LTD,2023616179,"80,673"
Department for Work and Pensions,Employment Programmes,23-Dec-11,JOBCENTRE PLUS PATHWAYS TO WORK,COO,DORSET HEALTHCARE UNIVERSITY,2023716591,"80,628"
Department for Work and Pensions,Housing Benefits,14-Dec-11,Housing Benefit Admin,COO,CHESTERFIELD BOROUGH COUNCIL,2023605806,"80,324"
Department for Work and Pensions,Housing Benefits,14-Dec-11,Housing Benefit Admin,COO,HAVANT BOROUGH COUNCIL,2023605889,"80,318"
Department for Work and Pensions,Housing Benefits,14-Dec-11,Housing Benefit Admin,COO,SCOTTISH BORDERS COUNCIL,2023606022,"80,001"
Department for Work and Pensions,Corporate,23-Dec-11,Accommodation Costs,F&C,SOUTHERN ELECTRIC PLC,2023760199,"79,832"
Department for Work and Pensions,Housing Benefits,14-Dec-11,Housing Benefit Admin,COO,CRAWLEY BOROUGH COUNCIL,2023605827,"79,563"
Department for Work and Pensions,Housing Benefits,14-Dec-11,Housing Benefit Admin,COO,WREXHAM COUNTY BOROUGH COUNCIL,2023606121,"79,405"
Department for Work and Pensions,Corporate,01-Dec-11,COMPUTER SERVICES,CIT,CAPGEMINI UK PLC,2023436821,"78,913"
Department for Work and Pensions,Housing Benefits,14-Dec-11,Housing Benefit Admin,COO,TORFAEN BOROUGH COUNCIL,2023606085,"78,577"
Department for Work and Pensions,Housing Benefits,14-Dec-11,Housing Benefit Admin,COO,CHERWELL DISTRICT COUNCIL,2023605803,"78,566"
Department for Work and Pensions,Housing Benefits,14-Dec-11,Housing Benefit Admin,COO,BRECKLAND DISTRICT COUNCIL,2023605779,"78,508"
Department for Work and Pensions,Housing Benefits,14-Dec-11,Housing Benefit Admin,COO,MAIDSTONE BOROUGH COUNCIL,2023605944,"78,478"
Department for Work and Pensions,Jobcentre Plus,19-Dec-11,COMPUTER SERVICES,COO,STERIA,2023619972,"78,075"
Department for Work and Pensions,Employment Programmes,16-Dec-11,EP PROVIDER PAYMENT - WORK PROGRAMME,COO,CAREERS DEVELOPMENT GROUP,2023611805,"78,000"
Department for Work and Pensions,Housing Benefits,14-Dec-11,Housing Benefit Admin,COO,GWYNEDD COUNCIL,2023605879,"77,986"
Department for Work and Pensions,Housing Benefits,14-Dec-11,Housing Benefit Admin,COO,WEST BERKSHIRE COUNCIL,2023606101,"77,607"
Department for Work and Pensions,Corporate,02-Dec-11,Intangible Assets,Change PMU,CAPGEMINI UK PLC,2023442859,"77,497"
Department for Work and Pensions,Corporate,05-Dec-11,COMPUTER SERVICES,CIT,HUTCHISON 3G UK LTD,2023449055,"77,433"
Department for Work and Pensions,Corporate,06-Dec-11,AOS CONTRACTED OUT SERVICES,F&C,BALFOUR BEATTY WORKPLACE LTD,2023451969,"77,061"
Department for Work and Pensions,Housing Benefits,14-Dec-11,Housing Benefit Admin,COO,WYRE BOROUGH COUNCIL,2023606124,"76,857"
Department for Work and Pensions,Housing Benefits,14-Dec-11,Housing Benefit Admin,COO,DOVER DISTRICT COUNCIL,2023605837,"76,750"
Department for Work and Pensions,Housing Benefits,14-Dec-11,Housing Benefit Admin,COO,CHARNWOOD BOROUGH COUNCIL,2023605800,"76,664"
Department for Work and Pensions,Housing Benefits,14-Dec-11,Housing Benefit Admin,COO,VALE OF GLAMORGAN COUNCIL,2023606090,"76,596"
Department for Work and Pensions,Housing Benefits,14-Dec-11,Housing Benefit Admin,COO,PEMBROKESHIRE COUNTY COUNCIL,2023605990,"76,544"
Department for Work and Pensions,Jobcentre Plus,01-Dec-11,PRINTING STATIONERY IT CONSUMABLES,COO,XEROX UK LTD 3W,2023440629,"76,462"
Department for Work and Pensions,Corporate,29-Dec-11,APPS DEV,Change PMU,HP ENTERPRISE SERVICES UK LTD,2023774101,"76,315"
Department for Work and Pensions,Housing Benefits,14-Dec-11,Housing Benefit Admin,COO,TEIGNBRIDGE DISTRICT COUNCIL,2023606075,"75,813"
Department for Work and Pensions,Corporate,19-Dec-11,TEMPORARY (TEMP) STAFF COSTS,CIT,CAPITA RESOURCING LTD,2023616405,"75,352"
Department for Work and Pensions,Housing Benefits,14-Dec-11,Housing Benefit Admin,COO,BASSETLAW DISTRICT COUNCIL,2023605761,"75,257"
Department for Work and Pensions,Housing Benefits,14-Dec-11,Housing Benefit Admin,COO,NORTH HERTFORDSHIRE DISTRICT COUNCIL,2023605972,"74,925"
Department for Work and Pensions,Jobcentre Plus,02-Dec-11,AOS CONTRACTED OUT SERVICES,COO,VERTEX DATA SCIENCE LTD,2023445194,"74,389"
Department for Work and Pensions,Housing Benefits,14-Dec-11,Housing Benefit Admin,COO,NEWCASTLE UNDER LYME BOROUGH COUNCIL,2023605965,"74,074"
Department for Work and Pensions,Housing Benefits,14-Dec-11,Housing Benefit Admin,COO,EREWASH BOROUGH COUNCIL,2023605862,"73,888"
Department for Work and Pensions,Jobcentre Plus,09-Dec-11,EU PROGRAMMES,COO,A4E LTD,2023526529,"73,730"
Department for Work and Pensions,Corporate,12-Dec-11,COMPUTER SERVICES,CIT,ACCENTURE UK LTD,2023530343,"73,729"
Department for Work and Pensions,Housing Benefits,14-Dec-11,Housing Benefit Admin,COO,HYNDBURN BOROUGH COUNCIL,2023605897,"73,690"
Department for Work and Pensions,Housing Benefits,14-Dec-11,Housing Benefit Admin,COO,AMBER VALLEY BOROUGH COUNCIL,2023605749,"73,477"
Department for Work and Pensions,Housing Benefits,14-Dec-11,Housing Benefit Admin,COO,FENLAND DISTRICT COUNCIL,2023605866,"73,019"
Department for Work and Pensions,Housing Benefits,14-Dec-11,Housing Benefit Admin,COO,EXETER CITY COUNCIL,2023605863,"72,846"
Department for Work and Pensions,Housing Benefits,14-Dec-11,Housing Benefit Admin,COO,LINCOLN CITY COUNCIL,2023605913,"72,808"
Department for Work and Pensions,Employment Programmes,23-Dec-11,EP PROVIDER PAYMENT - WORK PROGRAMME,COO,A4E LTD,2023706813,"72,800"
Department for Work and Pensions,Housing Benefits,14-Dec-11,Housing Benefit Admin,COO,ANGUS COUNCIL,2023605750,"72,682"
Department for Work and Pensions,Employment Programmes,12-Dec-11,EP PROVIDER PAYMENT - NON-WORK PROGRAMME,COO,JHP GROUP LTD,2023533070,"72,639"
Department for Work and Pensions,Housing Benefits,14-Dec-11,Housing Benefit Admin,COO,HARROGATE BOROUGH COUNCIL,2023605885,"72,421"
Department for Work and Pensions,Housing Benefits,14-Dec-11,Housing Benefit Admin,COO,POWYS COUNTY COUNCIL,2023605997,"72,208"
Department for Work and Pensions,Jobcentre Plus,22-Dec-11,COMPUTER SERVICES,Change PMU,ATOS ORIGIN IT SERVICES UK LTD,2023695824,"72,100"
Department for Work and Pensions,Housing Benefits,14-Dec-11,Housing Benefit Admin,COO,WYRE FOREST DISTRICT COUNCIL,2023606125,"71,827"
Department for Work and Pensions,Employment Programmes,12-Dec-11,EP PROVIDER PAYMENT - NON-WORK PROGRAMME,COO,JHP GROUP LTD,2023533070,"71,410"
Department for Work and Pensions,Housing Benefits,14-Dec-11,Housing Benefit Admin,COO,EAST STAFFORDSHIRE DISTRICT COUNCIL,2023605854,"71,233"
Department for Work and Pensions,Housing Benefits,14-Dec-11,Housing Benefit Admin,COO,SEDGEMOOR DISTRICT COUNCIL,2023606023,"71,065"
Department for Work and Pensions,Housing Benefits,14-Dec-11,Housing Benefit Admin,COO,SOUTH KESTEVEN DISTRICT COUNCIL,2023606040,"70,457"
Department for Work and Pensions,Housing Benefits,14-Dec-11,Housing Benefit Admin,COO,GEDLING BOROUGH COUNCIL,2023605873,"70,119"
Department for Work and Pensions,Corporate,30-Dec-11,ACCOMMODATION,F&C,TELEREAL TRILLIUM,2023772051,"69,808"
Department for Work and Pensions,Housing Benefits,14-Dec-11,Housing Benefit Admin,COO,HARLOW DISTRICT COUNCIL,2023605884,"69,793"
Department for Work and Pensions,Housing Benefits,14-Dec-11,Housing Benefit Admin,COO,WORTHING BOROUGH COUNCIL,2023606120,"69,308"
Department for Work and Pensions,Employment Programmes,23-Dec-11,EP PROVIDER PAYMENT - WORK PROGRAMME,COO,A4E LTD,2023706813,"69,200"
Department for Work and Pensions,Jobcentre Plus,29-Dec-11,APPS DEV,Change PMU,HP ENTERPRISE SERVICES UK LTD,2023774101,"68,890"
Department for Work and Pensions,Housing Benefits,14-Dec-11,Housing Benefit Admin,COO,CHELTENHAM BOROUGH COUNCIL,2023605802,"68,832"
Department for Work and Pensions,Employment Programmes,20-Dec-11,EP PROVIDER PAYMENT - WORK PROGRAMME,COO,CAREERS DEVELOPMENT GROUP,2023622126,"68,800"
Department for Work and Pensions,Corporate,14-Dec-11,IS/IT,CIT,SPECIALIST COMPUTER CENTRES PLC,2023598820,"68,712"
Department for Work and Pensions,Housing Benefits,14-Dec-11,Housing Benefit Admin,COO,CAMBRIDGE CITY COUNCIL,2023605792,"68,579"
Department for Work and Pensions,Corporate,16-Dec-11,OTHER EXPENDITURE,My Civil Seevice Pension,XAFINITY CLAYBROOK,2023614695,"68,508"
Department for Work and Pensions,Housing Benefits,14-Dec-11,Housing Benefit Admin,COO,DENBIGHSHIRE COUNTY COUNCIL,2023605833,"68,208"
Department for Work and Pensions,Corporate,16-Dec-11,COMPUTER SERVICES,Change PMU,ACCENTURE UK LTD,2023611585,"67,741"
Department for Work and Pensions,Housing Benefits,14-Dec-11,Housing Benefit Admin,COO,GRAVESHAM BOROUGH COUNCIL,2023605876,"67,731"
Department for Work and Pensions,Housing Benefits,14-Dec-11,Housing Benefit Admin,COO,WEST LANCASHIRE DISTRICT COUNCIL,2023606105,"66,807"
Department for Work and Pensions,Employment Programmes,06-Dec-11,EP PROVIDER PAYMENT - WORK PROGRAMME,COO,A4E LTD,2023451887,"66,800"
Department for Work and Pensions,"Pension, Disability Carers Services",05-Dec-11,TELEPHONE AND POSTAGE,COO,ROYAL MAIL GROUP PLC,2023449928,"66,799"
Department for Work and Pensions,Housing Benefits,14-Dec-11,Housing Benefit Admin,COO,BROXBOURNE BOROUGH COUNCIL,2023605786,"66,664"
Department for Work and Pensions,Housing Benefits,14-Dec-11,Housing Benefit Admin,COO,GUILDFORD BOROUGH COUNCIL,2023605878,"66,363"
Department for Work and Pensions,Housing Benefits,14-Dec-11,Housing Benefit Admin,COO,WARWICK DISTRICT COUNCIL,2023606095,"66,314"
Department for Work and Pensions,Housing Benefits,14-Dec-11,Housing Benefit Admin,COO,REIGATE & BANSTEAD BOROUGH COUNCIL,2023606002,"66,240"
Department for Work and Pensions,Housing Benefits,14-Dec-11,Housing Benefit Admin,COO,EAST DEVON DISTRICT COUNCIL,2023605844,"66,196"
Department for Work and Pensions,Housing Benefits,14-Dec-11,Housing Benefit Admin,COO,ASHFORD BOROUGH COUNCIL,2023605754,"66,138"
Department for Work and Pensions,Housing Benefits,02-Dec-11,PROFESSIONAL FEES,COO,EXPERIAN LTD,2023444210,"65,918"
Department for Work and Pensions,Corporate,14-Dec-11,COMPUTER SERVICES,CIT,HP ENTERPRISE SERVICES UK LTD,2023562579,"65,898"
Department for Work and Pensions,Housing Benefits,14-Dec-11,Housing Benefit Admin,COO,TAUNTON DEANE BOROUGH COUNCIL,2023606074,"65,246"
Department for Work and Pensions,Corporate,09-Dec-11,COMPUTER SERVICES,CIT,DETICA LTD,2023526805,"64,978"
Department for Work and Pensions,Housing Benefits,14-Dec-11,Housing Benefit Admin,COO,NORTH DEVON DISTRICT COUNCIL,2023605968,"64,957"
Department for Work and Pensions,Corporate,30-Dec-11,ACCOMMODATION,F&C,TELEREAL TRILLIUM,2023772055,"64,600"
Department for Work and Pensions,Corporate,30-Dec-11,PRINCES YOUTH TRUST,Change PMU,LONDON BOROUGH OF NEWHAM,1005059,"64,563"
Department for Work and Pensions,Housing Benefits,14-Dec-11,Housing Benefit Admin,COO,WORCESTER CITY COUNCIL,2023606119,"64,477"
Department for Work and Pensions,Housing Benefits,14-Dec-11,Housing Benefit Admin,COO,WELWYN HATFIELD DISTRICT COUNCIL,2023606100,"64,239"
Department for Work and Pensions,Housing Benefits,14-Dec-11,Housing Benefit Admin,COO,NORTH NORFOLK DISTRICT COUNCIL,2023605976,"64,072"
Department for Work and Pensions,Housing Benefits,14-Dec-11,Housing Benefit Admin,COO,MENDIP DISTRICT COUNCIL,2023605951,"64,055"
Department for Work and Pensions,Employment Programmes,14-Dec-11,EP PROVIDER PAYMENT - WORK PROGRAMME,COO,WORKING LINKS,2023603064,"64,000"
Department for Work and Pensions,Housing Benefits,14-Dec-11,Housing Benefit Admin,COO,CITY OF CARLISLE DISTRICT COUNCIL,2023605811,"63,983"
Department for Work and Pensions,Housing Benefits,14-Dec-11,Housing Benefit Admin,COO,WINDSOR & MAIDENHEAD BOROUGH COUNCIL,2023606114,"63,911"
Department for Work and Pensions,Employment Programmes,12-Dec-11,EP PROVIDER PAYMENT - NON-WORK PROGRAMME,COO,A4E LTD,2023530338,"63,650"
Department for Work and Pensions,Housing Benefits,14-Dec-11,Housing Benefit Admin,COO,BLAENAU GWENT COUNTY BOROUGH COUNCIL,2023605768,"63,461"
Department for Work and Pensions,Housing Benefits,14-Dec-11,Housing Benefit Admin,COO,EPPING FOREST DISTRICT COUNCIL,2023605860,"63,296"
Department for Work and Pensions,Housing Benefits,14-Dec-11,Housing Benefit Admin,COO,CANNOCK CHASE DISTRICT COUNCIL,2023605793,"63,108"
Department for Work and Pensions,Housing Benefits,14-Dec-11,Housing Benefit Admin,COO,HERTSMERE BOROUGH COUNCIL,2023605891,"62,878"
Department for Work and Pensions,Housing Benefits,14-Dec-11,Housing Benefit Admin,COO,ARGYLL & BUTE COUNCIL,2023605751,"62,865"
Department for Work and Pensions,Corporate,30-Dec-11,ACCOMMODATION,F&C,TELEREAL TRILLIUM,2023772053,"62,736"
Department for Work and Pensions,Corporate,09-Dec-11,TEMPORARY (TEMP) STAFF COSTS,CIT,CAPITA RESOURCING LTD,2023526698,"62,710"
Department for Work and Pensions,Jobcentre Plus,29-Dec-11,APPS DEV,COO,HP ENTERPRISE SERVICES UK LTD,2023774101,"62,233"
Department for Work and Pensions,European Social Fund,14-Dec-11,ESF Expenditure,STR,NEWHAVEN COMMUNITY DEVELOPMENT ASSOCIATION,5000000821,"62,177"
Department for Work and Pensions,Corporate,30-Dec-11,PRINCES YOUTH TRUST,Change PMU,BARNSLEY METROPOLITAN BOROUGH COUNCIL,1005054,"62,113"
Department for Work and Pensions,Housing Benefits,14-Dec-11,Housing Benefit Admin,COO,ALLERDALE DISTRICT COUNCIL,2023605748,"61,755"
Department for Work and Pensions,Housing Benefits,14-Dec-11,Housing Benefit Admin,COO,WEALDEN DISTRICT COUNCIL,2023606099,"61,582"
Department for Work and Pensions,Housing Benefits,14-Dec-11,Housing Benefit Admin,COO,NEWARK DISTRICT COUNCIL,2023605963,"61,494"
Department for Work and Pensions,Corporate,02-Dec-11,PROFESSIONAL FEES,PS,INSTITUTE FOR EMPLOYMENT STUDIES,2023444363,"60,700"
Department for Work and Pensions,Housing Benefits,14-Dec-11,Housing Benefit Admin,COO,TONBRIDGE & MALLING DISTRICT COUNCIL,2023606083,"60,672"
Department for Work and Pensions,Housing Benefits,14-Dec-11,Housing Benefit Admin,COO,CHICHESTER DISTRICT COUNCIL,2023605807,"60,573"
Department for Work and Pensions,Housing Benefits,14-Dec-11,Housing Benefit Admin,COO,EAST HERTFORDSHIRE DISTRICT COUNCIL,2023605848,"60,402"
Department for Work and Pensions,Employment Programmes,14-Dec-11,EP PROVIDER PAYMENT - WORK PROGRAMME,COO,CAREERS DEVELOPMENT GROUP,2023549933,"60,400"
Department for Work and Pensions,Corporate,05-Dec-11,IS/IT,CIT,HP ENTERPRISE SERVICES UK LTD,2023449052,"60,335"
Department for Work and Pensions,Housing Benefits,14-Dec-11,Housing Benefit Admin,COO,GOSPORT BOROUGH COUNCIL,2023605875,"59,919"
Department for Work and Pensions,Corporate,30-Dec-11,ACCOMMODATION,F&C,TELEREAL TRILLIUM,2023772053,"59,691"
Department for Work and Pensions,Housing Benefits,14-Dec-11,Housing Benefit Admin,COO,WATFORD BOROUGH COUNCIL,2023606096,"59,615"
Department for Work and Pensions,Housing Benefits,14-Dec-11,Housing Benefit Admin,COO,STEVENAGE BOROUGH COUNCIL,2023606058,"59,462"
Department for Work and Pensions,Housing Benefits,14-Dec-11,Housing Benefit Admin,COO,SOUTH NORFOLK DISTRICT COUNCIL,2023606043,"59,382"
Department for Work and Pensions,Housing Benefits,14-Dec-11,Housing Benefit Admin,COO,SUFFOLK COASTAL DISTRICT COUNCIL,2023606065,"59,230"
Department for Work and Pensions,Housing Benefits,14-Dec-11,Housing Benefit Admin,COO,EAST LOTHIAN DISTRICT COUNCIL,2023605850,"58,888"
Department for Work and Pensions,Employment Programmes,14-Dec-11,EP PROVIDER PAYMENT - WORK PROGRAMME,COO,INGEUS UK LTD,2023563059,"58,800"
Department for Work and Pensions,Employment Programmes,22-Dec-11,EP PROVIDER PAYMENT - WORK PROGRAMME,COO,A4E LTD,2023695789,"58,400"
Department for Work and Pensions,Employment Programmes,06-Dec-11,EP PROVIDER PAYMENT - WORK PROGRAMME,COO,INGEUS UK LTD,2023453910,"58,400"
Department for Work and Pensions,Jobcentre Plus,22-Dec-11,EMPLOYMENT PROGRAMMES,Excluded,CORNWALL COUNTY COUNCIL,2023696163,"58,333"
Department for Work and Pensions,Jobcentre Plus,01-Dec-11,EMPLOYMENT PROGRAMMES,Excluded,CORNWALL COUNTY COUNCIL,2023436858,"58,333"
Department for Work and Pensions,Housing Benefits,14-Dec-11,Housing Benefit Admin,COO,BRACKNELL FOREST BOROUGH COUNCIL,2023605776,"57,945"
Department for Work and Pensions,Housing Benefits,14-Dec-11,Housing Benefit Admin,COO,ROTHER DISTRICT COUNCIL,2023606010,"57,903"
Department for Work and Pensions,Corporate,16-Dec-11,BANKING AND ENCASHMENT COSTS,F&C,HSBC BANK PLC,2023613444,"57,530"
Department for Work and Pensions,Employment Programmes,12-Dec-11,EP PROVIDER PAYMENT - NON-WORK PROGRAMME,COO,A4E LTD,2023530338,"57,372"
Department for Work and Pensions,Jobcentre Plus,30-Dec-11,ACCOMMODATION COSTS,COO,TELEREAL TRILLIUM,2023772054,"57,322"
Department for Work and Pensions,Housing Benefits,14-Dec-11,Housing Benefit Admin,COO,BROXTOWE BOROUGH COUNCIL,2023605787,"57,302"
Department for Work and Pensions,Corporate,09-Dec-11,TEMPORARY (TEMP) STAFF COSTS,CIT,CAPITA RESOURCING LTD,2023526698,"57,280"
Department for Work and Pensions,Housing Benefits,14-Dec-11,Housing Benefit Admin,COO,STRATFORD ON AVON DISTRICT COUNCIL,2023606063,"57,238"
Department for Work and Pensions,Housing Benefits,14-Dec-11,Housing Benefit Admin,COO,RUGBY BOROUGH COUNCIL,2023606013,"57,209"
Department for Work and Pensions,Housing Benefits,14-Dec-11,Housing Benefit Admin,COO,BARROW BOROUGH COUNCIL,2023605758,"56,861"
Department for Work and Pensions,Housing Benefits,14-Dec-11,Housing Benefit Admin,COO,ST EDMUNDSBURY BOROUGH COUNCIL,2023606054,"56,680"
Department for Work and Pensions,Employment Programmes,12-Dec-11,EP PROVIDER PAYMENT - NON-WORK PROGRAMME,COO,INGEUS UK LTD,2023532883,"56,474"
Department for Work and Pensions,Housing Benefits,14-Dec-11,Housing Benefit Admin,COO,CHORLEY BOROUGH COUNCIL,2023605809,"56,458"
Department for Work and Pensions,Employment Programmes,05-Dec-11,YOUNG PERSON'S GUARANTEE,COO,CITY & COUNTY OF SWANSEA,2023447053,"56,400"
Department for Work and Pensions,Jobcentre Plus,19-Dec-11,EMPLOYMENT ZONES,COO,MOVING ON DANSA LTD,2023619407,"56,245"
Department for Work and Pensions,Housing Benefits,14-Dec-11,Housing Benefit Admin,COO,LEWES DISTRICT COUNCIL,2023605911,"56,193"
Department for Work and Pensions,Housing Benefits,14-Dec-11,Housing Benefit Admin,COO,BOROUGH OF REDDITCH,2023605771,"56,169"
Department for Work and Pensions,Housing Benefits,14-Dec-11,Housing Benefit Admin,COO,TUNBRIDGE WELLS BOROUGH COUNCIL,2023606088,"55,959"
Department for Work and Pensions,Housing Benefits,14-Dec-11,Housing Benefit Admin,COO,RUSHMOOR BOROUGH COUNCIL,2023606016,"55,901"
Department for Work and Pensions,Housing Benefits,14-Dec-11,Housing Benefit Admin,COO,WYCHAVON DISTRICT COUNCIL,2023606122,"55,778"
Department for Work and Pensions,Corporate,14-Dec-11,AOS CONTRACTED OUT SERVICES,PS,CLUB 24 LTD T/A VENTURA,2023549965,"55,748"
Department for Work and Pensions,Housing Benefits,14-Dec-11,Housing Benefit Admin,COO,STROUD DISTRICT COUNCIL,2023606064,"55,411"
Department for Work and Pensions,Housing Benefits,14-Dec-11,Housing Benefit Admin,COO,ELMBRIDGE BOROUGH COUNCIL,2023605859,"55,151"
Department for Work and Pensions,"Pension, Disability Carers Services",29-Dec-11,APPS DEV,CIT,HP ENTERPRISE SERVICES UK LTD,2023774101,"55,020"
Department for Work and Pensions,Corporate,02-Dec-11,PROFESSIONAL FEES,F&C,DRIVERS JONAS,2023444156,"55,000"
Department for Work and Pensions,Housing Benefits,14-Dec-11,Housing Benefit Admin,COO,SOUTH RIBBLE BOROUGH COUNCIL C,2023606046,"54,828"
Department for Work and Pensions,Housing Benefits,14-Dec-11,Housing Benefit Admin,COO,WEST LINDSEY DISTRICT COUNCIL,2023606106,"54,699"
Department for Work and Pensions,Housing Benefits,14-Dec-11,Housing Benefit Admin,COO,BOROUGH OF WELLINGBOROUGH,2023605773,"54,483"
Department for Work and Pensions,Housing Benefits,14-Dec-11,Housing Benefit Admin,COO,EASTLEIGH BOROUGH COUNCIL,2023605856,"54,293"
Department for Work and Pensions,Housing Benefits,14-Dec-11,Housing Benefit Admin,COO,TEST VALLEY BOROUGH COUNCIL,2023606077,"54,275"
Department for Work and Pensions,Housing Benefits,14-Dec-11,Housing Benefit Admin,COO,MIDLOTHIAN COUNCIL,2023605957,"54,224"
Department for Work and Pensions,Corporate,05-Dec-11,TELEPHONE AND POSTAGE,F&C,ROYAL MAIL GROUP PLC,2023449928,"54,224"
Department for Work and Pensions,Housing Benefits,14-Dec-11,Housing Benefit Admin,COO,BOLSOVER DISTRICT COUNCIL,2023605769,"54,204"
Department for Work and Pensions,Housing Benefits,14-Dec-11,Housing Benefit Admin,COO,DARTFORD BOROUGH COUNCIL,2023605831,"53,981"
Department for Work and Pensions,Housing Benefits,14-Dec-11,Housing Benefit Admin,COO,HIGH PEAK BOROUGH COUNCIL,2023605892,"53,861"
Department for Work and Pensions,Housing Benefits,14-Dec-11,Housing Benefit Admin,COO,KETTERING BOROUGH COUNCIL,2023605902,"53,668"
Department for Work and Pensions,Employment Programmes,29-Dec-11,EP PROVIDER PAYMENT - WORK PROGRAMME,COO,TNG WORKZONE LTD,2023775301,"53,580"
Department for Work and Pensions,Corporate,05-Dec-11,COMPUTER SERVICES,CIT,TESCO MOBILE LTD,2023450214,"53,554"
Department for Work and Pensions,Housing Benefits,14-Dec-11,Housing Benefit Admin,COO,STAFFORD BOROUGH COUNCIL,2023606056,"53,477"
Department for Work and Pensions,Housing Benefits,14-Dec-11,Housing Benefit Admin,COO,ST ALBANS DISTRICT COUNCIL,2023606053,"53,217"
Department for Work and Pensions,Employment Programmes,12-Dec-11,EMPLOYMENT INITIATIVES,COO,REED IN PARTNERSHIP HACKNEY LTD,2023533793,"52,893"
Department for Work and Pensions,Employment Programmes,23-Dec-11,EP PROVIDER PAYMENT - WORK PROGRAMME,COO,AVANTA ENTERPRISE LTD,2023706853,"52,800"
Department for Work and Pensions,Corporate,16-Dec-11,COMPUTER SERVICES,CIT,ATOS ORIGIN IT SERVICES UK LTD,2023611616,"52,719"
Department for Work and Pensions,Housing Benefits,14-Dec-11,Housing Benefit Admin,COO,SEVENOAKS DISTRICT COUNCIL,2023606026,"52,703"
Department for Work and Pensions,Housing Benefits,14-Dec-11,Housing Benefit Admin,COO,NORTH EAST DERBYSHIRE DISTRICT COUNCIL,2023605970,"52,479"
Department for Work and Pensions,Housing Benefits,14-Dec-11,Housing Benefit Admin,COO,VALE OF WHITE HORSE DISTRICT COUNCIL,2023606091,"52,472"
Department for Work and Pensions,"Pension, Disability Carers Services",06-Dec-11,APPS DEV,CIT,HP ENTERPRISE SERVICES UK LTD,2023453862,"52,363"
Department for Work and Pensions,Housing Benefits,14-Dec-11,Housing Benefit Admin,COO,WEYMOUTH & PORTLAND BOROUGH COUNCIL,2023606110,"52,141"
Department for Work and Pensions,Employment Programmes,12-Dec-11,EP PROVIDER PAYMENT - NON-WORK PROGRAMME,COO,INGEUS UK LTD,2023532883,"52,086"
Department for Work and Pensions,Corporate,06-Dec-11,APPS DEV,CIT,HP ENTERPRISE SERVICES UK LTD,2023453862,"51,967"
Department for Work and Pensions,Housing Benefits,14-Dec-11,Housing Benefit Admin,COO,BROADLAND DISTRICT COUNCIL,2023605784,"51,871"
Department for Work and Pensions,Housing Benefits,14-Dec-11,Housing Benefit Admin,COO,WEST DORSET DISTRICT COUNCIL,2023606103,"51,703"
Department for Work and Pensions,Corporate,14-Dec-11,AMS,CIT,HP ENTERPRISE SERVICES UK LTD,2023562579,"51,630"
Department for Work and Pensions,Employment Programmes,14-Dec-11,EP PROVIDER PAYMENT - WORK PROGRAMME,COO,INGEUS UK LTD,2023563059,"51,600"
Department for Work and Pensions,Jobcentre Plus,09-Dec-11,MEDICAL SERVICES,Change PMU,ATOS HEALTHCARE,2023526562,"51,553"
Department for Work and Pensions,Housing Benefits,14-Dec-11,Housing Benefit Admin,COO,MID SUSSEX DISTRICT COUNCIL,2023605955,"51,302"
Department for Work and Pensions,Housing Benefits,14-Dec-11,Housing Benefit Admin,COO,CASTLE POINT DISTRICT COUNCIL,2023605797,"51,273"
Department for Work and Pensions,Housing Benefits,14-Dec-11,Housing Benefit Admin,COO,SOUTH HOLLAND DISTRICT COUNCIL,2023606039,"51,269"
Department for Work and Pensions,Employment Programmes,14-Dec-11,EP PROVIDER PAYMENT - WORK PROGRAMME,COO,BEST LTD,2023545025,"51,200"
Department for Work and Pensions,Employment Programmes,06-Dec-11,EP PROVIDER PAYMENT - WORK PROGRAMME,COO,INGEUS UK LTD,2023453910,"51,200"
Department for Work and Pensions,Housing Benefits,14-Dec-11,Housing Benefit Admin,COO,EAST HAMPSHIRE DISTRICT COUNCIL,2023605847,"51,086"
Department for Work and Pensions,Housing Benefits,14-Dec-11,Housing Benefit Admin,COO,MERTHYR TYDFIL BOROUGH COUNCIL,2023605952,"50,998"
Department for Work and Pensions,Jobcentre Plus,29-Dec-11,APPS DEV,Change PMU,HP ENTERPRISE SERVICES UK LTD,2023774101,"50,767"
Department for Work and Pensions,Housing Benefits,14-Dec-11,Housing Benefit Admin,COO,ROSSENDALE BOROUGH COUNCIL,2023606009,"50,717"
Department for Work and Pensions,European Social Fund,13-Dec-11,ESF Expenditure,STR,LIVERPOOL CHAMBER OF COMMERCE,5000000812,"50,628"
Department for Work and Pensions,Corporate,21-Dec-11,TELEPHONE AND POSTAGE,F&C,UK MAIL,2023690914,"50,492"
Department for Work and Pensions,Employment Programmes,23-Dec-11,EP PROVIDER PAYMENT - WORK PROGRAMME,COO,A4E LTD,2023706813,"50,400"
Department for Work and Pensions,Corporate,30-Dec-11,PRINCES YOUTH TRUST,Change PMU,SURREY COUNTY COUNCIL,1005063,"50,271"
Department for Work and Pensions,Housing Benefits,14-Dec-11,Housing Benefit Admin,COO,WAVERLEY BOROUGH COUNCIL,2023606098,"50,074"
Department for Work and Pensions,"Pension, Disability Carers Services",02-Dec-11,CONTRACTED OUT SERVICES,COO,PROMOTIONAL LOGISTICS LTD,2023444882,"49,770"
Department for Work and Pensions,Housing Benefits,14-Dec-11,Housing Benefit Admin,COO,SOUTH STAFFORDSHIRE DISTRICT COUNCIL,2023606048,"49,608"
Department for Work and Pensions,Housing Benefits,14-Dec-11,Housing Benefit Admin,COO,NORTH WEST LEICESTER DISTRICT COUNCIL,2023605980,"49,400"
Department for Work and Pensions,Housing Benefits,14-Dec-11,Housing Benefit Admin,COO,CORBY BOROUGH COUNCIL,2023605820,"49,279"
Department for Work and Pensions,Housing Benefits,14-Dec-11,Housing Benefit Admin,COO,HORSHAM DISTRICT COUNCIL,2023605895,"49,267"
Department for Work and Pensions,Housing Benefits,14-Dec-11,Housing Benefit Admin,COO,HINCKLEY & BOSWORTH BOROUGH COUNCIL,2023605894,"49,143"
Department for Work and Pensions,Housing Benefits,14-Dec-11,Housing Benefit Admin,COO,SOUTH CAMBRIDGESHIRE DISTRICT COUNCIL,2023606035,"49,139"
Department for Work and Pensions,Corporate,23-Dec-11,COMPUTER SERVICES,CIT,CAPGEMINI UK PLC,2023712750,"48,913"
Department for Work and Pensions,Housing Benefits,14-Dec-11,Housing Benefit Admin,COO,FOREST OF DEAN DISTRICT COUNCIL,2023605870,"48,808"
Department for Work and Pensions,Employment Programmes,14-Dec-11,EP PROVIDER PAYMENT - WORK PROGRAMME,COO,AVANTA ENTERPRISE LTD,2023543985,"48,800"
Department for Work and Pensions,Employment Programmes,19-Dec-11,EP PROVIDER PAYMENT - WORK PROGRAMME,COO,CAREERS DEVELOPMENT GROUP,2023616409,"48,800"
Department for Work and Pensions,Employment Programmes,12-Dec-11,EP PROVIDER PAYMENT - NON-WORK PROGRAMME,COO,CAPITAL TRAINING GROUP LTD,2023530557,"48,748"
Department for Work and Pensions,Jobcentre Plus,01-Dec-11,EMPLOYMENT PROGRAMMES,Excluded,INGEUS UK LTD,2023438619,"48,632"
Department for Work and Pensions,Corporate,30-Dec-11,ACCOMMODATION,F&C,TELEREAL TRILLIUM,2023772053,"48,599"
Department for Work and Pensions,Corporate,30-Dec-11,ACCOMMODATION,F&C,TELEREAL TRILLIUM,2023772051,"48,580"
Department for Work and Pensions,Jobcentre Plus,08-Dec-11,EMPLOYMENT PROGRAMMES,Excluded,SHAW TRUST LTD,2023524725,"48,522"
Department for Work and Pensions,Housing Benefits,14-Dec-11,Housing Benefit Admin,COO,SPELTHORNE BOROUGH COUNCIL,2023606052,"48,436"
Department for Work and Pensions,Employment Programmes,22-Dec-11,EP PROVIDER PAYMENT - WORK PROGRAMME,COO,A4E LTD,2023695789,"48,400"
Department for Work and Pensions,Housing Benefits,14-Dec-11,Housing Benefit Admin,COO,NORTH KESTEVEN DISTRICT COUNCIL,2023605973,"48,177"
Department for Work and Pensions,Housing Benefits,14-Dec-11,Housing Benefit Admin,COO,SOUTH OXFORDSHIRE DISTRICT COUNCIL,2023606045,"48,080"
Department for Work and Pensions,Corporate,13-Dec-11,APPS DEV,Change PMU,HP ENTERPRISE SERVICES UK LTD,2023536459,"48,007"
Department for Work and Pensions,Housing Benefits,14-Dec-11,Housing Benefit Admin,COO,THE MORAY COUNCIL,2023606080,"47,965"
Department for Work and Pensions,Corporate,16-Dec-11,AOS CONTRACTED OUT SERVICES,F&C,IQOR RECOVERY SERVICES LTD,2023613474,"47,757"
Department for Work and Pensions,Housing Benefits,14-Dec-11,Housing Benefit Admin,COO,LICHFIELD DISTRICT COUNCIL,2023605912,"47,741"
Department for Work and Pensions,Housing Benefits,14-Dec-11,Housing Benefit Admin,COO,COPELAND BOROUGH COUNCIL,2023605819,"47,635"
Department for Work and Pensions,Employment Programmes,21-Dec-11,EP PROVIDER PAYMENT - WORK PROGRAMME,COO,CAREERS DEVELOPMENT GROUP,2023638542,"47,600"
Department for Work and Pensions,Employment Programmes,06-Dec-11,EP PROVIDER PAYMENT - WORK PROGRAMME,COO,SEETEC BUSINESS TECHNOLOGY CENTRE LTD,2023455670,"47,600"
Department for Work and Pensions,Jobcentre Plus,16-Dec-11,OTHER GOODS AND SERVICES,COO,MET OFFICE,2023614026,"47,546"
Department for Work and Pensions,Corporate,06-Dec-11,NETWORK,CIT,BT GLOBAL SERVICES,2023452010,"47,406"
Department for Work and Pensions,Housing Benefits,14-Dec-11,Housing Benefit Admin,COO,EAST DUNBARTONSHIRE COUNCIL,2023605846,"46,979"
Department for Work and Pensions,Corporate,22-Dec-11,COMPUTER SERVICES,Change PMU,ACCENTURE UK LTD,2023695794,"46,683"
Department for Work and Pensions,Corporate,30-Dec-11,ACCOMMODATION,F&C,TELEREAL TRILLIUM,2023772055,"46,562"
Department for Work and Pensions,Employment Programmes,12-Dec-11,RESIDENTIAL TRAINING,COO,RNIB ROYAL NATIONAL INSTITUTE FOR THE BLIND,618472,"46,543"
Department for Work and Pensions,Housing Benefits,14-Dec-11,Housing Benefit Admin,COO,MONMOUTHSHIRE COUNTY  COUNCIL,2023605960,"46,448"
Department for Work and Pensions,Housing Benefits,14-Dec-11,Housing Benefit Admin,COO,SOUTH HAMS DISTRICT COUNCIL,2023606038,"46,266"
Department for Work and Pensions,Housing Benefits,14-Dec-11,Housing Benefit Admin,COO,STIRLING COUNCIL,2023606059,"46,099"
Department for Work and Pensions,Housing Benefits,14-Dec-11,Housing Benefit Admin,COO,WEST OXFORDSHIRE DISTRICT COUNCIL,2023606108,"46,058"
Department for Work and Pensions,Corporate,05-Dec-11,TEMPORARY (TEMP) STAFF COSTS,CIT,CAPITA RESOURCING LTD,2023447042,"45,825"
Department for Work and Pensions,Housing Benefits,14-Dec-11,Housing Benefit Admin,COO,WOKINGHAM DISTRICT COUNCIL,2023606117,"45,811"
Department for Work and Pensions,Housing Benefits,14-Dec-11,Housing Benefit Admin,COO,WOKING BOROUGH COUNCIL,2023606116,"45,675"
Department for Work and Pensions,Employment Programmes,06-Dec-11,EP PROVIDER PAYMENT - WORK PROGRAMME,COO,INGEUS UK LTD,2023453910,"45,600"
Department for Work and Pensions,Corporate,23-Dec-11,TEMPORARY (TEMP) STAFF COSTS,CIT,CAPITA RESOURCING LTD,2023712752,"45,557"
Department for Work and Pensions,Housing Benefits,14-Dec-11,Housing Benefit Admin,COO,ISLE OF ANGLESEY COUNTY COUNCIL,2023605900,"45,478"
Department for Work and Pensions,Corporate,30-Dec-11,ACCOMMODATION,F&C,TELEREAL TRILLIUM,2023772051,"45,334"
Department for Work and Pensions,Corporate,06-Dec-11,APPS DEV,Change PMU,HP ENTERPRISE SERVICES UK LTD,2023453862,"45,014"
Department for Work and Pensions,Corporate,20-Dec-11,STAFF COSTS,HRD,ELISHA TRAINING LTD,2023622806,"44,990"
Department for Work and Pensions,"Pension, Disability Carers Services",13-Dec-11,COMPUTER SERVICES,CIT,HP ENTERPRISE SERVICES UK LTD,2023536459,"44,955"
Department for Work and Pensions,Housing Benefits,14-Dec-11,Housing Benefit Admin,COO,TAMWORTH BOROUGH COUNCIL,2023606072,"44,914"
Department for Work and Pensions,Housing Benefits,14-Dec-11,Housing Benefit Admin,COO,WINCHESTER CITY COUNCIL,2023606113,"44,807"
Department for Work and Pensions,Employment Programmes,22-Dec-11,EP PROVIDER PAYMENT - WORK PROGRAMME,COO,A4E LTD,2023695789,"44,800"
Department for Work and Pensions,Jobcentre Plus,15-Dec-11,COMPUTER SERVICES,COO,ATOS ORIGIN IT SERVICES UK LTD,2023606338,"44,579"
Department for Work and Pensions,Employment Programmes,23-Dec-11,EP PROVIDER PAYMENT - WORK PROGRAMME,COO,A4E LTD,2023706813,"44,400"
Department for Work and Pensions,Housing Benefits,14-Dec-11,Housing Benefit Admin,COO,EAST NORTHANTS DISTRICT COUNCIL,2023605851,"44,176"
Department for Work and Pensions,Corporate,19-Dec-11,ACCOMMODATION COSTS,F&C,TELEREAL TRILLIUM,2023620053,"44,127"
Department for Work and Pensions,Corporate,30-Dec-11,ACCOMMODATION,F&C,TELEREAL TRILLIUM,2023772055,"43,862"
Department for Work and Pensions,Corporate,30-Dec-11,ACCOMMODATION,F&C,TELEREAL TRILLIUM,2023772051,"43,734"
Department for Work and Pensions,Employment Programmes,12-Dec-11,EP PROVIDER PAYMENT - NON-WORK PROGRAMME,COO,WORKING LINKS,2023534263,"43,546"
Department for Work and Pensions,Housing Benefits,14-Dec-11,Housing Benefit Admin,COO,BOSTON BOROUGH COUNCIL,2023605774,"43,363"
Department for Work and Pensions,Jobcentre Plus,01-Dec-11,EMPLOYMENT PROGRAMMES,Excluded,SHAW TRUST LTD,2023440377,"43,256"
Department for Work and Pensions,Housing Benefits,14-Dec-11,Housing Benefit Admin,COO,FAREHAM BOROUGH COUNCIL,2023605865,"43,228"
Department for Work and Pensions,Employment Programmes,16-Dec-11,EP PROVIDER PAYMENT - WORK PROGRAMME,COO,CAREERS DEVELOPMENT GROUP,2023611805,"43,200"
Department for Work and Pensions,Corporate,13-Dec-11,APPS DEV,PS,HP ENTERPRISE SERVICES UK LTD,2023536459,"42,896"
Department for Work and Pensions,Employment Programmes,21-Dec-11,EP PROVIDER PAYMENT - NON-WORK PROGRAMME,COO,SEETEC BUSINESS TECHNOLOGY CENTRE LTD,2023688113,"42,895"
Department for Work and Pensions,Housing Benefits,14-Dec-11,Housing Benefit Admin,COO,CEREDIGION COUNTY COUNCIL,2023605799,"42,774"
Department for Work and Pensions,Corporate,02-Dec-11,AOS CONTRACTED OUT SERVICES,My Civil Seevice Pension,CAPITA BUSINESS SERVICES LTD,2023442860,"42,500"
Department for Work and Pensions,Housing Benefits,14-Dec-11,Housing Benefit Admin,COO,THREE RIVERS DISTRICT COUNCIL,2023606081,"42,440"
Department for Work and Pensions,Corporate,13-Dec-11,COMPUTER SERVICES,CIT,BT GLOBAL SERVICES,2023535593,"42,420"
Department for Work and Pensions,Housing Benefits,14-Dec-11,Housing Benefit Admin,COO,STAFFORDSHIRE MOORLANDS DISTRICT COUNCIL,2023606057,"42,195"
Department for Work and Pensions,Employment Programmes,06-Dec-11,EP PROVIDER PAYMENT - WORK PROGRAMME,COO,AVANTA ENTERPRISE LTD,2023451913,"42,000"
Department for Work and Pensions,Employment Programmes,06-Dec-11,EP PROVIDER PAYMENT - WORK PROGRAMME,COO,INGEUS UK LTD,2023453910,"42,000"
Department for Work and Pensions,Employment Programmes,29-Dec-11,EP PROVIDER PAYMENT - WORK PROGRAMME,COO,INGEUS UK LTD,2023774131,"42,000"
Department for Work and Pensions,Employment Programmes,09-Dec-11,EP PROVIDER PAYMENT - WORK PROGRAMME,COO,MAXIMUS EMPLOYMENT UK LTD,2023528455,"42,000"
Department for Work and Pensions,Housing Benefits,14-Dec-11,Housing Benefit Admin,COO,TORRIDGE DISTRICT COUNCIL,2023606086,"41,926"
Department for Work and Pensions,Housing Benefits,14-Dec-11,Housing Benefit Admin,COO,SOUTH LAKELAND DISTRICT COUNCIL,2023606041,"41,699"
Department for Work and Pensions,Housing Benefits,14-Dec-11,Housing Benefit Admin,COO,RUNNYMEDE BOROUGH COUNCIL,2023606014,"41,666"
Department for Work and Pensions,Housing Benefits,14-Dec-11,Housing Benefit Admin,COO,BABERGH DISTRICT COUNCIL,2023605756,"41,488"
Department for Work and Pensions,Corporate,30-Dec-11,ACCOMMODATION,F&C,TELEREAL TRILLIUM,2023772055,"41,442"
Department for Work and Pensions,Housing Benefits,14-Dec-11,Housing Benefit Admin,COO,COTSWOLD DISTRICT COUNCIL,2023605823,"41,367"
Department for Work and Pensions,Corporate,16-Dec-11,PROFESSIONAL FEES,PS,NATIONAL INSTITUTE FOR ECONOMIC & SOCIAL RESEARCH,2023614103,"41,220"
Department for Work and Pensions,Housing Benefits,14-Dec-11,Housing Benefit Admin,COO,TEWKESBURY BOROUGH COUNCIL,2023606078,"41,076"
Department for Work and Pensions,Corporate,19-Dec-11,TEMPORARY (TEMP) STAFF COSTS,CIT,CAPITA RESOURCING LTD,2023616405,"41,046"
Department for Work and Pensions,Corporate,14-Dec-11,STAFF COSTS,HRD,PREMIER PARTNERSHIP,2023588502,"40,980"
Department for Work and Pensions,Employment Programmes,14-Dec-11,EP PROVIDER PAYMENT - WORK PROGRAMME,COO,AVANTA ENTERPRISE LTD,2023543985,"40,800"
Department for Work and Pensions,Corporate,23-Dec-11,TEMPORARY (TEMP) STAFF COSTS,CIT,CAPITA RESOURCING LTD,2023712752,"40,708"
Department for Work and Pensions,Housing Benefits,14-Dec-11,Housing Benefit Admin,COO,MID DEVON DISTRICT COUNCIL,2023605953,"40,537"
Department for Work and Pensions,Housing Benefits,14-Dec-11,Housing Benefit Admin,COO,EAST CAMBRIDGESHIRE DISTRICT COUNCIL,2023605843,"40,444"
Department for Work and Pensions,Housing Benefits,14-Dec-11,Housing Benefit Admin,COO,SOUTH DERBYSHIRE DISTRICT COUNCIL,2023606036,"40,436"
Department for Work and Pensions,Corporate,21-Dec-11,STAFF COSTS,HRD,PREMIER PARTNERSHIP,2023677400,"40,147"
Department for Work and Pensions,Employment Programmes,29-Dec-11,EP PROVIDER PAYMENT - WORK PROGRAMME,COO,AVANTA ENTERPRISE LTD,2023772240,"40,000"
Department for Work and Pensions,Employment Programmes,19-Dec-11,EP PROVIDER PAYMENT - NON-WORK PROGRAMME,COO,JHP GROUP LTD,2023618998,"39,830"
Department for Work and Pensions,Housing Benefits,14-Dec-11,Housing Benefit Admin,COO,RUSHCLIFFE BOROUGH COUNCIL,2023606015,"39,778"
Department for Work and Pensions,Housing Benefits,14-Dec-11,Housing Benefit Admin,COO,CLACKMANNANSHIRE COUNCIL,2023605815,"39,489"
Department for Work and Pensions,Housing Benefits,14-Dec-11,Housing Benefit Admin,COO,HAMBLETON DISTRICT COUNCIL,2023605882,"39,421"
Department for Work and Pensions,Corporate,30-Dec-11,ACCOMMODATION,F&C,TELEREAL TRILLIUM,2023772051,"39,261"
Department for Work and Pensions,Employment Programmes,29-Dec-11,EP PROVIDER PAYMENT - NON-WORK PROGRAMME,COO,SEETEC BUSINESS TECHNOLOGY CENTRE LTD,2023775183,"39,205"
Department for Work and Pensions,Employment Programmes,21-Dec-11,EP PROVIDER PAYMENT - WORK PROGRAMME,COO,CAREERS DEVELOPMENT GROUP,2023638542,"39,200"
Department for Work and Pensions,Corporate,14-Dec-11,AOS CONTRACTED OUT SERVICES,F&C,SPECIALIST COMPUTER CENTRES PLC,2023598820,"39,000"
Department for Work and Pensions,European Social Fund,13-Dec-11,ESF Expenditure,STR,COVER,5000000809,"38,858"
Department for Work and Pensions,Employment Programmes,02-Dec-11,EP PROVIDER PAYMENT - WORK PROGRAMME,COO,INGEUS UK LTD,2023444362,"38,800"
Department for Work and Pensions,Employment Programmes,02-Dec-11,EP PROVIDER PAYMENT - WORK PROGRAMME,COO,WORKING LINKS,2023445223,"38,800"
Department for Work and Pensions,Housing Benefits,14-Dec-11,Housing Benefit Admin,COO,MID SUFFOLK DISTRICT COUNCIL,2023605954,"38,488"
Department for Work and Pensions,Employment Programmes,14-Dec-11,EP PROVIDER PAYMENT - WORK PROGRAMME,COO,SEETEC BUSINESS TECHNOLOGY CENTRE LTD,2023598788,"38,400"
Department for Work and Pensions,Corporate,19-Dec-11,COMPUTER SERVICES,F&C,FUJITSU SERVICES LTD,2023618631,"38,322"
Department for Work and Pensions,Jobcentre Plus,01-Dec-11,EMPLOYMENT PROGRAMMES,Excluded,SHAW TRUST LTD,2023440376,"38,322"
Department for Work and Pensions,Housing Benefits,14-Dec-11,Housing Benefit Admin,COO,EAST DORSET DISTRICT COUNCIL,2023605845,"38,262"
Department for Work and Pensions,Employment Programmes,14-Dec-11,EP PROVIDER PAYMENT - WORK PROGRAMME,COO,SEETEC BUSINESS TECHNOLOGY CENTRE LTD,2023598788,"38,000"
Department for Work and Pensions,Housing Benefits,14-Dec-11,Housing Benefit Admin,COO,FYLDE BOROUGH COUNCIL,2023605871,"37,921"
Department for Work and Pensions,Jobcentre Plus,15-Dec-11,EU PROGRAMMES,COO,A4ENTERPRISE LTD,2023606304,"37,745"
Department for Work and Pensions,Housing Benefits,14-Dec-11,Housing Benefit Admin,COO,SELBY DISTRICT COUNCIL,2023606025,"37,652"
Department for Work and Pensions,Corporate,14-Dec-11,APPS DEV,Change PMU,HP ENTERPRISE SERVICES UK LTD,2023562579,"37,623"
Department for Work and Pensions,Employment Programmes,23-Dec-11,EP PROVIDER PAYMENT - WORK PROGRAMME,COO,A4E LTD,2023706813,"37,600"
Department for Work and Pensions,Corporate,23-Dec-11,COMPUTER SERVICES,CIT,ATOS ORIGIN IT SERVICES UK LTD,2023706851,"37,377"
Department for Work and Pensions,Employment Programmes,21-Dec-11,JOBCENTRE PLUS PATHWAYS TO WORK,COO,NHS GRAMPIAN,2023675411,"37,375"
Department for Work and Pensions,Housing Benefits,14-Dec-11,Housing Benefit Admin,COO,CHILTERN DISTRICT COUNCIL,2023605808,"37,274"
Department for Work and Pensions,Employment Programmes,06-Dec-11,EP PROVIDER PAYMENT - WORK PROGRAMME,COO,A4E LTD,2023451887,"37,200"
Department for Work and Pensions,Employment Programmes,14-Dec-11,EP PROVIDER PAYMENT - WORK PROGRAMME,COO,MAXIMUS EMPLOYMENT UK LTD,2023583906,"37,200"
Department for Work and Pensions,"Pension, Disability Carers Services",19-Dec-11,Accommodation Costs,COO,SOUTHERN ELECTRIC PLC,2023619958,"37,154"
Department for Work and Pensions,Corporate,19-Dec-11,COMPUTER SERVICES,CIT,ATOS ORIGIN IT SERVICES UK LTD,2023616210,"37,029"
Department for Work and Pensions,Housing Benefits,14-Dec-11,Housing Benefit Admin,COO,ROCHFORD DISTRICT COUNCIL,2023606008,"36,812"
Department for Work and Pensions,Employment Programmes,22-Dec-11,ACCESS TO WORK,COO,SCOUT ENTERPRISES WESTERN LTD,2023699565,"36,706"
Department for Work and Pensions,Jobcentre Plus,15-Dec-11,EU PROGRAMMES,COO,IXION HOLDINGS LTD,2023608013,"36,632"
Department for Work and Pensions,Corporate,19-Dec-11,MANAGEMENT CONSULTANCY,Change PMU,BRAMBLE CC LTD,2023616279,"36,567"
Department for Work and Pensions,Corporate,29-Dec-11,PROFESSIONAL FEES,PS,CLARKE WILLMOTT,2023772465,"36,500"
Department for Work and Pensions,Jobcentre Plus,15-Dec-11,EU PROGRAMMES,COO,NETWORK PROJECTS LTD,2023608760,"36,480"
Department for Work and Pensions,Employment Programmes,07-Dec-11,YOUNG PERSON'S GUARANTEE,COO,GOOLE DEVELOPMENT TRUST,2023477496,"36,450"
Department for Work and Pensions,Employment Programmes,23-Dec-11,EP PROVIDER PAYMENT - WORK PROGRAMME,COO,AVANTA ENTERPRISE LTD,2023706853,"36,400"
Department for Work and Pensions,Employment Programmes,06-Dec-11,EP PROVIDER PAYMENT - WORK PROGRAMME,COO,REED IN PARTNERSHIP LTD,2023455305,"36,400"
Department for Work and Pensions,Employment Programmes,14-Dec-11,EP PROVIDER PAYMENT - WORK PROGRAMME,COO,WORKING LINKS,2023603064,"36,400"
Department for Work and Pensions,Housing Benefits,14-Dec-11,Housing Benefit Admin,COO,BROMSGROVE DISTRICT COUNCIL,2023605785,"36,360"
Department for Work and Pensions,Housing Benefits,14-Dec-11,Housing Benefit Admin,COO,BLABY DISTRICT COUNCIL,2023605765,"36,318"
Department for Work and Pensions,Corporate,02-Dec-11,STAFF COSTS,HRD,ELISHA TRAINING LTD,2023444197,"36,129"
Department for Work and Pensions,Housing Benefits,14-Dec-11,Housing Benefit Admin,COO,ADUR DISTRICT COUNCIL,2023605747,"36,057"
Department for Work and Pensions,Employment Programmes,16-Dec-11,EP PROVIDER PAYMENT - WORK PROGRAMME,COO,A4E LTD,2023611578,"36,000"
Department for Work and Pensions,Employment Programmes,12-Dec-11,EP PROVIDER PAYMENT - WORK PROGRAMME,COO,CAREERS DEVELOPMENT GROUP,2023530561,"36,000"
Department for Work and Pensions,Housing Benefits,14-Dec-11,Housing Benefit Admin,COO,MALVERN HILLS DISTRICT COUNCIL,2023605946,"35,954"
Department for Work and Pensions,Employment Programmes,12-Dec-11,EMPLOYMENT INITIATIVES,COO,REED IN PARTNERSHIP HACKNEY LTD,2023533793,"35,796"
Department for Work and Pensions,Employment Programmes,06-Dec-11,EP PROVIDER PAYMENT - WORK PROGRAMME,COO,WORKING LINKS,2023455950,"35,600"
Department for Work and Pensions,Housing Benefits,14-Dec-11,Housing Benefit Admin,COO,EAST RENFREWSHIRE COUNCIL,2023605852,"35,320"
Department for Work and Pensions,Corporate,02-Dec-11,PRINTING STATIONERY IT CONSUMABLES,F&C,XEROX UK LTD 3W,2023445226,"35,286"
Department for Work and Pensions,Employment Programmes,14-Dec-11,EP PROVIDER PAYMENT - WORK PROGRAMME,COO,INGEUS UK LTD,2023563059,"35,200"
Department for Work and Pensions,Corporate,30-Dec-11,ACCOMMODATION,F&C,TELEREAL TRILLIUM,2023772051,"35,099"
Department for Work and Pensions,Corporate,02-Dec-11,MISCELLANEOUS EXPENDITURE,PS,IFF RESEARCH,2023444357,"35,000"
Department for Work and Pensions,Housing Benefits,14-Dec-11,Housing Benefit Admin,COO,DAVENTRY DISTRICT COUNCIL,2023605832,"34,956"
Department for Work and Pensions,Corporate,07-Dec-11,COMPUTER SERVICES,CIT,HP ENTERPRISE SERVICES UK LTD,2023479128,"34,851"
Department for Work and Pensions,Employment Programmes,22-Dec-11,EP PROVIDER PAYMENT - WORK PROGRAMME,COO,G4S REGIONAL MANAGEMENT UK & I LTD,2023697845,"34,800"
Department for Work and Pensions,Employment Programmes,07-Dec-11,EP PROVIDER PAYMENT - WORK PROGRAMME,COO,G4S REGIONAL MANAGEMENT UK & I LTD,2023477489,"34,800"
Department for Work and Pensions,Employment Programmes,06-Dec-11,EP PROVIDER PAYMENT - WORK PROGRAMME,COO,INGEUS UK LTD,2023453910,"34,800"
Department for Work and Pensions,Housing Benefits,14-Dec-11,Housing Benefit Admin,COO,MOLE VALLEY DISTRICT COUNCIL,2023605959,"34,684"
Department for Work and Pensions,Housing Benefits,14-Dec-11,Housing Benefit Admin,COO,NORTH WARWICKSHIRE DISTRICT COUNCIL,2023605979,"34,654"
Department for Work and Pensions,"Pension, Disability Carers Services",01-Dec-11,POSTAGE,COO,TNT UK LTD,2023440528,"34,567"
Department for Work and Pensions,Jobcentre Plus,01-Dec-11,EU PROGRAMMES,COO,NETWORK PROJECTS LTD,2023439696,"34,476"
Department for Work and Pensions,Jobcentre Plus,12-Dec-11,EU PROGRAMMES,COO,NETWORK PROJECTS LTD,2023533559,"34,476"
Department for Work and Pensions,Employment Programmes,06-Dec-11,EP PROVIDER PAYMENT - WORK PROGRAMME,COO,EOS WORKS LTD,2023453598,"34,400"
Department for Work and Pensions,Employment Programmes,07-Dec-11,EP PROVIDER PAYMENT - WORK PROGRAMME,COO,G4S REGIONAL MANAGEMENT UK & I LTD,2023477489,"34,400"
Department for Work and Pensions,Employment Programmes,01-Dec-11,EP PROVIDER PAYMENT - WORK PROGRAMME,COO,INGEUS UK LTD,2023438620,"34,400"
Department for Work and Pensions,Housing Benefits,14-Dec-11,Housing Benefit Admin,COO,FOREST HEATH DISTRICT COUNCIL,2023605869,"34,169"
Department for Work and Pensions,Corporate,02-Dec-11,AOS CONTRACTED OUT SERVICES,F&C,FAIRFAX SOLICITORS LTD,2023444229,"34,100"
Department for Work and Pensions,"Pension, Disability Carers Services",12-Dec-11,NETWORK,CIT,BT GLOBAL SERVICES,2023530424,"34,017"
Department for Work and Pensions,European Social Fund,16-Dec-11,ESF Expenditure,STR,MEDWAY COUNCIL,5000000828,"33,909"
Department for Work and Pensions,Employment Programmes,15-Dec-11,ACCESS TO WORK,COO,SCOUT ENTERPRISES WESTERN LTD,2023609210,"33,903"
Department for Work and Pensions,Corporate,05-Dec-11,TEMPORARY (TEMP) STAFF COSTS,CIT,CAPITA RESOURCING LTD,2023447042,"33,644"
Department for Work and Pensions,Corporate,30-Dec-11,ACCOMMODATION,F&C,TELEREAL TRILLIUM,2023772055,"33,641"
Department for Work and Pensions,Housing Benefits,14-Dec-11,Housing Benefit Admin,COO,TANDRIDGE DISTRICT COUNCIL,2023606073,"33,605"
Department for Work and Pensions,Employment Programmes,01-Dec-11,EP PROVIDER PAYMENT - WORK PROGRAMME,COO,INGEUS UK LTD,2023438620,"33,600"
Department for Work and Pensions,Corporate,30-Dec-11,ACCOMMODATION,F&C,TELEREAL TRILLIUM,2023772051,"33,506"
Department for Work and Pensions,Corporate,06-Dec-11,INTRA DWP PAYABLES,Excluded,HMCTS HM COURTS & TRIBUNALS SERVICE,618046,"33,390"
Department for Work and Pensions,Housing Benefits,14-Dec-11,Housing Benefit Admin,COO,SURREY HEATH BOROUGH COUNCIL,2023606067,"33,368"
Department for Work and Pensions,Employment Programmes,06-Dec-11,EP PROVIDER PAYMENT - NON-WORK PROGRAMME,COO,A4E LTD,2023451887,"33,334"
Department for Work and Pensions,Jobcentre Plus,05-Dec-11,TELEPHONE AND POSTAGE,COO,ROYAL MAIL GROUP PLC,2023449928,"33,279"
Department for Work and Pensions,Employment Programmes,14-Dec-11,EP PROVIDER PAYMENT - WORK PROGRAMME,COO,AVANTA ENTERPRISE LTD,2023543985,"33,200"
Department for Work and Pensions,Employment Programmes,16-Dec-11,EP PROVIDER PAYMENT - WORK PROGRAMME,COO,INGEUS UK LTD,2023613472,"33,200"
Department for Work and Pensions,Corporate,13-Dec-11,APPS DEV,CIT,HP ENTERPRISE SERVICES UK LTD,2023536459,"33,110"
Department for Work and Pensions,Employment Programmes,02-Dec-11,JSP ESF DEL P COSTS,COO,WORKING LINKS,2023445223,"32,934"
Department for Work and Pensions,Employment Programmes,14-Dec-11,EP PROVIDER PAYMENT - WORK PROGRAMME,COO,AVANTA ENTERPRISE LTD,2023543985,"32,800"
Department for Work and Pensions,Employment Programmes,23-Dec-11,EP PROVIDER PAYMENT - WORK PROGRAMME,COO,CAREERS DEVELOPMENT GROUP,2023712755,"32,800"
Department for Work and Pensions,Employment Programmes,06-Dec-11,EP PROVIDER PAYMENT - WORK PROGRAMME,COO,MAXIMUS EMPLOYMENT UK LTD,2023454793,"32,800"
Department for Work and Pensions,Employment Programmes,06-Dec-11,EP PROVIDER PAYMENT - WORK PROGRAMME,COO,SEETEC BUSINESS TECHNOLOGY CENTRE LTD,2023455670,"32,800"
Department for Work and Pensions,Corporate,06-Dec-11,APPS DEV,Change PMU,HP ENTERPRISE SERVICES UK LTD,2023453862,"32,643"
Department for Work and Pensions,Housing Benefits,14-Dec-11,Housing Benefit Admin,COO,BRENTWOOD DISTRICT COUNCIL,2023605780,"32,562"
Department for Work and Pensions,Employment Programmes,12-Dec-11,EMPLOYMENT INITIATIVES,COO,TNG WORKZONE LTD,2023534182,"32,420"
Department for Work and Pensions,Corporate,05-Dec-11,TEMPORARY (TEMP) STAFF COSTS,CIT,CAPITA RESOURCING LTD,2023447042,"32,228"
Department for Work and Pensions,Employment Programmes,12-Dec-11,EP PROVIDER PAYMENT - NON-WORK PROGRAMME,COO,JHP GROUP LTD,2023533070,"32,193"
Department for Work and Pensions,"Pension, Disability Carers Services",06-Dec-11,APPS DEV,Change PMU,HP ENTERPRISE SERVICES UK LTD,2023453862,"32,177"
Department for Work and Pensions,Employment Programmes,06-Dec-11,EP PROVIDER PAYMENT - WORK PROGRAMME,COO,AVANTA ENTERPRISE LTD,2023451913,"32,000"
Department for Work and Pensions,Employment Programmes,09-Dec-11,EP PROVIDER PAYMENT - WORK PROGRAMME,COO,CAREERS DEVELOPMENT GROUP,2023526700,"32,000"
Department for Work and Pensions,Employment Programmes,14-Dec-11,EP PROVIDER PAYMENT - WORK PROGRAMME,COO,REED IN PARTNERSHIP LTD,2023591185,"32,000"
Department for Work and Pensions,European Social Fund,13-Dec-11,ESF Expenditure,STR,UNIVERSITY OF EXETER,5000000815,"31,925"
Department for Work and Pensions,Employment Programmes,12-Dec-11,EP PROVIDER PAYMENT - NON-WORK PROGRAMME,COO,REED IN PARTNERSHIP LTD,2023533794,"31,829"
Department for Work and Pensions,Housing Benefits,14-Dec-11,Housing Benefit Admin,COO,MALDON DISTRICT COUNCIL,2023605945,"31,728"
Department for Work and Pensions,Corporate,02-Dec-11,MISCELLANEOUS EXPENDITURE,PS,THE UNIVERSITY OF WARWICK,2023445165,"31,700"
Department for Work and Pensions,Employment Programmes,14-Dec-11,EP PROVIDER PAYMENT - WORK PROGRAMME,COO,WORKING LINKS,2023603064,"31,600"
Department for Work and Pensions,Housing Benefits,14-Dec-11,Housing Benefit Admin,COO,NORTH DORSET DISTRICT COUNCIL,2023605969,"31,530"
Department for Work and Pensions,Corporate,28-Dec-11,PAYMENTS TO CSAS,HRD,ATOS HEALTHCARE,2023767408,"31,471"
Department for Work and Pensions,Corporate,29-Dec-11,Accommodation Costs,F&C,HM REVENUE & CUSTOMS,2002966,"31,447"
Department for Work and Pensions,Employment Programmes,14-Dec-11,EP PROVIDER PAYMENT - NON-WORK PROGRAMME,COO,A4E LTD,2023543926,"31,333"
Department for Work and Pensions,Employment Programmes,09-Dec-11,EP PROVIDER PAYMENT - WORK PROGRAMME,COO,INGEUS UK LTD,2023528031,"31,200"
Department for Work and Pensions,Employment Programmes,16-Dec-11,EP PROVIDER PAYMENT - WORK PROGRAMME,COO,WORKING LINKS,2023614693,"31,200"
Department for Work and Pensions,Jobcentre Plus,19-Dec-11,EU PROGRAMMES,COO,NORTH EAST ENTERPRISE AGENCIES LTD,2023619488,"31,086"
Department for Work and Pensions,"Pension, Disability Carers Services",05-Dec-11,TELEPHONE AND POSTAGE,COO,ROYAL MAIL GROUP PLC,2023449928,"31,023"
Department for Work and Pensions,Housing Benefits,14-Dec-11,Housing Benefit Admin,COO,EPSOM & EWELL BOROUGH COUNCIL,2023605861,"30,963"
Department for Work and Pensions,Corporate,30-Dec-11,ACCOMMODATION,F&C,TELEREAL TRILLIUM,2023772053,"30,957"
Department for Work and Pensions,Corporate,09-Dec-11,TEMPORARY (TEMP) STAFF COSTS,CIT,CAPITA RESOURCING LTD,2023526698,"30,918"
Department for Work and Pensions,Jobcentre Plus,19-Dec-11,EU PROGRAMMES,COO,GATESHEAD COUNCIL,2023618706,"30,831"
Department for Work and Pensions,Employment Programmes,14-Dec-11,EP PROVIDER PAYMENT - WORK PROGRAMME,COO,EOS WORKS LTD,2023558431,"30,800"
Department for Work and Pensions,Employment Programmes,19-Dec-11,EP PROVIDER PAYMENT - WORK PROGRAMME,COO,INGEUS UK LTD,2023618810,"30,800"
Department for Work and Pensions,European Social Fund,23-Dec-11,ESF Expenditure,STR,AGE CONCERN,5000000842,"30,640"
Department for Work and Pensions,Employment Programmes,29-Dec-11,EP PROVIDER PAYMENT - WORK PROGRAMME,COO,EOS WORKS LTD,2023773940,"30,600"
Department for Work and Pensions,Corporate,30-Dec-11,ACCOMMODATION,F&C,TELEREAL TRILLIUM,2023772053,"30,449"
Department for Work and Pensions,Employment Programmes,21-Dec-11,EP PROVIDER PAYMENT - WORK PROGRAMME,COO,A4E LTD,2023632341,"30,400"
Department for Work and Pensions,European Social Fund,23-Dec-11,ESF Expenditure,STR,LONDON DEVELOPMENT AGENCY,5000000846,"30,361"
Department for Work and Pensions,Corporate,09-Dec-11,TELEPHONE AND POSTAGE,F&C,POST OFFICE LTD,2023528602,"30,200"
Department for Work and Pensions,Employment Programmes,19-Dec-11,JOBCENTRE PLUS PATHWAYS TO WORK,COO,CWM TAF LHB,2023620163,"30,172"
Department for Work and Pensions,Corporate,23-Dec-11,TEMPORARY (TEMP) STAFF COSTS,CIT,CAPITA RESOURCING LTD,2023712752,"30,073"
Department for Work and Pensions,Corporate,29-Dec-11,BANKING AND ENCASHMENT COSTS,F&C,CITIBANK GLOBAL CORPORATE BANKING,2023772457,"30,000"
Department for Work and Pensions,Corporate,21-Dec-11,"OFFICE SUPPLIES, PRINTING AND PUBLICITY",PS,CRIMESTOPPERS TRUST,2023638581,"30,000"
Department for Work and Pensions,Employment Programmes,06-Dec-11,EP PROVIDER PAYMENT - WORK PROGRAMME,COO,NEWCASTLE COLLEGE GROUP,2023454941,"30,000"
Department for Work and Pensions,Employment Programmes,06-Dec-11,EP PROVIDER PAYMENT - WORK PROGRAMME,COO,WORKING LINKS,2023455950,"30,000"
Department for Work and Pensions,Corporate,01-Dec-11,MISCELLANEOUS EXPENDITURE,PS,ENTERPRISE LSE LTD,2023438319,"29,997"
Department for Work and Pensions,"Pension, Disability Carers Services",05-Dec-11,TELEPHONE AND POSTAGE,COO,ROYAL MAIL GROUP PLC,2023449928,"29,916"
Department for Work and Pensions,Jobcentre Plus,06-Dec-11,APPS DEV,Change PMU,HP ENTERPRISE SERVICES UK LTD,2023453862,"29,887"
Department for Work and Pensions,Employment Programmes,06-Dec-11,EP PROVIDER PAYMENT - WORK PROGRAMME,COO,ESG HOLDINGS LIMITED,2023453601,"29,600"
Department for Work and Pensions,Employment Programmes,06-Dec-11,EP PROVIDER PAYMENT - WORK PROGRAMME,COO,G4S REGIONAL MANAGEMENT UK & I LTD,2023453758,"29,600"
Department for Work and Pensions,Employment Programmes,23-Dec-11,EP PROVIDER PAYMENT - WORK PROGRAMME,COO,INGEUS UK LTD,2023724530,"29,600"
Department for Work and Pensions,Employment Programmes,09-Dec-11,ACCESS TO WORK,COO,ROYAL BRITISH LEGION INDUSTRIES,2023528687,"29,472"
Department for Work and Pensions,Corporate,13-Dec-11,NETWORK,CIT,BT GLOBAL SERVICES,2023535593,"29,431"
Department for Work and Pensions,Employment Programmes,14-Dec-11,EP PROVIDER PAYMENT - WORK PROGRAMME,COO,CAREERS DEVELOPMENT GROUP,2023549933,"29,400"
Department for Work and Pensions,Employment Programmes,14-Dec-11,EP PROVIDER PAYMENT - WORK PROGRAMME,COO,AVANTA ENTERPRISE LTD,2023543985,"29,200"
Department for Work and Pensions,Housing Benefits,14-Dec-11,Housing Benefit Admin,COO,HARBOROUGH DISTRICT COUNCIL,2023605883,"28,886"
Department for Work and Pensions,Corporate,28-Dec-11,MANAGEMENT CONSULTANCY,F&C,PRICE WATERHOUSE COOPER LLP,2023770132,"28,811"
Department for Work and Pensions,Housing Benefits,14-Dec-11,Housing Benefit Admin,COO,CHRISTCHURCH BOROUGH COUNCIL,2023605810,"28,680"
Department for Work and Pensions,Jobcentre Plus,22-Dec-11,EMPLOYMENT PROGRAMMES,Excluded,REED IN PARTNERSHIP LTD,2023699223,"28,530"
Department for Work and Pensions,Housing Benefits,14-Dec-11,Housing Benefit Admin,COO,WEST DEVON BOROUGH COUNCIL,2023606102,"28,428"
Department for Work and Pensions,Employment Programmes,23-Dec-11,EP PROVIDER PAYMENT - WORK PROGRAMME,COO,AVANTA ENTERPRISE LTD,2023706853,"28,400"
Department for Work and Pensions,Employment Programmes,19-Dec-11,EP PROVIDER PAYMENT - WORK PROGRAMME,COO,WORKING LINKS,2023620137,"28,400"
Department for Work and Pensions,Housing Benefits,14-Dec-11,Housing Benefit Admin,COO,UTTLESFORD DISTRICT COUNCIL,2023606089,"28,131"
Department for Work and Pensions,Housing Benefits,14-Dec-11,Housing Benefit Admin,COO,DERBYSHIRE DALES DISTRICT COUNCIL,2023605835,"28,096"
Department for Work and Pensions,Employment Programmes,14-Dec-11,EP PROVIDER PAYMENT - WORK PROGRAMME,COO,AVANTA ENTERPRISE LTD,2023543985,"28,000"
Department for Work and Pensions,Employment Programmes,06-Dec-11,EP PROVIDER PAYMENT - WORK PROGRAMME,COO,INGEUS UK LTD,2023453910,"28,000"
Department for Work and Pensions,Employment Programmes,01-Dec-11,EP PROVIDER PAYMENT - NON-WORK PROGRAMME,COO,WORKING LINKS,2023440626,"27,989"
Department for Work and Pensions,Corporate,28-Dec-11,COMPUTER SERVICES,CIT,ATOS ORIGIN IT SERVICES UK LTD,2023767409,"27,690"
Department for Work and Pensions,Employment Programmes,08-Dec-11,ACCESS TO WORK,COO,SOUTH WEST LONDON & ST GEORGES NHS TRUST,2023524741,"27,635"
Department for Work and Pensions,Employment Programmes,23-Dec-11,EP PROVIDER PAYMENT - WORK PROGRAMME,COO,A4E LTD,2023706813,"27,600"
Department for Work and Pensions,Employment Programmes,14-Dec-11,EP PROVIDER PAYMENT - WORK PROGRAMME,COO,SERCO LTD,2023598791,"27,600"
Department for Work and Pensions,Employment Programmes,28-Dec-11,EP PROVIDER PAYMENT - WORK PROGRAMME,COO,WORKING LINKS,2023770738,"27,600"
Department for Work and Pensions,Employment Programmes,14-Dec-11,EP PROVIDER PAYMENT - WORK PROGRAMME,COO,WORKING LINKS,2023603064,"27,600"
Department for Work and Pensions,Housing Benefits,14-Dec-11,Housing Benefit Admin,COO,SOUTH NORTHANTS COUNCIL,2023606044,"27,583"
Department for Work and Pensions,Corporate,15-Dec-11,NETWORK,CIT,BT GLOBAL SERVICES,2023606403,"27,467"
Department for Work and Pensions,Jobcentre Plus,16-Dec-11,EU PROGRAMMES,COO,NORTH LONDON LTD,2023614114,"27,432"
Department for Work and Pensions,"Pension, Disability Carers Services",14-Dec-11,ACCOMMODATION COSTS,COO,TELEREAL TRILLIUM,2023601417,"27,404"
Department for Work and Pensions,Employment Programmes,29-Dec-11,EP PROVIDER PAYMENT - WORK PROGRAMME,COO,ESG HOLDINGS LIMITED,2023773943,"27,360"
Department for Work and Pensions,Employment Programmes,22-Dec-11,EP PROVIDER PAYMENT - WORK PROGRAMME,COO,A4E LTD,2023695789,"27,200"
Department for Work and Pensions,Employment Programmes,22-Dec-11,EP PROVIDER PAYMENT - WORK PROGRAMME,COO,CAREERS DEVELOPMENT GROUP,2023696132,"27,200"
Department for Work and Pensions,Employment Programmes,22-Dec-11,EP PROVIDER PAYMENT - WORK PROGRAMME,COO,G4S REGIONAL MANAGEMENT UK & I LTD,2023697845,"27,200"
Department for Work and Pensions,Employment Programmes,28-Dec-11,EP PROVIDER PAYMENT - WORK PROGRAMME,COO,INGEUS UK LTD,2023769245,"27,200"
Department for Work and Pensions,Employment Programmes,12-Dec-11,EP PROVIDER PAYMENT - WORK PROGRAMME,COO,INGEUS UK LTD,2023532883,"27,200"
Department for Work and Pensions,Employment Programmes,12-Dec-11,EP PROVIDER PAYMENT - WORK PROGRAMME,COO,INGEUS UK LTD,2023532883,"27,200"
Department for Work and Pensions,Employment Programmes,16-Dec-11,EP PROVIDER PAYMENT - WORK PROGRAMME,COO,INGEUS UK LTD,2023613472,"27,200"
Department for Work and Pensions,Employment Programmes,20-Dec-11,EP PROVIDER PAYMENT - WORK PROGRAMME,COO,INGEUS UK LTD,2023623200,"27,200"
Department for Work and Pensions,Housing Benefits,14-Dec-11,Housing Benefit Admin,COO,WEST SOMERSET DISTRICT COUNCIL,2023606109,"27,186"
Department for Work and Pensions,Corporate,02-Dec-11,COMPUTER SERVICES,CIT,ATOS ORIGIN IT SERVICES UK LTD,2023442738,"27,182"
Department for Work and Pensions,Jobcentre Plus,23-Dec-11,EU PROGRAMMES,COO,ONE LONDON LTD,2023748188,"27,132"
Department for Work and Pensions,Jobcentre Plus,01-Dec-11,EMPLOYMENT PROGRAMMES,Excluded,THE WISE GROUP,2023440526,"27,068"
Department for Work and Pensions,Corporate,23-Dec-11,COMPUTER SERVICES,CIT,ATOS ORIGIN IT SERVICES UK LTD,2023706851,"27,021"
Department for Work and Pensions,Employment Programmes,21-Dec-11,EP PROVIDER PAYMENT - WORK PROGRAMME,COO,CAREERS DEVELOPMENT GROUP,2023638542,"27,000"
Department for Work and Pensions,Employment Programmes,28-Dec-11,EP PROVIDER PAYMENT - WORK PROGRAMME,COO,INGEUS UK LTD,2023769245,"26,800"
Department for Work and Pensions,Employment Programmes,07-Dec-11,EP PROVIDER PAYMENT - WORK PROGRAMME,COO,INGEUS UK LTD,2023479601,"26,800"
Department for Work and Pensions,Employment Programmes,29-Dec-11,EP PROVIDER PAYMENT - WORK PROGRAMME,COO,NEWCASTLE COLLEGE GROUP,2023774796,"26,800"
Department for Work and Pensions,Employment Programmes,14-Dec-11,EP PROVIDER PAYMENT - WORK PROGRAMME,COO,SERCO LTD,2023598791,"26,800"
Department for Work and Pensions,Employment Programmes,12-Dec-11,EP PROVIDER PAYMENT - WORK PROGRAMME,COO,WORKING LINKS,2023534263,"26,800"
Department for Work and Pensions,Employment Programmes,06-Dec-11,EP PROVIDER PAYMENT - NON-WORK PROGRAMME,COO,SEETEC BUSINESS TECHNOLOGY CENTRE LTD,2023455670,"26,752"
Department for Work and Pensions,Corporate,22-Dec-11,CONTRACTED OUT SERVICES,F&C,CAPITA BUSINESS SERVICES LTD,2023696131,"26,750"
Department for Work and Pensions,Jobcentre Plus,19-Dec-11,CONTRACTED OUT SERVICES,COO,CAPITA BUSINESS SERVICES LTD,2023616404,"26,444"
Department for Work and Pensions,Employment Programmes,22-Dec-11,EP PROVIDER PAYMENT - WORK PROGRAMME,COO,INGEUS UK LTD,2023697986,"26,400"
Department for Work and Pensions,Employment Programmes,07-Dec-11,EP PROVIDER PAYMENT - WORK PROGRAMME,COO,WORKING LINKS,2023518909,"26,400"
Department for Work and Pensions,European Social Fund,14-Dec-11,ESF Expenditure,STR,LONDON VOLUNTARY SECTOR TRAINING CONSORTIUM LVSTC,5000000820,"26,231"
Department for Work and Pensions,Jobcentre Plus,02-Dec-11,EU PROGRAMMES,COO,BLUE ORCHID MANAGEMENT CONSULTANTS LTD,2023442780,"26,220"
Department for Work and Pensions,Jobcentre Plus,15-Dec-11,PROFESSIONAL FEES,COO,LGC LTD,2023608494,"26,203"
Department for Work and Pensions,Housing Benefits,14-Dec-11,Housing Benefit Admin,COO,HART DISTRICT COUNCIL,2023605886,"26,089"
Department for Work and Pensions,Corporate,22-Dec-11,AOS CONTRACTED OUT SERVICES,F&C,FAIRFAX SOLICITORS LTD,2023697736,"26,069"
Department for Work and Pensions,Employment Programmes,16-Dec-11,EP PROVIDER PAYMENT - WORK PROGRAMME,COO,CAREERS DEVELOPMENT GROUP,2023611805,"26,000"
Department for Work and Pensions,Employment Programmes,14-Dec-11,EP PROVIDER PAYMENT - WORK PROGRAMME,COO,EOS WORKS LTD,2023558431,"26,000"
Department for Work and Pensions,Employment Programmes,14-Dec-11,EP PROVIDER PAYMENT - WORK PROGRAMME,COO,INGEUS UK LTD,2023563059,"26,000"
Department for Work and Pensions,Employment Programmes,09-Dec-11,EP PROVIDER PAYMENT - WORK PROGRAMME,COO,INGEUS UK LTD,2023528031,"26,000"
Department for Work and Pensions,Employment Programmes,08-Dec-11,EP PROVIDER PAYMENT - WORK PROGRAMME,COO,JHP GROUP LTD,2023523713,"26,000"
Department for Work and Pensions,Employment Programmes,22-Dec-11,EP PROVIDER PAYMENT - WORK PROGRAMME,COO,REHAB JOBFIT,2023699227,"26,000"
Department for Work and Pensions,Employment Programmes,21-Dec-11,EU PROGRAMMES,COO,DBIC,2023642544,"25,831"
Department for Work and Pensions,Housing Benefits,14-Dec-11,Housing Benefit Admin,COO,RYEDALE DISTRICT COUNCIL,2023606018,"25,805"
Department for Work and Pensions,European Social Fund,23-Dec-11,ESF Expenditure,STR,CSV,5000000843,"25,724"
Department for Work and Pensions,Corporate,30-Dec-11,ACCOMMODATION,F&C,TELEREAL TRILLIUM,2023772055,"25,724"
Department for Work and Pensions,Employment Programmes,21-Dec-11,EMPLOYMENT INITIATIVES,COO,INGEUS UK LTD,2023651000,"25,636"
Department for Work and Pensions,Employment Programmes,29-Dec-11,EP PROVIDER PAYMENT - WORK PROGRAMME,COO,PERTEMPS,2023774878,"25,632"
Department for Work and Pensions,Housing Benefits,14-Dec-11,Housing Benefit Admin,COO,SOUTH BUCKS DISTRICT COUNCIL,2023606034,"25,623"
Department for Work and Pensions,Employment Programmes,28-Dec-11,EP PROVIDER PAYMENT - WORK PROGRAMME,COO,A4E LTD,2023767374,"25,600"
Department for Work and Pensions,Employment Programmes,14-Dec-11,EP PROVIDER PAYMENT - WORK PROGRAMME,COO,A4E LTD,2023543926,"25,600"
Department for Work and Pensions,Employment Programmes,09-Dec-11,EP PROVIDER PAYMENT - WORK PROGRAMME,COO,AVANTA ENTERPRISE LTD,2023526564,"25,600"
Department for Work and Pensions,Employment Programmes,06-Dec-11,EP PROVIDER PAYMENT - WORK PROGRAMME,COO,AVANTA ENTERPRISE LTD,2023451913,"25,600"
Department for Work and Pensions,Employment Programmes,06-Dec-11,EP PROVIDER PAYMENT - WORK PROGRAMME,COO,G4S REGIONAL MANAGEMENT UK & I LTD,2023453758,"25,600"
Department for Work and Pensions,Employment Programmes,01-Dec-11,EP PROVIDER PAYMENT - WORK PROGRAMME,COO,INGEUS UK LTD,2023438620,"25,600"
Department for Work and Pensions,Employment Programmes,01-Dec-11,EP PROVIDER PAYMENT - WORK PROGRAMME,COO,JHP GROUP LTD,2023438910,"25,600"
Department for Work and Pensions,Employment Programmes,06-Dec-11,EP PROVIDER PAYMENT - WORK PROGRAMME,COO,PERTEMPS,2023455122,"25,600"
Department for Work and Pensions,Employment Programmes,22-Dec-11,EP PROVIDER PAYMENT - WORK PROGRAMME,COO,SEETEC BUSINESS TECHNOLOGY CENTRE LTD,2023699569,"25,600"
Department for Work and Pensions,Employment Programmes,02-Dec-11,EP PROVIDER PAYMENT - WORK PROGRAMME,COO,SEETEC BUSINESS TECHNOLOGY CENTRE LTD,2023445084,"25,600"
Department for Work and Pensions,Corporate,30-Dec-11,ACCOMMODATION,F&C,TELEREAL TRILLIUM,2023772053,"25,592"
Department for Work and Pensions,"Pension, Disability Carers Services",29-Dec-11,"OFFICE SUPPLIES, PRINTING AND PUBLICITY",COO,XEROX UK LTD 3W,2023775413,"25,547"
Department for Work and Pensions,Corporate,29-Dec-11,EMPLOYMENT ZONES,Change PMU,DERBYLOANS,2023772598,"25,440"
Department for Work and Pensions,Employment Programmes,16-Dec-11,EP PROVIDER PAYMENT - NON-WORK PROGRAMME,COO,JHP GROUP LTD,2023613647,"25,425"
Department for Work and Pensions,Employment Programmes,19-Dec-11,ACCESS TO WORK,COO,SOUTH WESTERN AMBULANCE SERVICE NHS TRUST,2023619956,"25,416"
Department for Work and Pensions,Corporate,19-Dec-11,TEMPORARY (TEMP) STAFF COSTS,CIT,CAPITA RESOURCING LTD,2023616405,"25,359"
Department for Work and Pensions,Employment Programmes,20-Dec-11,EP PROVIDER PAYMENT - WORK PROGRAMME,COO,INGEUS UK LTD,2023623200,"25,200"
Department for Work and Pensions,Employment Programmes,01-Dec-11,EP PROVIDER PAYMENT - WORK PROGRAMME,COO,MAXIMUS EMPLOYMENT UK LTD,2023439552,"25,200"
Department for Work and Pensions,Employment Programmes,14-Dec-11,EP PROVIDER PAYMENT - WORK PROGRAMME,COO,SEETEC BUSINESS TECHNOLOGY CENTRE LTD,2023598788,"25,200"
Department for Work and Pensions,Housing Benefits,14-Dec-11,Housing Benefit Admin,COO,CRAVEN DISTRICT COUNCIL,2023605826,"25,141"
Department for Work and Pensions,Jobcentre Plus,21-Dec-11,EMPLOYMENT ZONES,COO,CORNWALL COUNCIL,2023638576,"25,000"
Department for Work and Pensions,Jobcentre Plus,15-Dec-11,EMPLOYMENT ZONES,COO,ENTERPRISE PLYMOUTH LTD,2023607821,"25,000"
Department for Work and Pensions,Corporate,21-Dec-11,MISCELLANEOUS EXPENDITURE,PS,IFF RESEARCH,2023650998,"25,000"
Department for Work and Pensions,Corporate,01-Dec-11,MISCELLANEOUS EXPENDITURE,PS,INSTITUTE FOR EMPLOYMENT STUDIES,2023438621,"25,000"
Department for Work and Pensions,Jobcentre Plus,21-Dec-11,EMPLOYMENT ZONES,COO,NORTH DEVON +,2023675416,"25,000"
Department for Work and Pensions,Jobcentre Plus,13-Dec-11,APPS DEV,COO,HP ENTERPRISE SERVICES UK LTD,2023536459,"24,959"
Department for Work and Pensions,Employment Programmes,21-Dec-11,EP PROVIDER PAYMENT - WORK PROGRAMME,COO,A4E LTD,2023632341,"24,800"
Department for Work and Pensions,Employment Programmes,14-Dec-11,EP PROVIDER PAYMENT - WORK PROGRAMME,COO,BEST LTD,2023545025,"24,800"
Department for Work and Pensions,Employment Programmes,23-Dec-11,EP PROVIDER PAYMENT - WORK PROGRAMME,COO,SEETEC BUSINESS TECHNOLOGY CENTRE LTD,2023760175,"24,800"
Department for Work and Pensions,Employment Programmes,22-Dec-11,EP PROVIDER PAYMENT - WORK PROGRAMME,COO,WORKING LINKS,2023699793,"24,800"
Department for Work and Pensions,Corporate,09-Dec-11,TEMPORARY (TEMP) STAFF COSTS,Change PMU,CAPITA RESOURCING LTD,2023526698,"24,768"
Department for Work and Pensions,Jobcentre Plus,14-Dec-11,OTHER GOODS AND SERVICES,Change PMU,DLA PIPER UK,2023553796,"24,425"
Department for Work and Pensions,Employment Programmes,16-Dec-11,EP PROVIDER PAYMENT - WORK PROGRAMME,COO,AVANTA ENTERPRISE LTD,2023611618,"24,400"
Department for Work and Pensions,Employment Programmes,14-Dec-11,EP PROVIDER PAYMENT - WORK PROGRAMME,COO,NEWCASTLE COLLEGE GROUP,2023586587,"24,400"
Department for Work and Pensions,Employment Programmes,29-Dec-11,EP PROVIDER PAYMENT - WORK PROGRAMME,COO,NEWCASTLE COLLEGE GROUP,2023774796,"24,400"
Department for Work and Pensions,Employment Programmes,06-Dec-11,EP PROVIDER PAYMENT - WORK PROGRAMME,COO,SEETEC BUSINESS TECHNOLOGY CENTRE LTD,2023455670,"24,400"
Department for Work and Pensions,Corporate,29-Dec-11,APPS DEV,CIT,HP ENTERPRISE SERVICES UK LTD,2023774101,"24,327"
Department for Work and Pensions,Corporate,12-Dec-11,APPS DEV,Change PMU,HP ENTERPRISE SERVICES UK LTD,2023532843,"24,311"
Department for Work and Pensions,Corporate,12-Dec-11,MANAGEMENT CONSULTANCY,F&C,DELOITTE LLP,2023530733,"24,294"
Department for Work and Pensions,Housing Benefits,14-Dec-11,Housing Benefit Admin,COO,PURBECK DISTRICT COUNCIL,2023605999,"24,267"
Department for Work and Pensions,Corporate,09-Dec-11,OTHER EXPENDITURE,PS,COI TRADING FUND,2023526715,"24,216"
Department for Work and Pensions,Employment Programmes,15-Dec-11,EP PROVIDER PAYMENT - WORK PROGRAMME,COO,INGEUS UK LTD,2023608008,"24,000"
Department for Work and Pensions,Employment Programmes,20-Dec-11,EP PROVIDER PAYMENT - WORK PROGRAMME,COO,INGEUS UK LTD,2023623200,"24,000"
Department for Work and Pensions,Employment Programmes,06-Dec-11,EP PROVIDER PAYMENT - WORK PROGRAMME,COO,INGEUS UK LTD,2023453910,"24,000"
Department for Work and Pensions,Employment Programmes,02-Dec-11,EP PROVIDER PAYMENT - WORK PROGRAMME,COO,SEETEC BUSINESS TECHNOLOGY CENTRE LTD,2023445084,"24,000"
Department for Work and Pensions,Corporate,19-Dec-11,MANAGEMENT CONSULTANCY,HRD,CABINET OFFICE,2002949,"23,750"
Department for Work and Pensions,Housing Benefits,14-Dec-11,Housing Benefit Admin,COO,OADBY & WIGSTON BOROUGH COUNCIL,2023605986,"23,736"
Department for Work and Pensions,Corporate,21-Dec-11,COMPUTER SERVICES,F&C,FUJITSU SERVICES LTD,2023646977,"23,624"
Department for Work and Pensions,Employment Programmes,22-Dec-11,EP PROVIDER PAYMENT - WORK PROGRAMME,COO,A4E LTD,2023695789,"23,600"
Department for Work and Pensions,Employment Programmes,21-Dec-11,EP PROVIDER PAYMENT - WORK PROGRAMME,COO,A4E LTD,2023632341,"23,600"
Department for Work and Pensions,Employment Programmes,14-Dec-11,EP PROVIDER PAYMENT - WORK PROGRAMME,COO,AVANTA ENTERPRISE LTD,2023543985,"23,600"
Department for Work and Pensions,Employment Programmes,22-Dec-11,EP PROVIDER PAYMENT - WORK PROGRAMME,COO,AVANTA ENTERPRISE LTD,2023695827,"23,600"
Department for Work and Pensions,Employment Programmes,06-Dec-11,EP PROVIDER PAYMENT - WORK PROGRAMME,COO,INGEUS UK LTD,2023453910,"23,600"
Department for Work and Pensions,Employment Programmes,28-Dec-11,EP PROVIDER PAYMENT - WORK PROGRAMME,COO,REED IN PARTNERSHIP LTD,2023770254,"23,600"
Department for Work and Pensions,Employment Programmes,28-Dec-11,EP PROVIDER PAYMENT - WORK PROGRAMME,COO,SEETEC BUSINESS TECHNOLOGY CENTRE LTD,2023770526,"23,600"
Department for Work and Pensions,Employment Programmes,06-Dec-11,EP PROVIDER PAYMENT - WORK PROGRAMME,COO,SERCO LTD,2023455674,"23,600"
Department for Work and Pensions,"Pension, Disability Carers Services",05-Dec-11,TELEPHONE AND POSTAGE,COO,ROYAL MAIL GROUP PLC,2023449928,"23,540"
Department for Work and Pensions,Employment Programmes,09-Dec-11,EP PROVIDER PAYMENT - NON-WORK PROGRAMME,COO,SEETEC BUSINESS TECHNOLOGY CENTRE LTD,2023528823,"23,523"
Department for Work and Pensions,Corporate,30-Dec-11,ACCOMMODATION,F&C,TELEREAL TRILLIUM,2023772053,"23,354"
Department for Work and Pensions,Employment Programmes,12-Dec-11,EMPLOYMENT INITIATIVES,COO,REED IN PARTNERSHIP HACKNEY LTD,2023533793,"23,246"
Department for Work and Pensions,Employment Programmes,16-Dec-11,EP PROVIDER PAYMENT - WORK PROGRAMME,COO,A4E LTD,2023611578,"23,200"
Department for Work and Pensions,Employment Programmes,29-Dec-11,EP PROVIDER PAYMENT - WORK PROGRAMME,COO,A4E LTD,2023772211,"23,200"
Department for Work and Pensions,Employment Programmes,29-Dec-11,EP PROVIDER PAYMENT - WORK PROGRAMME,COO,AVANTA ENTERPRISE LTD,2023772240,"23,200"
Department for Work and Pensions,Employment Programmes,23-Dec-11,EP PROVIDER PAYMENT - WORK PROGRAMME,COO,INGEUS UK LTD,2023724530,"23,200"
Department for Work and Pensions,Employment Programmes,19-Dec-11,EP PROVIDER PAYMENT - WORK PROGRAMME,COO,INGEUS UK LTD,2023618810,"23,200"
Department for Work and Pensions,Employment Programmes,16-Dec-11,EP PROVIDER PAYMENT - WORK PROGRAMME,COO,INGEUS UK LTD,2023613472,"23,200"
Department for Work and Pensions,Employment Programmes,22-Dec-11,EP PROVIDER PAYMENT - WORK PROGRAMME,COO,REHAB JOBFIT,2023699227,"23,200"
Department for Work and Pensions,Jobcentre Plus,29-Dec-11,APPS DEV,COO,HP ENTERPRISE SERVICES UK LTD,2023774101,"22,919"
Department for Work and Pensions,Employment Programmes,14-Dec-11,EP PROVIDER PAYMENT - WORK PROGRAMME,COO,AVANTA ENTERPRISE LTD,2023543985,"22,800"
Department for Work and Pensions,Employment Programmes,01-Dec-11,EP PROVIDER PAYMENT - WORK PROGRAMME,COO,CAREERS DEVELOPMENT GROUP,2023436825,"22,800"
Department for Work and Pensions,Employment Programmes,06-Dec-11,EP PROVIDER PAYMENT - WORK PROGRAMME,COO,INGEUS UK LTD,2023453910,"22,800"
Department for Work and Pensions,Employment Programmes,19-Dec-11,EP PROVIDER PAYMENT - WORK PROGRAMME,COO,INGEUS UK LTD,2023618810,"22,800"
Department for Work and Pensions,Employment Programmes,19-Dec-11,EP PROVIDER PAYMENT - WORK PROGRAMME,COO,SEETEC BUSINESS TECHNOLOGY CENTRE LTD,2023619932,"22,800"
Department for Work and Pensions,Jobcentre Plus,06-Dec-11,COMPUTER SERVICES,COO,HP ENTERPRISE SERVICES UK LTD,2023453862,"22,790"
Department for Work and Pensions,"Pension, Disability Carers Services",05-Dec-11,TELEPHONE AND POSTAGE,COO,ROYAL MAIL GROUP PLC,2023449928,"22,640"
Department for Work and Pensions,Employment Programmes,19-Dec-11,EP PROVIDER PAYMENT - NON-WORK PROGRAMME,COO,SEETEC BUSINESS TECHNOLOGY CENTRE LTD,2023619932,"22,601"
Department for Work and Pensions,Employment Programmes,21-Dec-11,EP PROVIDER PAYMENT - WORK PROGRAMME,COO,A4E LTD,2023632341,"22,400"
Department for Work and Pensions,Employment Programmes,29-Dec-11,EP PROVIDER PAYMENT - WORK PROGRAMME,COO,AVANTA ENTERPRISE LTD,2023772240,"22,400"
Department for Work and Pensions,Employment Programmes,23-Dec-11,EP PROVIDER PAYMENT - WORK PROGRAMME,COO,INGEUS UK LTD,2023724530,"22,400"
Department for Work and Pensions,Employment Programmes,08-Dec-11,EP PROVIDER PAYMENT - WORK PROGRAMME,COO,INGEUS UK LTD,2023523508,"22,400"
Department for Work and Pensions,Employment Programmes,02-Dec-11,EP PROVIDER PAYMENT - WORK PROGRAMME,COO,INGEUS UK LTD,2023444362,"22,400"
Department for Work and Pensions,Employment Programmes,21-Dec-11,EP PROVIDER PAYMENT - WORK PROGRAMME,COO,INGEUS UK LTD,2023651001,"22,400"
Department for Work and Pensions,Employment Programmes,22-Dec-11,EP PROVIDER PAYMENT - WORK PROGRAMME,COO,JHP GROUP LTD,2023698243,"22,400"
Department for Work and Pensions,Employment Programmes,29-Dec-11,EP PROVIDER PAYMENT - WORK PROGRAMME,COO,REHAB JOBFIT,2023774985,"22,400"
Department for Work and Pensions,Employment Programmes,20-Dec-11,EP PROVIDER PAYMENT - WORK PROGRAMME,COO,SERCO LTD,2023625381,"22,400"
Department for Work and Pensions,Corporate,02-Dec-11,COMPUTER SERVICES,Change PMU,ACCENTURE UK LTD,2023442716,"22,209"
Department for Work and Pensions,Employment Programmes,14-Dec-11,EP PROVIDER PAYMENT - WORK PROGRAMME,COO,WORKING LINKS,2023603064,"22,200"
Department for Work and Pensions,Housing Benefits,14-Dec-11,Housing Benefit Admin,COO,COMHAIRLE NAN EILEAN SIAR COUNCIL,2023605817,"22,138"
Department for Work and Pensions,Jobcentre Plus,12-Dec-11,EU PROGRAMMES,COO,PINNACLE PEOPLE,2023533686,"22,120"
Department for Work and Pensions,Corporate,30-Dec-11,ACCOMMODATION,F&C,TELEREAL TRILLIUM,2023772053,"22,074"
Department for Work and Pensions,Employment Programmes,14-Dec-11,EP PROVIDER PAYMENT - WORK PROGRAMME,COO,A4E LTD,2023543926,"22,000"
Department for Work and Pensions,Employment Programmes,20-Dec-11,EP PROVIDER PAYMENT - WORK PROGRAMME,COO,CAREERS DEVELOPMENT GROUP,2023622126,"22,000"
Department for Work and Pensions,Employment Programmes,20-Dec-11,EP PROVIDER PAYMENT - WORK PROGRAMME,COO,EOS WORKS LTD,2023622811,"22,000"
Department for Work and Pensions,Employment Programmes,07-Dec-11,EP PROVIDER PAYMENT - WORK PROGRAMME,COO,G4S REGIONAL MANAGEMENT UK & I LTD,2023477489,"22,000"
Department for Work and Pensions,Employment Programmes,14-Dec-11,EP PROVIDER PAYMENT - WORK PROGRAMME,COO,INGEUS UK LTD,2023563059,"22,000"
Department for Work and Pensions,Employment Programmes,15-Dec-11,EP PROVIDER PAYMENT - WORK PROGRAMME,COO,INGEUS UK LTD,2023608008,"22,000"
Department for Work and Pensions,Employment Programmes,06-Dec-11,EP PROVIDER PAYMENT - WORK PROGRAMME,COO,MAXIMUS EMPLOYMENT UK LTD,2023454793,"22,000"
Department for Work and Pensions,Employment Programmes,19-Dec-11,EP PROVIDER PAYMENT - WORK PROGRAMME,COO,MAXIMUS EMPLOYMENT UK LTD,2023619396,"22,000"
Department for Work and Pensions,Employment Programmes,14-Dec-11,EP PROVIDER PAYMENT - WORK PROGRAMME,COO,PERTEMPS,2023588491,"22,000"
Department for Work and Pensions,Employment Programmes,29-Dec-11,EP PROVIDER PAYMENT - WORK PROGRAMME,COO,REED IN PARTNERSHIP LTD,2023774983,"22,000"
Department for Work and Pensions,Employment Programmes,23-Dec-11,EP PROVIDER PAYMENT - WORK PROGRAMME,COO,SEETEC BUSINESS TECHNOLOGY CENTRE LTD,2023760175,"22,000"
Department for Work and Pensions,Employment Programmes,08-Dec-11,EP PROVIDER PAYMENT - WORK PROGRAMME,COO,SEETEC BUSINESS TECHNOLOGY CENTRE LTD,2023524719,"22,000"
Department for Work and Pensions,Employment Programmes,23-Dec-11,EP PROVIDER PAYMENT - WORK PROGRAMME,COO,WORKING LINKS,2023764413,"22,000"
Department for Work and Pensions,Employment Programmes,06-Dec-11,EP PROVIDER PAYMENT - WORK PROGRAMME,COO,WORKING LINKS,2023455950,"22,000"
Department for Work and Pensions,Jobcentre Plus,05-Dec-11,TELEPHONE AND POSTAGE,COO,ROYAL MAIL GROUP PLC,2023449928,"21,881"
Department for Work and Pensions,Housing Benefits,14-Dec-11,Housing Benefit Admin,COO,EDEN DISTRICT COUNCIL,2023605857,"21,795"
Department for Work and Pensions,Employment Programmes,12-Dec-11,EP PROVIDER PAYMENT - WORK PROGRAMME,COO,A4E LTD,2023530338,"21,600"
Department for Work and Pensions,Employment Programmes,23-Dec-11,EP PROVIDER PAYMENT - WORK PROGRAMME,COO,A4E LTD,2023706813,"21,600"
Department for Work and Pensions,Employment Programmes,22-Dec-11,EP PROVIDER PAYMENT - WORK PROGRAMME,COO,EOS WORKS LTD,2023697689,"21,600"
Department for Work and Pensions,Employment Programmes,20-Dec-11,EP PROVIDER PAYMENT - WORK PROGRAMME,COO,EOS WORKS LTD,2023622811,"21,600"
Department for Work and Pensions,Employment Programmes,06-Dec-11,EP PROVIDER PAYMENT - WORK PROGRAMME,COO,G4S REGIONAL MANAGEMENT UK & I LTD,2023453758,"21,600"
Department for Work and Pensions,Employment Programmes,23-Dec-11,EP PROVIDER PAYMENT - WORK PROGRAMME,COO,INGEUS UK LTD,2023724530,"21,600"
Department for Work and Pensions,Employment Programmes,07-Dec-11,EP PROVIDER PAYMENT - WORK PROGRAMME,COO,INGEUS UK LTD,2023479601,"21,600"
Department for Work and Pensions,Employment Programmes,29-Dec-11,EP PROVIDER PAYMENT - WORK PROGRAMME,COO,SERCO LTD,2023775189,"21,600"
Department for Work and Pensions,Employment Programmes,20-Dec-11,EP PROVIDER PAYMENT - WORK PROGRAMME,COO,WORKING LINKS,2023625699,"21,600"
Department for Work and Pensions,Employment Programmes,19-Dec-11,EP PROVIDER PAYMENT - WORK PROGRAMME,COO,WORKING LINKS,2023620137,"21,600"
Department for Work and Pensions,Corporate,20-Dec-11,MISCELLANEOUS EXPENDITURE,PS,GFK NOP LTD,2023623041,"21,446"
Department for Work and Pensions,Housing Benefits,14-Dec-11,Housing Benefit Admin,COO,MELTON BOROUGH COUNCIL,2023605950,"21,427"
Department for Work and Pensions,Jobcentre Plus,05-Dec-11,TELEPHONE AND POSTAGE,COO,ROYAL MAIL GROUP PLC,2023449928,"21,224"
Department for Work and Pensions,Corporate,30-Dec-11,ACCOMMODATION,F&C,TELEREAL TRILLIUM,2023772053,"21,214"
Department for Work and Pensions,Employment Programmes,06-Dec-11,EP PROVIDER PAYMENT - WORK PROGRAMME,COO,EOS WORKS LTD,2023453598,"21,200"
Department for Work and Pensions,Employment Programmes,08-Dec-11,EP PROVIDER PAYMENT - WORK PROGRAMME,COO,INGEUS UK LTD,2023523508,"21,200"
Department for Work and Pensions,Employment Programmes,21-Dec-11,EP PROVIDER PAYMENT - WORK PROGRAMME,COO,INGEUS UK LTD,2023651001,"21,200"
Department for Work and Pensions,Employment Programmes,29-Dec-11,EP PROVIDER PAYMENT - WORK PROGRAMME,COO,INGEUS UK LTD,2023774132,"21,200"
Department for Work and Pensions,Employment Programmes,14-Dec-11,EP PROVIDER PAYMENT - WORK PROGRAMME,COO,INGEUS UK LTD,2023563059,"21,200"
Department for Work and Pensions,Employment Programmes,21-Dec-11,EP PROVIDER PAYMENT - WORK PROGRAMME,COO,INGEUS UK LTD,2023651001,"21,200"
Department for Work and Pensions,Employment Programmes,19-Dec-11,EP PROVIDER PAYMENT - WORK PROGRAMME,COO,INGEUS UK LTD,2023618810,"21,200"
Department for Work and Pensions,Employment Programmes,21-Dec-11,EP PROVIDER PAYMENT - WORK PROGRAMME,COO,INGEUS UK LTD,2023651001,"21,200"
Department for Work and Pensions,Employment Programmes,21-Dec-11,EP PROVIDER PAYMENT - WORK PROGRAMME,COO,MAXIMUS EMPLOYMENT UK LTD,2023672611,"21,200"
Department for Work and Pensions,Employment Programmes,28-Dec-11,EP PROVIDER PAYMENT - WORK PROGRAMME,COO,NEWCASTLE COLLEGE GROUP,2023769997,"21,200"
Department for Work and Pensions,Employment Programmes,14-Dec-11,EP PROVIDER PAYMENT - WORK PROGRAMME,COO,PERTEMPS,2023588491,"21,200"
Department for Work and Pensions,Employment Programmes,23-Dec-11,EP PROVIDER PAYMENT - WORK PROGRAMME,COO,PERTEMPS,2023749873,"21,200"
Department for Work and Pensions,Employment Programmes,14-Dec-11,EP PROVIDER PAYMENT - WORK PROGRAMME,COO,SEETEC BUSINESS TECHNOLOGY CENTRE LTD,2023598788,"21,200"
Department for Work and Pensions,Employment Programmes,14-Dec-11,EP PROVIDER PAYMENT - WORK PROGRAMME,COO,SERCO LTD,2023598791,"21,200"
Department for Work and Pensions,Employment Programmes,08-Dec-11,ACCESS TO WORK,COO,KEY 4 LEARNING LTD T/A A2A,2023523840,"21,176"
Department for Work and Pensions,Employment Programmes,29-Dec-11,EP PROVIDER PAYMENT - WORK PROGRAMME,COO,TBG LEARNING LTD,2023775285,"21,120"
Department for Work and Pensions,Housing Benefits,14-Dec-11,Housing Benefit Admin,COO,RICHMONDSHIRE DISTRICT COUNCIL,2023606006,"20,986"
Department for Work and Pensions,Jobcentre Plus,29-Dec-11,APPS DEV,Change PMU,HP ENTERPRISE SERVICES UK LTD,2023774101,"20,910"
Department for Work and Pensions,Employment Programmes,06-Dec-11,EP PROVIDER PAYMENT - WORK PROGRAMME,COO,A4E LTD,2023451887,"20,800"
Department for Work and Pensions,Employment Programmes,23-Dec-11,EP PROVIDER PAYMENT - WORK PROGRAMME,COO,A4E LTD,2023706813,"20,800"
Department for Work and Pensions,Employment Programmes,29-Dec-11,EP PROVIDER PAYMENT - WORK PROGRAMME,COO,INGEUS UK LTD,2023774132,"20,800"
Department for Work and Pensions,Employment Programmes,14-Dec-11,EP PROVIDER PAYMENT - WORK PROGRAMME,COO,INGEUS UK LTD,2023563059,"20,800"
Department for Work and Pensions,Employment Programmes,01-Dec-11,EP PROVIDER PAYMENT - WORK PROGRAMME,COO,NEWCASTLE COLLEGE GROUP,2023439699,"20,800"
Department for Work and Pensions,Employment Programmes,23-Dec-11,EP PROVIDER PAYMENT - WORK PROGRAMME,COO,REED IN PARTNERSHIP LTD,2023752575,"20,800"
Department for Work and Pensions,Employment Programmes,01-Dec-11,EP PROVIDER PAYMENT - WORK PROGRAMME,COO,SEETEC BUSINESS TECHNOLOGY CENTRE LTD,2023440364,"20,800"
Department for Work and Pensions,Employment Programmes,21-Dec-11,EP PROVIDER PAYMENT - WORK PROGRAMME,COO,WORKING LINKS,2023692520,"20,800"
Department for Work and Pensions,Employment Programmes,14-Dec-11,EP PROVIDER PAYMENT - NON-WORK PROGRAMME,COO,SEETEC BUSINESS TECHNOLOGY CENTRE LTD,2023598788,"20,756"
Department for Work and Pensions,Corporate,23-Dec-11,TEMPORARY (TEMP) STAFF COSTS,Change PMU,CAPITA RESOURCING LTD,2023712752,"20,725"
Department for Work and Pensions,Jobcentre Plus,12-Dec-11,PROFESSIONAL FEES,COO,THE BIG WORD INTERPRETING SERVICES LTD,2023534166,"20,474"
Department for Work and Pensions,Employment Programmes,08-Dec-11,EP PROVIDER PAYMENT - WORK PROGRAMME,COO,A4E LTD,2023521581,"20,400"
Department for Work and Pensions,Employment Programmes,22-Dec-11,EP PROVIDER PAYMENT - WORK PROGRAMME,COO,A4E LTD,2023695789,"20,400"
Department for Work and Pensions,Employment Programmes,06-Dec-11,EP PROVIDER PAYMENT - WORK PROGRAMME,COO,A4E LTD,2023451887,"20,400"
Department for Work and Pensions,Employment Programmes,09-Dec-11,EP PROVIDER PAYMENT - WORK PROGRAMME,COO,AVANTA ENTERPRISE LTD,2023526564,"20,400"
Department for Work and Pensions,Employment Programmes,22-Dec-11,EP PROVIDER PAYMENT - WORK PROGRAMME,COO,MAXIMUS EMPLOYMENT UK LTD,2023698774,"20,400"
Department for Work and Pensions,Employment Programmes,29-Dec-11,EP PROVIDER PAYMENT - WORK PROGRAMME,COO,MAXIMUS EMPLOYMENT UK LTD,2023774715,"20,400"
Department for Work and Pensions,Employment Programmes,29-Dec-11,EP PROVIDER PAYMENT - WORK PROGRAMME,COO,SEETEC BUSINESS TECHNOLOGY CENTRE LTD,2023775183,"20,400"
Department for Work and Pensions,Employment Programmes,09-Dec-11,EP PROVIDER PAYMENT - WORK PROGRAMME,COO,SEETEC BUSINESS TECHNOLOGY CENTRE LTD,2023528823,"20,400"
Department for Work and Pensions,Jobcentre Plus,13-Dec-11,APPS DEV,Change PMU,HP ENTERPRISE SERVICES UK LTD,2023536459,"20,257"
Department for Work and Pensions,Housing Benefits,14-Dec-11,Housing Benefit Admin,COO,RIBBLE VALLEY BOROUGH COUNCIL,2023606005,"20,256"
Department for Work and Pensions,Corporate,13-Dec-11,APPS DEV,Change PMU,HP ENTERPRISE SERVICES UK LTD,2023536459,"20,243"
Department for Work and Pensions,Corporate,30-Dec-11,ACCOMMODATION,F&C,TELEREAL TRILLIUM,2023772055,"20,241"
Department for Work and Pensions,Corporate,15-Dec-11,COMPUTER SERVICES,CIT,ATOS ORIGIN IT SERVICES UK LTD,2023606338,"20,235"
Department for Work and Pensions,Employment Programmes,06-Dec-11,EP PROVIDER PAYMENT - WORK PROGRAMME,COO,A4E LTD,2023451887,"20,000"
Department for Work and Pensions,Employment Programmes,06-Dec-11,EP PROVIDER PAYMENT - WORK PROGRAMME,COO,A4E LTD,2023451887,"20,000"
Department for Work and Pensions,Employment Programmes,06-Dec-11,EP PROVIDER PAYMENT - WORK PROGRAMME,COO,AVANTA ENTERPRISE LTD,2023451913,"20,000"
Department for Work and Pensions,Employment Programmes,22-Dec-11,EP PROVIDER PAYMENT - WORK PROGRAMME,COO,AVANTA ENTERPRISE LTD,2023695827,"20,000"
Department for Work and Pensions,Employment Programmes,29-Dec-11,EP PROVIDER PAYMENT - WORK PROGRAMME,COO,AVANTA ENTERPRISE LTD,2023772240,"20,000"
Department for Work and Pensions,Employment Programmes,14-Dec-11,EP PROVIDER PAYMENT - WORK PROGRAMME,COO,INGEUS UK LTD,2023563059,"20,000"
Department for Work and Pensions,Employment Programmes,08-Dec-11,EP PROVIDER PAYMENT - WORK PROGRAMME,COO,INGEUS UK LTD,2023523508,"20,000"
Department for Work and Pensions,Employment Programmes,16-Dec-11,EP PROVIDER PAYMENT - WORK PROGRAMME,COO,SEETEC BUSINESS TECHNOLOGY CENTRE LTD,2023614493,"20,000"
Department for Work and Pensions,Corporate,06-Dec-11,MISCELLANEOUS EXPENDITURE,STR,TNS BMRB,2023455843,"20,000"
Department for Work and Pensions,Employment Programmes,29-Dec-11,EP PROVIDER PAYMENT - WORK PROGRAMME,COO,WORKING LINKS,2023775411,"20,000"
Department for Work and Pensions,Employment Programmes,01-Dec-11,EP PROVIDER PAYMENT - WORK PROGRAMME,COO,WORKING LINKS,2023440626,"20,000"
Department for Work and Pensions,Corporate,30-Dec-11,ACCOMMODATION,F&C,TELEREAL TRILLIUM,2023772051,"19,952"
Department for Work and Pensions,Employment Programmes,06-Dec-11,EP PROVIDER PAYMENT - WORK PROGRAMME,COO,A4E LTD,2023451887,"19,800"
Department for Work and Pensions,Employment Programmes,14-Dec-11,EP PROVIDER PAYMENT - WORK PROGRAMME,COO,WORKING LINKS,2023603064,"19,800"
Department for Work and Pensions,Employment Programmes,01-Dec-11,EP PROVIDER PAYMENT - WORK PROGRAMME,COO,A4E LTD,2023436475,"19,600"
Department for Work and Pensions,Employment Programmes,09-Dec-11,EP PROVIDER PAYMENT - WORK PROGRAMME,COO,AVANTA ENTERPRISE LTD,2023526564,"19,600"
Department for Work and Pensions,Employment Programmes,16-Dec-11,EP PROVIDER PAYMENT - WORK PROGRAMME,COO,AVANTA ENTERPRISE LTD,2023611618,"19,600"
Department for Work and Pensions,Employment Programmes,29-Dec-11,EP PROVIDER PAYMENT - WORK PROGRAMME,COO,ESG HOLDINGS LIMITED,2023773944,"19,600"
Department for Work and Pensions,Employment Programmes,29-Dec-11,EP PROVIDER PAYMENT - WORK PROGRAMME,COO,INGEUS UK LTD,2023774132,"19,600"
Department for Work and Pensions,Employment Programmes,02-Dec-11,EP PROVIDER PAYMENT - WORK PROGRAMME,COO,INGEUS UK LTD,2023444362,"19,600"
Department for Work and Pensions,Employment Programmes,14-Dec-11,EP PROVIDER PAYMENT - WORK PROGRAMME,COO,INGEUS UK LTD,2023563059,"19,600"
Department for Work and Pensions,Corporate,23-Dec-11,TEMPORARY (TEMP) STAFF COSTS,PS,CAPITA RESOURCING LTD,2023712752,"19,398"
Department for Work and Pensions,Jobcentre Plus,05-Dec-11,TELEPHONE AND POSTAGE,COO,ROYAL MAIL GROUP PLC,2023449928,"19,384"
Department for Work and Pensions,Jobcentre Plus,05-Dec-11,TELEPHONE AND POSTAGE,COO,ROYAL MAIL GROUP PLC,2023449928,"19,290"
Department for Work and Pensions,Employment Programmes,28-Dec-11,EP PROVIDER PAYMENT - WORK PROGRAMME,COO,A4E LTD,2023767374,"19,200"
Department for Work and Pensions,Employment Programmes,02-Dec-11,EP PROVIDER PAYMENT - WORK PROGRAMME,COO,AVANTA ENTERPRISE LTD,2023442741,"19,200"
Department for Work and Pensions,Employment Programmes,23-Dec-11,EP PROVIDER PAYMENT - WORK PROGRAMME,COO,AVANTA ENTERPRISE LTD,2023706853,"19,200"
Department for Work and Pensions,Employment Programmes,15-Dec-11,EP PROVIDER PAYMENT - WORK PROGRAMME,COO,CAREERS DEVELOPMENT GROUP,2023606556,"19,200"
Department for Work and Pensions,Employment Programmes,14-Dec-11,EP PROVIDER PAYMENT - WORK PROGRAMME,COO,CAREERS DEVELOPMENT GROUP,2023549933,"19,200"
Department for Work and Pensions,Employment Programmes,20-Dec-11,EP PROVIDER PAYMENT - WORK PROGRAMME,COO,CAREERS DEVELOPMENT GROUP,2023622126,"19,200"
Department for Work and Pensions,Employment Programmes,02-Dec-11,EP PROVIDER PAYMENT - WORK PROGRAMME,COO,G4S REGIONAL MANAGEMENT UK & I LTD,2023444286,"19,200"
Department for Work and Pensions,Corporate,13-Dec-11,APPS DEV,PS,HP ENTERPRISE SERVICES UK LTD,2023536459,"19,200"
Department for Work and Pensions,Employment Programmes,14-Dec-11,EP PROVIDER PAYMENT - WORK PROGRAMME,COO,INGEUS UK LTD,2023563059,"19,200"
Department for Work and Pensions,Employment Programmes,06-Dec-11,EP PROVIDER PAYMENT - WORK PROGRAMME,COO,INGEUS UK LTD,2023453910,"19,200"
Department for Work and Pensions,Employment Programmes,08-Dec-11,EP PROVIDER PAYMENT - WORK PROGRAMME,COO,INGEUS UK LTD,2023523508,"19,200"
Department for Work and Pensions,Employment Programmes,06-Dec-11,EP PROVIDER PAYMENT - WORK PROGRAMME,COO,NEWCASTLE COLLEGE GROUP,2023454941,"19,200"
Department for Work and Pensions,Employment Programmes,02-Dec-11,EP PROVIDER PAYMENT - WORK PROGRAMME,COO,NEWCASTLE COLLEGE GROUP,2023444826,"19,200"
Department for Work and Pensions,Employment Programmes,28-Dec-11,EP PROVIDER PAYMENT - WORK PROGRAMME,COO,NEWCASTLE COLLEGE GROUP,2023769997,"19,200"
Department for Work and Pensions,Employment Programmes,06-Dec-11,EP PROVIDER PAYMENT - WORK PROGRAMME,COO,SEETEC BUSINESS TECHNOLOGY CENTRE LTD,2023455670,"19,200"
Department for Work and Pensions,Corporate,01-Dec-11,PRINTING STATIONERY IT CONSUMABLES,F&C,XEROX UK LTD 3W,2023440629,"19,117"
Department for Work and Pensions,Corporate,15-Dec-11,ACCOMMODATION,F&C,TELEREAL TRILLIUM,2023609312,"19,086"
Department for Work and Pensions,Employment Programmes,28-Dec-11,EP PROVIDER PAYMENT - WORK PROGRAMME,COO,AVANTA ENTERPRISE LTD,2023767410,"18,800"
Department for Work and Pensions,Employment Programmes,15-Dec-11,EP PROVIDER PAYMENT - WORK PROGRAMME,COO,AVANTA ENTERPRISE LTD,2023606340,"18,800"
Department for Work and Pensions,Employment Programmes,23-Dec-11,EP PROVIDER PAYMENT - WORK PROGRAMME,COO,AVANTA ENTERPRISE LTD,2023706853,"18,800"
Department for Work and Pensions,Employment Programmes,02-Dec-11,EP PROVIDER PAYMENT - WORK PROGRAMME,COO,CAREERS DEVELOPMENT GROUP,2023442861,"18,800"
Department for Work and Pensions,Employment Programmes,23-Dec-11,EP PROVIDER PAYMENT - WORK PROGRAMME,COO,G4S REGIONAL MANAGEMENT UK & I LTD,2023722378,"18,800"
Department for Work and Pensions,Employment Programmes,23-Dec-11,EP PROVIDER PAYMENT - WORK PROGRAMME,COO,G4S REGIONAL MANAGEMENT UK & I LTD,2023722378,"18,800"
Department for Work and Pensions,Employment Programmes,14-Dec-11,EP PROVIDER PAYMENT - WORK PROGRAMME,COO,G4S REGIONAL MANAGEMENT UK & I LTD,2023560895,"18,800"
Department for Work and Pensions,Employment Programmes,07-Dec-11,EP PROVIDER PAYMENT - WORK PROGRAMME,COO,INGEUS UK LTD,2023479601,"18,800"
Department for Work and Pensions,Employment Programmes,01-Dec-11,EP PROVIDER PAYMENT - WORK PROGRAMME,COO,NEWCASTLE COLLEGE GROUP,2023439699,"18,800"
Department for Work and Pensions,Employment Programmes,23-Dec-11,EP PROVIDER PAYMENT - WORK PROGRAMME,COO,PERTEMPS,2023749873,"18,800"
Department for Work and Pensions,Employment Programmes,21-Dec-11,EP PROVIDER PAYMENT - WORK PROGRAMME,COO,REHAB JOBFIT,2023680223,"18,800"
Department for Work and Pensions,Employment Programmes,28-Dec-11,EP PROVIDER PAYMENT - WORK PROGRAMME,COO,SEETEC BUSINESS TECHNOLOGY CENTRE LTD,2023770526,"18,800"
Department for Work and Pensions,Employment Programmes,23-Dec-11,EP PROVIDER PAYMENT - NON-WORK PROGRAMME,COO,A4E LTD,2023706813,"18,667"
Department for Work and Pensions,Corporate,22-Dec-11,CONTRACTED OUT SERVICES,F&C,CAPITA BUSINESS SERVICES LTD,2023696131,"18,637"
Department for Work and Pensions,Employment Programmes,06-Dec-11,EP PROVIDER PAYMENT - WORK PROGRAMME,COO,INGEUS UK LTD,2023453910,"18,615"
Department for Work and Pensions,"Pension, Disability Carers Services",29-Dec-11,APPS DEV,Change PMU,HP ENTERPRISE SERVICES UK LTD,2023774101,"18,566"
Department for Work and Pensions,Jobcentre Plus,12-Dec-11,EU PROGRAMMES,COO,PINNACLE PEOPLE,2023533686,"18,560"
Department for Work and Pensions,Employment Programmes,22-Dec-11,EP PROVIDER PAYMENT - WORK PROGRAMME,COO,INGEUS UK LTD,2023697986,"18,450"
Department for Work and Pensions,Corporate,19-Dec-11,COMPUTER SERVICES,CIT,ATOS ORIGIN IT SERVICES UK LTD,2023616210,"18,442"
Department for Work and Pensions,Employment Programmes,16-Dec-11,EP PROVIDER PAYMENT - WORK PROGRAMME,COO,CAREERS DEVELOPMENT GROUP,2023611805,"18,400"
Department for Work and Pensions,Employment Programmes,14-Dec-11,EP PROVIDER PAYMENT - WORK PROGRAMME,COO,ESG HOLDINGS LIMITED,2023558432,"18,400"
Department for Work and Pensions,Employment Programmes,29-Dec-11,EP PROVIDER PAYMENT - WORK PROGRAMME,COO,ESG HOLDINGS LIMITED,2023773944,"18,400"
Department for Work and Pensions,Employment Programmes,14-Dec-11,EP PROVIDER PAYMENT - WORK PROGRAMME,COO,G4S REGIONAL MANAGEMENT UK & I LTD,2023560895,"18,400"
Department for Work and Pensions,Employment Programmes,12-Dec-11,EP PROVIDER PAYMENT - WORK PROGRAMME,COO,INGEUS UK LTD,2023532883,"18,400"
Department for Work and Pensions,Employment Programmes,22-Dec-11,EP PROVIDER PAYMENT - WORK PROGRAMME,COO,INGEUS UK LTD,2023697986,"18,400"
Department for Work and Pensions,Employment Programmes,28-Dec-11,EP PROVIDER PAYMENT - WORK PROGRAMME,COO,INGEUS UK LTD,2023769245,"18,400"
Department for Work and Pensions,Employment Programmes,08-Dec-11,EP PROVIDER PAYMENT - WORK PROGRAMME,COO,INGEUS UK LTD,2023523508,"18,400"
Department for Work and Pensions,Employment Programmes,20-Dec-11,EP PROVIDER PAYMENT - WORK PROGRAMME,COO,MAXIMUS EMPLOYMENT UK LTD,2023624319,"18,400"
Department for Work and Pensions,Employment Programmes,06-Dec-11,EP PROVIDER PAYMENT - WORK PROGRAMME,COO,NEWCASTLE COLLEGE GROUP,2023454941,"18,400"
Department for Work and Pensions,Employment Programmes,28-Dec-11,EP PROVIDER PAYMENT - WORK PROGRAMME,COO,PERTEMPS,2023770117,"18,400"
Department for Work and Pensions,Employment Programmes,16-Dec-11,EP PROVIDER PAYMENT - WORK PROGRAMME,COO,SEETEC BUSINESS TECHNOLOGY CENTRE LTD,2023614493,"18,400"
Department for Work and Pensions,Employment Programmes,21-Dec-11,EP PROVIDER PAYMENT - WORK PROGRAMME,COO,SEETEC BUSINESS TECHNOLOGY CENTRE LTD,2023688113,"18,400"
Department for Work and Pensions,Employment Programmes,06-Dec-11,EP PROVIDER PAYMENT - WORK PROGRAMME,COO,SERCO LTD,2023455674,"18,400"
Department for Work and Pensions,Employment Programmes,29-Dec-11,EP PROVIDER PAYMENT - WORK PROGRAMME,COO,INGEUS UK LTD,2023774131,"18,275"
Department for Work and Pensions,Employment Programmes,09-Dec-11,EP PROVIDER PAYMENT - WORK PROGRAMME,COO,INGEUS UK LTD,2023528031,"18,105"
Department for Work and Pensions,Employment Programmes,29-Dec-11,EP PROVIDER PAYMENT - WORK PROGRAMME,COO,A4E LTD,2023772211,"18,000"
Department for Work and Pensions,Employment Programmes,22-Dec-11,EP PROVIDER PAYMENT - WORK PROGRAMME,COO,A4E LTD,2023695789,"18,000"
Department for Work and Pensions,Employment Programmes,22-Dec-11,EP PROVIDER PAYMENT - WORK PROGRAMME,COO,A4E LTD,2023695789,"18,000"
Department for Work and Pensions,Employment Programmes,22-Dec-11,EP PROVIDER PAYMENT - WORK PROGRAMME,COO,A4E LTD,2023695789,"18,000"
Department for Work and Pensions,Employment Programmes,23-Dec-11,EP PROVIDER PAYMENT - WORK PROGRAMME,COO,AVANTA ENTERPRISE LTD,2023706853,"18,000"
Department for Work and Pensions,Employment Programmes,16-Dec-11,EP PROVIDER PAYMENT - WORK PROGRAMME,COO,AVANTA ENTERPRISE LTD,2023611618,"18,000"
Department for Work and Pensions,Employment Programmes,20-Dec-11,EP PROVIDER PAYMENT - WORK PROGRAMME,COO,CAREERS DEVELOPMENT GROUP,2023622126,"18,000"
Department for Work and Pensions,Employment Programmes,06-Dec-11,EP PROVIDER PAYMENT - WORK PROGRAMME,COO,EOS WORKS LTD,2023453598,"18,000"
Department for Work and Pensions,Employment Programmes,07-Dec-11,EP PROVIDER PAYMENT - WORK PROGRAMME,COO,G4S REGIONAL MANAGEMENT UK & I LTD,2023477489,"18,000"
Department for Work and Pensions,Employment Programmes,14-Dec-11,EP PROVIDER PAYMENT - WORK PROGRAMME,COO,G4S REGIONAL MANAGEMENT UK & I LTD,2023560895,"18,000"
Department for Work and Pensions,Employment Programmes,01-Dec-11,EP PROVIDER PAYMENT - WORK PROGRAMME,COO,INGEUS UK LTD,2023438620,"18,000"
Department for Work and Pensions,Employment Programmes,28-Dec-11,EP PROVIDER PAYMENT - WORK PROGRAMME,COO,INGEUS UK LTD,2023769245,"18,000"
Department for Work and Pensions,Employment Programmes,14-Dec-11,EP PROVIDER PAYMENT - WORK PROGRAMME,COO,INGEUS UK LTD,2023563059,"18,000"
Department for Work and Pensions,Employment Programmes,01-Dec-11,EP PROVIDER PAYMENT - WORK PROGRAMME,COO,JHP GROUP LTD,2023438910,"18,000"
Department for Work and Pensions,Employment Programmes,21-Dec-11,EP PROVIDER PAYMENT - WORK PROGRAMME,COO,NEWCASTLE COLLEGE GROUP,2023675410,"18,000"
Department for Work and Pensions,Employment Programmes,14-Dec-11,EP PROVIDER PAYMENT - WORK PROGRAMME,COO,NEWCASTLE COLLEGE GROUP,2023586587,"18,000"
Department for Work and Pensions,Employment Programmes,06-Dec-11,EP PROVIDER PAYMENT - WORK PROGRAMME,COO,PROSPECT SERVICES LTD,2023455137,"18,000"
Department for Work and Pensions,Employment Programmes,01-Dec-11,EP PROVIDER PAYMENT - WORK PROGRAMME,COO,SEETEC BUSINESS TECHNOLOGY CENTRE LTD,2023440364,"18,000"
Department for Work and Pensions,Employment Programmes,21-Dec-11,EP PROVIDER PAYMENT - WORK PROGRAMME,COO,WORKING LINKS,2023692520,"18,000"
Department for Work and Pensions,Employment Programmes,29-Dec-11,EP PROVIDER PAYMENT - WORK PROGRAMME,COO,WORKING LINKS,2023775410,"18,000"
Department for Work and Pensions,"Pension, Disability Carers Services",05-Dec-11,TELEPHONE AND POSTAGE,COO,ROYAL MAIL GROUP PLC,2023449928,"17,888"
Department for Work and Pensions,Corporate,13-Dec-11,APPS DEV,CIT,HP ENTERPRISE SERVICES UK LTD,2023536459,"17,675"
Department for Work and Pensions,Employment Programmes,29-Dec-11,EP PROVIDER PAYMENT - WORK PROGRAMME,COO,A4E LTD,2023772210,"17,664"
Department for Work and Pensions,Employment Programmes,19-Dec-11,EP PROVIDER PAYMENT - WORK PROGRAMME,COO,CAREERS DEVELOPMENT GROUP,2023616409,"17,600"
Department for Work and Pensions,Employment Programmes,28-Dec-11,EP PROVIDER PAYMENT - WORK PROGRAMME,COO,G4S REGIONAL MANAGEMENT UK & I LTD,2023769121,"17,600"
Department for Work and Pensions,Employment Programmes,01-Dec-11,EP PROVIDER PAYMENT - WORK PROGRAMME,COO,INGEUS UK LTD,2023438620,"17,600"
Department for Work and Pensions,Employment Programmes,12-Dec-11,EP PROVIDER PAYMENT - WORK PROGRAMME,COO,INGEUS UK LTD,2023532883,"17,600"
Department for Work and Pensions,Employment Programmes,15-Dec-11,EP PROVIDER PAYMENT - WORK PROGRAMME,COO,INGEUS UK LTD,2023608008,"17,600"
Department for Work and Pensions,Employment Programmes,16-Dec-11,EP PROVIDER PAYMENT - WORK PROGRAMME,COO,INGEUS UK LTD,2023613472,"17,600"
Department for Work and Pensions,Employment Programmes,21-Dec-11,EP PROVIDER PAYMENT - WORK PROGRAMME,COO,INGEUS UK LTD,2023651001,"17,600"
Department for Work and Pensions,Employment Programmes,29-Dec-11,EP PROVIDER PAYMENT - WORK PROGRAMME,COO,PERTEMPS,2023774879,"17,600"
Department for Work and Pensions,Employment Programmes,02-Dec-11,EP PROVIDER PAYMENT - WORK PROGRAMME,COO,PROSPECT SERVICES LTD,2023444883,"17,600"
Department for Work and Pensions,Employment Programmes,28-Dec-11,EP PROVIDER PAYMENT - WORK PROGRAMME,COO,REHAB JOBFIT,2023770255,"17,600"
Department for Work and Pensions,Employment Programmes,12-Dec-11,EP PROVIDER PAYMENT - WORK PROGRAMME,COO,SEETEC BUSINESS TECHNOLOGY CENTRE LTD,2023534027,"17,600"
Department for Work and Pensions,Employment Programmes,12-Dec-11,EP PROVIDER PAYMENT - WORK PROGRAMME,COO,SERCO LTD,2023534034,"17,600"
Department for Work and Pensions,Employment Programmes,15-Dec-11,EP PROVIDER PAYMENT - WORK PROGRAMME,COO,SERCO LTD,2023609213,"17,600"
Department for Work and Pensions,Employment Programmes,16-Dec-11,EP PROVIDER PAYMENT - WORK PROGRAMME,COO,SERCO LTD,2023614496,"17,600"
Department for Work and Pensions,Employment Programmes,21-Dec-11,EP PROVIDER PAYMENT - WORK PROGRAMME,COO,SERCO LTD,2023688117,"17,600"
Department for Work and Pensions,Employment Programmes,23-Dec-11,EP PROVIDER PAYMENT - WORK PROGRAMME,COO,WORKING LINKS,2023764413,"17,600"
Department for Work and Pensions,Corporate,13-Dec-11,APPS DEV,F&C,HP ENTERPRISE SERVICES UK LTD,2023536459,"17,434"
Department for Work and Pensions,Employment Programmes,19-Dec-11,EP PROVIDER PAYMENT - WORK PROGRAMME,COO,CAREERS DEVELOPMENT GROUP,2023616409,"17,400"
Department for Work and Pensions,Corporate,13-Dec-11,APPS DEV,PS,HP ENTERPRISE SERVICES UK LTD,2023536459,"17,330"
Department for Work and Pensions,Employment Programmes,08-Dec-11,EP PROVIDER PAYMENT - WORK PROGRAMME,COO,A4E LTD,2023521581,"17,200"
Department for Work and Pensions,Employment Programmes,28-Dec-11,EP PROVIDER PAYMENT - WORK PROGRAMME,COO,A4E LTD,2023767374,"17,200"
Department for Work and Pensions,Employment Programmes,16-Dec-11,EP PROVIDER PAYMENT - WORK PROGRAMME,COO,A4E LTD,2023611578,"17,200"
Department for Work and Pensions,Employment Programmes,15-Dec-11,EP PROVIDER PAYMENT - WORK PROGRAMME,COO,AVANTA ENTERPRISE LTD,2023606340,"17,200"
Department for Work and Pensions,Employment Programmes,20-Dec-11,EP PROVIDER PAYMENT - WORK PROGRAMME,COO,AVANTA ENTERPRISE LTD,2023621723,"17,200"
Department for Work and Pensions,Employment Programmes,28-Dec-11,EP PROVIDER PAYMENT - WORK PROGRAMME,COO,BEST LTD,2023767466,"17,200"
Department for Work and Pensions,Employment Programmes,28-Dec-11,EP PROVIDER PAYMENT - WORK PROGRAMME,COO,ESG HOLDINGS LIMITED,2023769014,"17,200"
Department for Work and Pensions,Employment Programmes,06-Dec-11,EP PROVIDER PAYMENT - WORK PROGRAMME,COO,ESG HOLDINGS LIMITED,2023453601,"17,200"
Department for Work and Pensions,Employment Programmes,23-Dec-11,EP PROVIDER PAYMENT - WORK PROGRAMME,COO,G4S REGIONAL MANAGEMENT UK & I LTD,2023722378,"17,200"
Department for Work and Pensions,Employment Programmes,19-Dec-11,EP PROVIDER PAYMENT - WORK PROGRAMME,COO,G4S REGIONAL MANAGEMENT UK & I LTD,2023618704,"17,200"
Department for Work and Pensions,Employment Programmes,22-Dec-11,EP PROVIDER PAYMENT - WORK PROGRAMME,COO,INGEUS UK LTD,2023697986,"17,200"
Department for Work and Pensions,Employment Programmes,29-Dec-11,EP PROVIDER PAYMENT - WORK PROGRAMME,COO,INGEUS UK LTD,2023774132,"17,200"
Department for Work and Pensions,Employment Programmes,15-Dec-11,EP PROVIDER PAYMENT - WORK PROGRAMME,COO,INGEUS UK LTD,2023608008,"17,200"
Department for Work and Pensions,Employment Programmes,16-Dec-11,EP PROVIDER PAYMENT - WORK PROGRAMME,COO,INGEUS UK LTD,2023613472,"17,200"
Department for Work and Pensions,Employment Programmes,16-Dec-11,EP PROVIDER PAYMENT - WORK PROGRAMME,COO,INGEUS UK LTD,2023613472,"17,200"
Department for Work and Pensions,Employment Programmes,01-Dec-11,EP PROVIDER PAYMENT - WORK PROGRAMME,COO,MAXIMUS EMPLOYMENT UK LTD,2023439552,"17,200"
Department for Work and Pensions,Employment Programmes,14-Dec-11,EP PROVIDER PAYMENT - WORK PROGRAMME,COO,MAXIMUS EMPLOYMENT UK LTD,2023583906,"17,200"
Department for Work and Pensions,Employment Programmes,19-Dec-11,EP PROVIDER PAYMENT - WORK PROGRAMME,COO,REED IN PARTNERSHIP LTD,2023619701,"17,200"
Department for Work and Pensions,Employment Programmes,29-Dec-11,EP PROVIDER PAYMENT - WORK PROGRAMME,COO,SEETEC BUSINESS TECHNOLOGY CENTRE LTD,2023775183,"17,200"
Department for Work and Pensions,Employment Programmes,20-Dec-11,EP PROVIDER PAYMENT - WORK PROGRAMME,COO,SEETEC BUSINESS TECHNOLOGY CENTRE LTD,2023625377,"17,200"
Department for Work and Pensions,Employment Programmes,19-Dec-11,EP PROVIDER PAYMENT - WORK PROGRAMME,COO,SEETEC BUSINESS TECHNOLOGY CENTRE LTD,2023619932,"17,200"
Department for Work and Pensions,Employment Programmes,21-Dec-11,EP PROVIDER PAYMENT - WORK PROGRAMME,COO,SERCO LTD,2023688117,"17,200"
Department for Work and Pensions,Employment Programmes,21-Dec-11,EP PROVIDER PAYMENT - WORK PROGRAMME,COO,SERCO LTD,2023688117,"17,200"
Department for Work and Pensions,Employment Programmes,06-Dec-11,EP PROVIDER PAYMENT - WORK PROGRAMME,COO,WORKING LINKS,2023455950,"17,200"
Department for Work and Pensions,Corporate,13-Dec-11,IS/IT,CIT,HP ENTERPRISE SERVICES UK LTD,2023536459,"16,981"
Department for Work and Pensions,Corporate,30-Dec-11,ACCOMMODATION,F&C,TELEREAL TRILLIUM,2023772051,"16,977"
Department for Work and Pensions,Corporate,01-Dec-11,"OFFICE SUPPLIES, PRINTING AND PUBLICITY",PS,XEROX UK LTD 3W,2023440629,"16,890"
Department for Work and Pensions,Jobcentre Plus,16-Dec-11,EU PROGRAMMES,COO,A4ENTERPRISE LTD,2023611580,"16,853"
Department for Work and Pensions,Employment Programmes,22-Dec-11,EP PROVIDER PAYMENT - WORK PROGRAMME,COO,AVANTA ENTERPRISE LTD,2023695827,"16,800"
Department for Work and Pensions,Employment Programmes,22-Dec-11,EP PROVIDER PAYMENT - WORK PROGRAMME,COO,EOS WORKS LTD,2023697689,"16,800"
Department for Work and Pensions,Employment Programmes,14-Dec-11,EP PROVIDER PAYMENT - WORK PROGRAMME,COO,ESG HOLDINGS LIMITED,2023558432,"16,800"
Department for Work and Pensions,Employment Programmes,19-Dec-11,EP PROVIDER PAYMENT - WORK PROGRAMME,COO,G4S REGIONAL MANAGEMENT UK & I LTD,2023618704,"16,800"
Department for Work and Pensions,Employment Programmes,22-Dec-11,EP PROVIDER PAYMENT - WORK PROGRAMME,COO,INGEUS UK LTD,2023697986,"16,800"
Department for Work and Pensions,Employment Programmes,08-Dec-11,EP PROVIDER PAYMENT - WORK PROGRAMME,COO,INGEUS UK LTD,2023523508,"16,800"
Department for Work and Pensions,Employment Programmes,07-Dec-11,EP PROVIDER PAYMENT - WORK PROGRAMME,COO,INGEUS UK LTD,2023479601,"16,800"
Department for Work and Pensions,Employment Programmes,29-Dec-11,EP PROVIDER PAYMENT - WORK PROGRAMME,COO,INGEUS UK LTD,2023774131,"16,800"
Department for Work and Pensions,Employment Programmes,29-Dec-11,EP PROVIDER PAYMENT - WORK PROGRAMME,COO,MAXIMUS EMPLOYMENT UK LTD,2023774715,"16,800"
Department for Work and Pensions,Employment Programmes,22-Dec-11,EP PROVIDER PAYMENT - WORK PROGRAMME,COO,SEETEC BUSINESS TECHNOLOGY CENTRE LTD,2023699569,"16,800"
Department for Work and Pensions,Employment Programmes,15-Dec-11,EP PROVIDER PAYMENT - WORK PROGRAMME,COO,SEETEC BUSINESS TECHNOLOGY CENTRE LTD,2023609212,"16,800"
Department for Work and Pensions,Employment Programmes,09-Dec-11,EP PROVIDER PAYMENT - WORK PROGRAMME,COO,SEETEC BUSINESS TECHNOLOGY CENTRE LTD,2023528823,"16,800"
Department for Work and Pensions,Employment Programmes,09-Dec-11,EP PROVIDER PAYMENT - WORK PROGRAMME,COO,WORKING LINKS,2023528954,"16,800"
Department for Work and Pensions,Employment Programmes,14-Dec-11,EP PROVIDER PAYMENT - WORK PROGRAMME,COO,WORKING LINKS,2023603064,"16,800"
Department for Work and Pensions,Employment Programmes,29-Dec-11,EP PROVIDER PAYMENT - WORK PROGRAMME,COO,WORKING LINKS,2023775410,"16,800"
Department for Work and Pensions,Employment Programmes,09-Dec-11,EP PROVIDER PAYMENT - NON-WORK PROGRAMME,COO,JHP GROUP LTD,2023528168,"16,525"
Department for Work and Pensions,Jobcentre Plus,05-Dec-11,TELEPHONE AND POSTAGE,COO,ROYAL MAIL GROUP PLC,2023449928,"16,439"
Department for Work and Pensions,Corporate,05-Dec-11,TEMPORARY (TEMP) STAFF COSTS,Change PMU,CAPITA RESOURCING LTD,2023447042,"16,402"
Department for Work and Pensions,Employment Programmes,02-Dec-11,EP PROVIDER PAYMENT - WORK PROGRAMME,COO,AVANTA ENTERPRISE LTD,2023442741,"16,400"
Department for Work and Pensions,Employment Programmes,20-Dec-11,EP PROVIDER PAYMENT - WORK PROGRAMME,COO,AVANTA ENTERPRISE LTD,2023621723,"16,400"
Department for Work and Pensions,Employment Programmes,12-Dec-11,EP PROVIDER PAYMENT - WORK PROGRAMME,COO,BEST LTD,2023530410,"16,400"
Department for Work and Pensions,Employment Programmes,14-Dec-11,EP PROVIDER PAYMENT - WORK PROGRAMME,COO,CAREERS DEVELOPMENT GROUP,2023549933,"16,400"
Department for Work and Pensions,Employment Programmes,21-Dec-11,EP PROVIDER PAYMENT - WORK PROGRAMME,COO,ESG HOLDINGS LIMITED,2023646196,"16,400"
Department for Work and Pensions,Employment Programmes,21-Dec-11,EP PROVIDER PAYMENT - WORK PROGRAMME,COO,INGEUS UK LTD,2023651001,"16,400"
Department for Work and Pensions,Employment Programmes,23-Dec-11,EP PROVIDER PAYMENT - WORK PROGRAMME,COO,INGEUS UK LTD,2023724530,"16,400"
Department for Work and Pensions,Employment Programmes,01-Dec-11,EP PROVIDER PAYMENT - WORK PROGRAMME,COO,INGEUS UK LTD,2023438620,"16,400"
Department for Work and Pensions,Employment Programmes,29-Dec-11,EP PROVIDER PAYMENT - WORK PROGRAMME,COO,INGEUS UK LTD,2023774132,"16,400"
Department for Work and Pensions,Employment Programmes,21-Dec-11,EP PROVIDER PAYMENT - WORK PROGRAMME,COO,INGEUS UK LTD,2023651001,"16,400"
Department for Work and Pensions,Employment Programmes,19-Dec-11,EP PROVIDER PAYMENT - WORK PROGRAMME,COO,INGEUS UK LTD,2023618810,"16,400"
Department for Work and Pensions,Employment Programmes,15-Dec-11,EP PROVIDER PAYMENT - WORK PROGRAMME,COO,MAXIMUS EMPLOYMENT UK LTD,2023608661,"16,400"
Department for Work and Pensions,Employment Programmes,14-Dec-11,EP PROVIDER PAYMENT - WORK PROGRAMME,COO,NEWCASTLE COLLEGE GROUP,2023586587,"16,400"
Department for Work and Pensions,Employment Programmes,01-Dec-11,EP PROVIDER PAYMENT - WORK PROGRAMME,COO,NEWCASTLE COLLEGE GROUP,2023439699,"16,400"
Department for Work and Pensions,Employment Programmes,28-Dec-11,EP PROVIDER PAYMENT - WORK PROGRAMME,COO,PERTEMPS,2023770117,"16,400"
Department for Work and Pensions,Employment Programmes,02-Dec-11,EP PROVIDER PAYMENT - WORK PROGRAMME,COO,PERTEMPS,2023444874,"16,400"
Department for Work and Pensions,Employment Programmes,29-Dec-11,EP PROVIDER PAYMENT - WORK PROGRAMME,COO,REHAB JOBFIT,2023774985,"16,400"
Department for Work and Pensions,Employment Programmes,21-Dec-11,EP PROVIDER PAYMENT - WORK PROGRAMME,COO,SEETEC BUSINESS TECHNOLOGY CENTRE LTD,2023688113,"16,400"
Department for Work and Pensions,Employment Programmes,28-Dec-11,EP PROVIDER PAYMENT - WORK PROGRAMME,COO,WORKING LINKS,2023770738,"16,400"
Department for Work and Pensions,"Pension, Disability Carers Services",05-Dec-11,TELEPHONE AND POSTAGE,COO,ROYAL MAIL GROUP PLC,2023449928,"16,362"
Department for Work and Pensions,Employment Programmes,06-Dec-11,EP PROVIDER PAYMENT - WORK PROGRAMME,COO,G4S REGIONAL MANAGEMENT UK & I LTD,2023453758,"16,200"
Department for Work and Pensions,Employment Programmes,14-Dec-11,EP PROVIDER PAYMENT - WORK PROGRAMME,COO,INGEUS UK LTD,2023563059,"16,200"
Department for Work and Pensions,Employment Programmes,01-Dec-11,EP PROVIDER PAYMENT - WORK PROGRAMME,COO,SEETEC BUSINESS TECHNOLOGY CENTRE LTD,2023440364,"16,200"
Department for Work and Pensions,Corporate,30-Dec-11,ACCOMMODATION,F&C,TELEREAL TRILLIUM,2023772053,"16,150"
Department for Work and Pensions,"Pension, Disability Carers Services",05-Dec-11,TELEPHONE AND POSTAGE,COO,ROYAL MAIL GROUP PLC,2023449928,"16,057"
Department for Work and Pensions,Corporate,02-Dec-11,CONFERENCES AND MEETINGS,F&C,FAIRFAX SOLICITORS LTD,2023444229,"16,055"
Department for Work and Pensions,Employment Programmes,08-Dec-11,EP PROVIDER PAYMENT - WORK PROGRAMME,COO,A4E LTD,2023521581,"16,000"
Department for Work and Pensions,Employment Programmes,12-Dec-11,EP PROVIDER PAYMENT - WORK PROGRAMME,COO,AVANTA ENTERPRISE LTD,2023530368,"16,000"
Department for Work and Pensions,Employment Programmes,16-Dec-11,EP PROVIDER PAYMENT - WORK PROGRAMME,COO,AVANTA ENTERPRISE LTD,2023611618,"16,000"
Department for Work and Pensions,Employment Programmes,06-Dec-11,EP PROVIDER PAYMENT - WORK PROGRAMME,COO,BEST LTD,2023451991,"16,000"
Department for Work and Pensions,Employment Programmes,28-Dec-11,EP PROVIDER PAYMENT - WORK PROGRAMME,COO,CAREERS DEVELOPMENT GROUP,2023767652,"16,000"
Department for Work and Pensions,Employment Programmes,14-Dec-11,EP PROVIDER PAYMENT - WORK PROGRAMME,COO,EOS WORKS LTD,2023558431,"16,000"
Department for Work and Pensions,Employment Programmes,19-Dec-11,EP PROVIDER PAYMENT - WORK PROGRAMME,COO,EOS WORKS LTD,2023618600,"16,000"
Department for Work and Pensions,Employment Programmes,29-Dec-11,EP PROVIDER PAYMENT - WORK PROGRAMME,COO,G4S REGIONAL MANAGEMENT UK & I LTD,2023774038,"16,000"
Department for Work and Pensions,Employment Programmes,29-Dec-11,EP PROVIDER PAYMENT - WORK PROGRAMME,COO,G4S REGIONAL MANAGEMENT UK & I LTD,2023774038,"16,000"
Department for Work and Pensions,Employment Programmes,06-Dec-11,EP PROVIDER PAYMENT - WORK PROGRAMME,COO,INGEUS UK LTD,2023453910,"16,000"
Department for Work and Pensions,Employment Programmes,07-Dec-11,EP PROVIDER PAYMENT - WORK PROGRAMME,COO,INGEUS UK LTD,2023479601,"16,000"
Department for Work and Pensions,Employment Programmes,19-Dec-11,EP PROVIDER PAYMENT - WORK PROGRAMME,COO,INGEUS UK LTD,2023618810,"16,000"
Department for Work and Pensions,Employment Programmes,23-Dec-11,EP PROVIDER PAYMENT - WORK PROGRAMME,COO,JHP GROUP LTD,2023730292,"16,000"
Department for Work and Pensions,Employment Programmes,01-Dec-11,EP PROVIDER PAYMENT - WORK PROGRAMME,COO,NEWCASTLE COLLEGE GROUP,2023439699,"16,000"
Department for Work and Pensions,Employment Programmes,09-Dec-11,EP PROVIDER PAYMENT - WORK PROGRAMME,COO,PERTEMPS,2023528594,"16,000"
Department for Work and Pensions,Employment Programmes,09-Dec-11,EP PROVIDER PAYMENT - WORK PROGRAMME,COO,PERTEMPS,2023528594,"16,000"
Department for Work and Pensions,Employment Programmes,02-Dec-11,EP PROVIDER PAYMENT - WORK PROGRAMME,COO,REED IN PARTNERSHIP LTD,2023444946,"16,000"
Department for Work and Pensions,Employment Programmes,06-Dec-11,EP PROVIDER PAYMENT - WORK PROGRAMME,COO,SEETEC BUSINESS TECHNOLOGY CENTRE LTD,2023455670,"16,000"
Department for Work and Pensions,Employment Programmes,07-Dec-11,EP PROVIDER PAYMENT - WORK PROGRAMME,COO,SEETEC BUSINESS TECHNOLOGY CENTRE LTD,2023514707,"16,000"
Department for Work and Pensions,Employment Programmes,07-Dec-11,EP PROVIDER PAYMENT - WORK PROGRAMME,COO,SEETEC BUSINESS TECHNOLOGY CENTRE LTD,2023514707,"16,000"
Department for Work and Pensions,Employment Programmes,20-Dec-11,EP PROVIDER PAYMENT - WORK PROGRAMME,COO,SEETEC BUSINESS TECHNOLOGY CENTRE LTD,2023625377,"16,000"
Department for Work and Pensions,Employment Programmes,15-Dec-11,EP PROVIDER PAYMENT - WORK PROGRAMME,COO,WORKING LINKS,2023609399,"16,000"
Department for Work and Pensions,Employment Programmes,08-Dec-11,EP PROVIDER PAYMENT - WORK PROGRAMME,COO,WORKING LINKS,2023524907,"16,000"
Department for Work and Pensions,Employment Programmes,19-Dec-11,EP PROVIDER PAYMENT - WORK PROGRAMME,COO,WORKING LINKS,2023620137,"16,000"
Department for Work and Pensions,Employment Programmes,06-Dec-11,EP PROVIDER PAYMENT - WORK PROGRAMME,COO,WORKING LINKS,2023455950,"16,000"
Department for Work and Pensions,Employment Programmes,14-Dec-11,EP PROVIDER PAYMENT - NON-WORK PROGRAMME,COO,BEST LTD,2023545025,"15,967"
Department for Work and Pensions,Jobcentre Plus,22-Dec-11,COMPUTER SERVICES,Change PMU,ACCENTURE UK LTD,2023695794,"15,952"
Department for Work and Pensions,Corporate,19-Dec-11,TEMPORARY (TEMP) STAFF COSTS,Change PMU,CAPITA RESOURCING LTD,2023616405,"15,912"
Department for Work and Pensions,Corporate,06-Dec-11,APPS DEV,CIT,HP ENTERPRISE SERVICES UK LTD,2023453862,"15,741"
Department for Work and Pensions,"Pension, Disability Carers Services",05-Dec-11,TELEPHONE AND POSTAGE,COO,ROYAL MAIL GROUP PLC,2023449928,"15,620"
Department for Work and Pensions,Employment Programmes,22-Dec-11,EP PROVIDER PAYMENT - WORK PROGRAMME,COO,A4E LTD,2023695789,"15,600"
Department for Work and Pensions,Employment Programmes,20-Dec-11,EP PROVIDER PAYMENT - WORK PROGRAMME,COO,AVANTA ENTERPRISE LTD,2023621723,"15,600"
Department for Work and Pensions,Employment Programmes,07-Dec-11,EP PROVIDER PAYMENT - WORK PROGRAMME,COO,AVANTA ENTERPRISE LTD,2023462239,"15,600"
Department for Work and Pensions,Employment Programmes,01-Dec-11,EP PROVIDER PAYMENT - WORK PROGRAMME,COO,BEST LTD,2023436590,"15,600"
Department for Work and Pensions,Employment Programmes,28-Dec-11,EP PROVIDER PAYMENT - WORK PROGRAMME,COO,G4S REGIONAL MANAGEMENT UK & I LTD,2023769121,"15,600"
Department for Work and Pensions,Employment Programmes,16-Dec-11,EP PROVIDER PAYMENT - WORK PROGRAMME,COO,G4S REGIONAL MANAGEMENT UK & I LTD,2023613372,"15,600"
Department for Work and Pensions,Employment Programmes,23-Dec-11,EP PROVIDER PAYMENT - WORK PROGRAMME,COO,G4S REGIONAL MANAGEMENT UK & I LTD,2023722378,"15,600"
Department for Work and Pensions,Employment Programmes,21-Dec-11,EP PROVIDER PAYMENT - WORK PROGRAMME,COO,G4S REGIONAL MANAGEMENT UK & I LTD,2023648745,"15,600"
Department for Work and Pensions,Employment Programmes,07-Dec-11,EP PROVIDER PAYMENT - WORK PROGRAMME,COO,G4S REGIONAL MANAGEMENT UK & I LTD,2023477489,"15,600"
Department for Work and Pensions,Employment Programmes,22-Dec-11,EP PROVIDER PAYMENT - WORK PROGRAMME,COO,INGEUS UK LTD,2023697986,"15,600"
Department for Work and Pensions,Employment Programmes,28-Dec-11,EP PROVIDER PAYMENT - WORK PROGRAMME,COO,INGEUS UK LTD,2023769245,"15,600"
Department for Work and Pensions,Employment Programmes,15-Dec-11,EP PROVIDER PAYMENT - WORK PROGRAMME,COO,INGEUS UK LTD,2023608008,"15,600"
Department for Work and Pensions,Employment Programmes,09-Dec-11,EP PROVIDER PAYMENT - WORK PROGRAMME,COO,INGEUS UK LTD,2023528031,"15,600"
Department for Work and Pensions,Employment Programmes,06-Dec-11,EP PROVIDER PAYMENT - WORK PROGRAMME,COO,INGEUS UK LTD,2023453910,"15,600"
Department for Work and Pensions,Employment Programmes,20-Dec-11,EP PROVIDER PAYMENT - WORK PROGRAMME,COO,REED IN PARTNERSHIP LTD,2023624946,"15,600"
Department for Work and Pensions,Employment Programmes,12-Dec-11,EP PROVIDER PAYMENT - WORK PROGRAMME,COO,SEETEC BUSINESS TECHNOLOGY CENTRE LTD,2023534027,"15,600"
Department for Work and Pensions,Employment Programmes,29-Dec-11,EP PROVIDER PAYMENT - WORK PROGRAMME,COO,SEETEC BUSINESS TECHNOLOGY CENTRE LTD,2023775183,"15,600"
Department for Work and Pensions,Employment Programmes,23-Dec-11,EP PROVIDER PAYMENT - WORK PROGRAMME,COO,WORKING LINKS,2023764413,"15,600"
Department for Work and Pensions,Employment Programmes,29-Dec-11,EP PROVIDER PAYMENT - WORK PROGRAMME,COO,WORKING LINKS,2023775410,"15,600"
Department for Work and Pensions,"Pension, Disability Carers Services",05-Dec-11,TELEPHONE AND POSTAGE,COO,ROYAL MAIL GROUP PLC,2023449928,"15,547"
Department for Work and Pensions,"Pension, Disability Carers Services",05-Dec-11,TELEPHONE AND POSTAGE,COO,ROYAL MAIL GROUP PLC,2023449928,"15,379"
Department for Work and Pensions,Corporate,30-Dec-11,ACCOMMODATION,F&C,TELEREAL TRILLIUM,2023772053,"15,350"
Department for Work and Pensions,Jobcentre Plus,05-Dec-11,TELEPHONE AND POSTAGE,COO,ROYAL MAIL GROUP PLC,2023449928,"15,270"
Department for Work and Pensions,Corporate,30-Dec-11,ACCOMMODATION,F&C,TELEREAL TRILLIUM,2023772055,"15,263"
Department for Work and Pensions,Employment Programmes,28-Dec-11,EP PROVIDER PAYMENT - WORK PROGRAMME,COO,A4E LTD,2023767374,"15,200"
Department for Work and Pensions,Employment Programmes,15-Dec-11,EP PROVIDER PAYMENT - WORK PROGRAMME,COO,A4E LTD,2023606302,"15,200"
Department for Work and Pensions,Employment Programmes,21-Dec-11,EP PROVIDER PAYMENT - WORK PROGRAMME,COO,A4E LTD,2023632341,"15,200"
Department for Work and Pensions,Employment Programmes,16-Dec-11,EP PROVIDER PAYMENT - WORK PROGRAMME,COO,AVANTA ENTERPRISE LTD,2023611618,"15,200"
Department for Work and Pensions,Employment Programmes,23-Dec-11,EP PROVIDER PAYMENT - WORK PROGRAMME,COO,CAREERS DEVELOPMENT GROUP,2023712755,"15,200"
Department for Work and Pensions,Employment Programmes,01-Dec-11,EP PROVIDER PAYMENT - WORK PROGRAMME,COO,EOS WORKS LTD,2023438320,"15,200"
Department for Work and Pensions,Employment Programmes,07-Dec-11,EP PROVIDER PAYMENT - WORK PROGRAMME,COO,G4S REGIONAL MANAGEMENT UK & I LTD,2023477489,"15,200"
Department for Work and Pensions,Employment Programmes,15-Dec-11,EP PROVIDER PAYMENT - WORK PROGRAMME,COO,G4S REGIONAL MANAGEMENT UK & I LTD,2023607914,"15,200"
Department for Work and Pensions,Employment Programmes,09-Dec-11,EP PROVIDER PAYMENT - WORK PROGRAMME,COO,G4S REGIONAL MANAGEMENT UK & I LTD,2023527968,"15,200"
Department for Work and Pensions,Employment Programmes,28-Dec-11,EP PROVIDER PAYMENT - WORK PROGRAMME,COO,G4S REGIONAL MANAGEMENT UK & I LTD,2023769121,"15,200"
Department for Work and Pensions,Employment Programmes,16-Dec-11,EP PROVIDER PAYMENT - WORK PROGRAMME,COO,G4S REGIONAL MANAGEMENT UK & I LTD,2023613372,"15,200"
Department for Work and Pensions,Employment Programmes,23-Dec-11,EP PROVIDER PAYMENT - WORK PROGRAMME,COO,INGEUS UK LTD,2023724530,"15,200"
Department for Work and Pensions,Employment Programmes,01-Dec-11,EP PROVIDER PAYMENT - WORK PROGRAMME,COO,INGEUS UK LTD,2023438620,"15,200"
Department for Work and Pensions,Employment Programmes,23-Dec-11,EP PROVIDER PAYMENT - WORK PROGRAMME,COO,INGEUS UK LTD,2023724530,"15,200"
Department for Work and Pensions,Employment Programmes,20-Dec-11,EP PROVIDER PAYMENT - WORK PROGRAMME,COO,INGEUS UK LTD,2023623200,"15,200"
Department for Work and Pensions,Employment Programmes,02-Dec-11,EP PROVIDER PAYMENT - WORK PROGRAMME,COO,MAXIMUS EMPLOYMENT UK LTD,2023444757,"15,200"
Department for Work and Pensions,Employment Programmes,23-Dec-11,EP PROVIDER PAYMENT - WORK PROGRAMME,COO,NEWCASTLE COLLEGE GROUP,2023748030,"15,200"
Department for Work and Pensions,Employment Programmes,22-Dec-11,EP PROVIDER PAYMENT - WORK PROGRAMME,COO,REED IN PARTNERSHIP LTD,2023699225,"15,200"
Department for Work and Pensions,Employment Programmes,16-Dec-11,EP PROVIDER PAYMENT - WORK PROGRAMME,COO,REED IN PARTNERSHIP LTD,2023614319,"15,200"
Department for Work and Pensions,Employment Programmes,22-Dec-11,EP PROVIDER PAYMENT - WORK PROGRAMME,COO,REHAB JOBFIT,2023699227,"15,200"
Department for Work and Pensions,Employment Programmes,14-Dec-11,EP PROVIDER PAYMENT - WORK PROGRAMME,COO,SEETEC BUSINESS TECHNOLOGY CENTRE LTD,2023598788,"15,200"
Department for Work and Pensions,Employment Programmes,29-Dec-11,EP PROVIDER PAYMENT - WORK PROGRAMME,COO,SEETEC BUSINESS TECHNOLOGY CENTRE LTD,2023775183,"15,200"
Department for Work and Pensions,Employment Programmes,06-Dec-11,EP PROVIDER PAYMENT - WORK PROGRAMME,COO,SEETEC BUSINESS TECHNOLOGY CENTRE LTD,2023455670,"15,200"
Department for Work and Pensions,Employment Programmes,22-Dec-11,EP PROVIDER PAYMENT - WORK PROGRAMME,COO,SERCO LTD,2023699572,"15,200"
Department for Work and Pensions,Employment Programmes,06-Dec-11,EP PROVIDER PAYMENT - WORK PROGRAMME,COO,SERCO LTD,2023455674,"15,200"
Department for Work and Pensions,Employment Programmes,20-Dec-11,EP PROVIDER PAYMENT - WORK PROGRAMME,COO,SERCO LTD,2023625381,"15,200"
Department for Work and Pensions,Employment Programmes,14-Dec-11,EP PROVIDER PAYMENT - WORK PROGRAMME,COO,WORKING LINKS,2023603064,"15,200"
Department for Work and Pensions,Employment Programmes,23-Dec-11,EP PROVIDER PAYMENT - WORK PROGRAMME,COO,WORKING LINKS,2023764413,"15,200"
Department for Work and Pensions,Employment Programmes,09-Dec-11,EP PROVIDER PAYMENT - NON-WORK PROGRAMME,COO,JHP GROUP LTD,2023528168,"15,166"
Department for Work and Pensions,Corporate,20-Dec-11,PROFESSIONAL FEES,F&C,DRIVERS JONAS,2023622679,"15,090"
Department for Work and Pensions,Jobcentre Plus,05-Dec-11,TELEPHONE AND POSTAGE,COO,ROYAL MAIL GROUP PLC,2023449928,"15,056"
Department for Work and Pensions,Jobcentre Plus,12-Dec-11,PROFESSIONAL FEES,COO,THE BIG WORD INTERPRETING SERVICES LTD,2023534166,"15,046"
Department for Work and Pensions,Employment Programmes,23-Dec-11,EP PROVIDER PAYMENT - WORK PROGRAMME,COO,A4E LTD,2023706813,"15,000"
Department for Work and Pensions,Employment Programmes,22-Dec-11,EP PROVIDER PAYMENT - WORK PROGRAMME,COO,A4E LTD,2023695789,"15,000"
Department for Work and Pensions,Employment Programmes,06-Dec-11,EP PROVIDER PAYMENT - WORK PROGRAMME,COO,INGEUS UK LTD,2023453910,"15,000"
Department for Work and Pensions,Employment Programmes,29-Dec-11,EP PROVIDER PAYMENT - WORK PROGRAMME,COO,TNG WORKZONE LTD,2023775301,"14,820"
Department for Work and Pensions,"Pension, Disability Carers Services",06-Dec-11,APPS DEV,COO,HP ENTERPRISE SERVICES UK LTD,2023453862,"14,813"
Department for Work and Pensions,Employment Programmes,16-Dec-11,EP PROVIDER PAYMENT - WORK PROGRAMME,COO,A4E LTD,2023611578,"14,800"
Department for Work and Pensions,Employment Programmes,06-Dec-11,EP PROVIDER PAYMENT - WORK PROGRAMME,COO,AVANTA ENTERPRISE LTD,2023451913,"14,800"
Department for Work and Pensions,Employment Programmes,02-Dec-11,EP PROVIDER PAYMENT - WORK PROGRAMME,COO,BEST LTD,2023442777,"14,800"
Department for Work and Pensions,Employment Programmes,20-Dec-11,EP PROVIDER PAYMENT - WORK PROGRAMME,COO,BEST LTD,2023621825,"14,800"
Department for Work and Pensions,Employment Programmes,12-Dec-11,EP PROVIDER PAYMENT - WORK PROGRAMME,COO,CAREERS DEVELOPMENT GROUP,2023530561,"14,800"
Department for Work and Pensions,Employment Programmes,19-Dec-11,EP PROVIDER PAYMENT - WORK PROGRAMME,COO,CAREERS DEVELOPMENT GROUP,2023616409,"14,800"
Department for Work and Pensions,Employment Programmes,20-Dec-11,EP PROVIDER PAYMENT - WORK PROGRAMME,COO,ESG HOLDINGS LIMITED,2023622815,"14,800"
Department for Work and Pensions,Employment Programmes,21-Dec-11,EP PROVIDER PAYMENT - WORK PROGRAMME,COO,G4S REGIONAL MANAGEMENT UK & I LTD,2023648745,"14,800"
Department for Work and Pensions,Employment Programmes,01-Dec-11,EP PROVIDER PAYMENT - WORK PROGRAMME,COO,INGEUS UK LTD,2023438620,"14,800"
Department for Work and Pensions,Employment Programmes,12-Dec-11,EP PROVIDER PAYMENT - WORK PROGRAMME,COO,INGEUS UK LTD,2023532883,"14,800"
Department for Work and Pensions,Employment Programmes,09-Dec-11,EP PROVIDER PAYMENT - WORK PROGRAMME,COO,INGEUS UK LTD,2023528031,"14,800"
Department for Work and Pensions,Employment Programmes,08-Dec-11,EP PROVIDER PAYMENT - WORK PROGRAMME,COO,MAXIMUS EMPLOYMENT UK LTD,2023524178,"14,800"
Department for Work and Pensions,Employment Programmes,02-Dec-11,EP PROVIDER PAYMENT - WORK PROGRAMME,COO,MAXIMUS EMPLOYMENT UK LTD,2023444757,"14,800"
Department for Work and Pensions,Employment Programmes,29-Dec-11,EP PROVIDER PAYMENT - WORK PROGRAMME,COO,NEWCASTLE COLLEGE GROUP,2023774796,"14,800"
Department for Work and Pensions,Employment Programmes,21-Dec-11,EP PROVIDER PAYMENT - WORK PROGRAMME,COO,PERTEMPS,2023677392,"14,800"
Department for Work and Pensions,Employment Programmes,06-Dec-11,EP PROVIDER PAYMENT - WORK PROGRAMME,COO,REHAB JOBFIT,2023455306,"14,800"
Department for Work and Pensions,Employment Programmes,14-Dec-11,EP PROVIDER PAYMENT - WORK PROGRAMME,COO,SERCO LTD,2023598791,"14,800"
Department for Work and Pensions,Employment Programmes,16-Dec-11,EP PROVIDER PAYMENT - WORK PROGRAMME,COO,SERCO LTD,2023614496,"14,800"
Department for Work and Pensions,Employment Programmes,19-Dec-11,EP PROVIDER PAYMENT - WORK PROGRAMME,COO,WORKING LINKS,2023620137,"14,800"
Department for Work and Pensions,Employment Programmes,14-Dec-11,EP PROVIDER PAYMENT - WORK PROGRAMME,COO,WORKING LINKS,2023603064,"14,800"
Department for Work and Pensions,Jobcentre Plus,19-Dec-11,EU PROGRAMMES,COO,BUSINESS ENTERPRISE SUPPORT LTD,2023616283,"14,783"
Department for Work and Pensions,Corporate,21-Dec-11,PRINTING STATIONERY IT CONSUMABLES,F&C,XEROX UK LTD 3W,2023692535,"14,689"
Department for Work and Pensions,Employment Programmes,23-Dec-11,EP PROVIDER PAYMENT - WORK PROGRAMME,COO,INGEUS UK LTD,2023724530,"14,655"
Department for Work and Pensions,Corporate,13-Dec-11,APPS DEV,Change PMU,HP ENTERPRISE SERVICES UK LTD,2023536459,"14,627"
Department for Work and Pensions,Corporate,13-Dec-11,APPS DEV,CIT,HP ENTERPRISE SERVICES UK LTD,2023536459,"14,626"
Department for Work and Pensions,Corporate,15-Dec-11,ACCOMMODATION,F&C,TELEREAL TRILLIUM,2023609312,"14,488"
Department for Work and Pensions,Jobcentre Plus,12-Dec-11,PROFESSIONAL FEES,COO,THE BIG WORD INTERPRETING SERVICES LTD,2023534166,"14,460"
Department for Work and Pensions,Employment Programmes,21-Dec-11,EP PROVIDER PAYMENT - WORK PROGRAMME,COO,A4E LTD,2023632341,"14,400"
Department for Work and Pensions,Employment Programmes,29-Dec-11,EP PROVIDER PAYMENT - WORK PROGRAMME,COO,AVANTA ENTERPRISE LTD,2023772240,"14,400"
Department for Work and Pensions,Employment Programmes,29-Dec-11,EP PROVIDER PAYMENT - WORK PROGRAMME,COO,AVANTA ENTERPRISE LTD,2023772240,"14,400"
Department for Work and Pensions,Employment Programmes,23-Dec-11,EP PROVIDER PAYMENT - WORK PROGRAMME,COO,AVANTA ENTERPRISE LTD,2023706853,"14,400"
Department for Work and Pensions,Employment Programmes,23-Dec-11,EP PROVIDER PAYMENT - WORK PROGRAMME,COO,AVANTA ENTERPRISE LTD,2023706853,"14,400"
Department for Work and Pensions,Employment Programmes,15-Dec-11,EP PROVIDER PAYMENT - WORK PROGRAMME,COO,AVANTA ENTERPRISE LTD,2023606340,"14,400"
Department for Work and Pensions,Employment Programmes,19-Dec-11,EP PROVIDER PAYMENT - WORK PROGRAMME,COO,ESG HOLDINGS LIMITED,2023618604,"14,400"
Department for Work and Pensions,Employment Programmes,12-Dec-11,EP PROVIDER PAYMENT - WORK PROGRAMME,COO,INGEUS UK LTD,2023532883,"14,400"
Department for Work and Pensions,Employment Programmes,20-Dec-11,EP PROVIDER PAYMENT - WORK PROGRAMME,COO,INGEUS UK LTD,2023623200,"14,400"
Department for Work and Pensions,Employment Programmes,29-Dec-11,EP PROVIDER PAYMENT - WORK PROGRAMME,COO,INGEUS UK LTD,2023774131,"14,400"
Department for Work and Pensions,Employment Programmes,29-Dec-11,EP PROVIDER PAYMENT - WORK PROGRAMME,COO,INGEUS UK LTD,2023774131,"14,400"
Department for Work and Pensions,Employment Programmes,08-Dec-11,EP PROVIDER PAYMENT - WORK PROGRAMME,COO,JHP GROUP LTD,2023523713,"14,400"
Department for Work and Pensions,Employment Programmes,15-Dec-11,EP PROVIDER PAYMENT - WORK PROGRAMME,COO,JHP GROUP LTD,2023608217,"14,400"
Department for Work and Pensions,Employment Programmes,28-Dec-11,EP PROVIDER PAYMENT - WORK PROGRAMME,COO,MAXIMUS EMPLOYMENT UK LTD,2023769913,"14,400"
Department for Work and Pensions,Employment Programmes,15-Dec-11,EP PROVIDER PAYMENT - WORK PROGRAMME,COO,MAXIMUS EMPLOYMENT UK LTD,2023608661,"14,400"
Department for Work and Pensions,Employment Programmes,19-Dec-11,EP PROVIDER PAYMENT - WORK PROGRAMME,COO,NEWCASTLE COLLEGE GROUP,2023619486,"14,400"
Department for Work and Pensions,Employment Programmes,21-Dec-11,EP PROVIDER PAYMENT - WORK PROGRAMME,COO,NEWCASTLE COLLEGE GROUP,2023675410,"14,400"
Department for Work and Pensions,Employment Programmes,23-Dec-11,EP PROVIDER PAYMENT - WORK PROGRAMME,COO,SERCO LTD,2023760177,"14,400"
Department for Work and Pensions,Employment Programmes,02-Dec-11,EP PROVIDER PAYMENT - WORK PROGRAMME,COO,WORKING LINKS,2023445223,"14,400"
Department for Work and Pensions,Corporate,13-Dec-11,APPS DEV,CIT,HP ENTERPRISE SERVICES UK LTD,2023536459,"14,190"
Department for Work and Pensions,Corporate,29-Dec-11,COMPUTER SERVICES,Change PMU,HP ENTERPRISE SERVICES UK LTD,2023774101,"14,149"
Department for Work and Pensions,Corporate,05-Dec-11,COMPUTER SERVICES,Change PMU,HP ENTERPRISE SERVICES UK LTD,2023449052,"14,149"
Department for Work and Pensions,Employment Programmes,02-Dec-11,EP PROVIDER PAYMENT - NON-WORK PROGRAMME,COO,WORKING LINKS,2023445223,"14,102"
Department for Work and Pensions,Employment Programmes,08-Dec-11,ACCESS TO WORK,COO,AME DISABILITY CONSULTANT,2023521609,"14,046"
Department for Work and Pensions,Employment Programmes,22-Dec-11,EP PROVIDER PAYMENT - WORK PROGRAMME,COO,A4E LTD,2023695789,"14,000"
Department for Work and Pensions,Employment Programmes,09-Dec-11,EP PROVIDER PAYMENT - WORK PROGRAMME,COO,AVANTA ENTERPRISE LTD,2023526564,"14,000"
Department for Work and Pensions,Employment Programmes,16-Dec-11,EP PROVIDER PAYMENT - WORK PROGRAMME,COO,AVANTA ENTERPRISE LTD,2023611618,"14,000"
Department for Work and Pensions,Employment Programmes,06-Dec-11,EP PROVIDER PAYMENT - WORK PROGRAMME,COO,AVANTA ENTERPRISE LTD,2023451913,"14,000"
Department for Work and Pensions,Employment Programmes,29-Dec-11,EP PROVIDER PAYMENT - WORK PROGRAMME,COO,AVANTA ENTERPRISE LTD,2023772240,"14,000"
Department for Work and Pensions,Employment Programmes,06-Dec-11,EP PROVIDER PAYMENT - WORK PROGRAMME,COO,ESG HOLDINGS LIMITED,2023453601,"14,000"
Department for Work and Pensions,Employment Programmes,23-Dec-11,EP PROVIDER PAYMENT - WORK PROGRAMME,COO,G4S REGIONAL MANAGEMENT UK & I LTD,2023722378,"14,000"
Department for Work and Pensions,Employment Programmes,22-Dec-11,EP PROVIDER PAYMENT - WORK PROGRAMME,COO,G4S REGIONAL MANAGEMENT UK & I LTD,2023697845,"14,000"
Department for Work and Pensions,Employment Programmes,07-Dec-11,EP PROVIDER PAYMENT - WORK PROGRAMME,COO,G4S REGIONAL MANAGEMENT UK & I LTD,2023477489,"14,000"
Department for Work and Pensions,Employment Programmes,14-Dec-11,EP PROVIDER PAYMENT - WORK PROGRAMME,COO,INGEUS UK LTD,2023563059,"14,000"
Department for Work and Pensions,Employment Programmes,23-Dec-11,EP PROVIDER PAYMENT - WORK PROGRAMME,COO,INGEUS UK LTD,2023724530,"14,000"
Department for Work and Pensions,Employment Programmes,29-Dec-11,EP PROVIDER PAYMENT - WORK PROGRAMME,COO,INGEUS UK LTD,2023774132,"14,000"
Department for Work and Pensions,Employment Programmes,22-Dec-11,EP PROVIDER PAYMENT - WORK PROGRAMME,COO,JHP GROUP LTD,2023698243,"14,000"
Department for Work and Pensions,Employment Programmes,22-Dec-11,EP PROVIDER PAYMENT - WORK PROGRAMME,COO,MAXIMUS EMPLOYMENT UK LTD,2023698774,"14,000"
Department for Work and Pensions,Employment Programmes,02-Dec-11,EP PROVIDER PAYMENT - WORK PROGRAMME,COO,NEWCASTLE COLLEGE GROUP,2023444826,"14,000"
Department for Work and Pensions,Employment Programmes,15-Dec-11,EP PROVIDER PAYMENT - WORK PROGRAMME,COO,SEETEC BUSINESS TECHNOLOGY CENTRE LTD,2023609212,"14,000"
Department for Work and Pensions,Employment Programmes,02-Dec-11,EP PROVIDER PAYMENT - WORK PROGRAMME,COO,SEETEC BUSINESS TECHNOLOGY CENTRE LTD,2023445084,"14,000"
Department for Work and Pensions,Employment Programmes,12-Dec-11,EP PROVIDER PAYMENT - WORK PROGRAMME,COO,SERCO LTD,2023534034,"14,000"
Department for Work and Pensions,Employment Programmes,15-Dec-11,EP PROVIDER PAYMENT - WORK PROGRAMME,COO,SERCO LTD,2023609213,"14,000"
Department for Work and Pensions,Employment Programmes,02-Dec-11,EP PROVIDER PAYMENT - WORK PROGRAMME,COO,WORKING LINKS,2023445223,"14,000"
Department for Work and Pensions,Jobcentre Plus,19-Dec-11,EU PROGRAMMES,COO,BUSINESS ENTERPRISE SUPPORT LTD,2023616283,"13,946"
Department for Work and Pensions,Housing Benefits,14-Dec-11,Housing Benefit Admin,COO,RUTLAND COUNTY COUNCIL,2023606017,"13,859"
Department for Work and Pensions,Jobcentre Plus,05-Dec-11,TELEPHONE AND POSTAGE,COO,ROYAL MAIL GROUP PLC,2023449928,"13,852"
Department for Work and Pensions,Employment Programmes,22-Dec-11,EP PROVIDER PAYMENT - NON-WORK PROGRAMME,COO,JHP GROUP LTD,2023698243,"13,828"
Department for Work and Pensions,Corporate,05-Dec-11,TELEPHONE AND POSTAGE,F&C,ROYAL MAIL GROUP PLC,2023449928,"13,809"
Department for Work and Pensions,Employment Programmes,06-Dec-11,EP PROVIDER PAYMENT - WORK PROGRAMME,COO,A4E LTD,2023451887,"13,800"
Department for Work and Pensions,Employment Programmes,21-Dec-11,EP PROVIDER PAYMENT - WORK PROGRAMME,COO,A4E LTD,2023632341,"13,800"
Department for Work and Pensions,Employment Programmes,29-Dec-11,EP PROVIDER PAYMENT - WORK PROGRAMME,COO,AVANTA ENTERPRISE LTD,2023772240,"13,800"
Department for Work and Pensions,Employment Programmes,14-Dec-11,EP PROVIDER PAYMENT - WORK PROGRAMME,COO,INGEUS UK LTD,2023563059,"13,800"
Department for Work and Pensions,Jobcentre Plus,12-Dec-11,PROFESSIONAL FEES,COO,THE BIG WORD INTERPRETING SERVICES LTD,2023534166,"13,741"
Department for Work and Pensions,"Pension, Disability Carers Services",13-Dec-11,APPS DEV,CIT,HP ENTERPRISE SERVICES UK LTD,2023536459,"13,686"
Department for Work and Pensions,Corporate,29-Dec-11,COMPUTER SERVICES,CIT,ATOS ORIGIN IT SERVICES UK LTD,2023772239,"13,682"
Department for Work and Pensions,Employment Programmes,21-Dec-11,EP PROVIDER PAYMENT - WORK PROGRAMME,COO,A4E LTD,2023632341,"13,600"
Department for Work and Pensions,Employment Programmes,07-Dec-11,EP PROVIDER PAYMENT - WORK PROGRAMME,COO,A4E LTD,2023462203,"13,600"
Department for Work and Pensions,Employment Programmes,20-Dec-11,EP PROVIDER PAYMENT - WORK PROGRAMME,COO,AVANTA ENTERPRISE LTD,2023621723,"13,600"
Department for Work and Pensions,Employment Programmes,15-Dec-11,EP PROVIDER PAYMENT - WORK PROGRAMME,COO,BEST LTD,2023606387,"13,600"
Department for Work and Pensions,Employment Programmes,16-Dec-11,EP PROVIDER PAYMENT - WORK PROGRAMME,COO,BEST LTD,2023611656,"13,600"
Department for Work and Pensions,Employment Programmes,28-Dec-11,EP PROVIDER PAYMENT - WORK PROGRAMME,COO,EOS WORKS LTD,2023769012,"13,600"
Department for Work and Pensions,Employment Programmes,23-Dec-11,EP PROVIDER PAYMENT - WORK PROGRAMME,COO,EOS WORKS LTD,2023719938,"13,600"
Department for Work and Pensions,Employment Programmes,23-Dec-11,EP PROVIDER PAYMENT - WORK PROGRAMME,COO,ESG HOLDINGS LIMITED,2023719940,"13,600"
Department for Work and Pensions,Employment Programmes,29-Dec-11,EP PROVIDER PAYMENT - WORK PROGRAMME,COO,G4S REGIONAL MANAGEMENT UK & I LTD,2023774038,"13,600"
Department for Work and Pensions,Employment Programmes,20-Dec-11,EP PROVIDER PAYMENT - WORK PROGRAMME,COO,INGEUS UK LTD,2023623200,"13,600"
Department for Work and Pensions,Employment Programmes,20-Dec-11,EP PROVIDER PAYMENT - WORK PROGRAMME,COO,INGEUS UK LTD,2023623200,"13,600"
Department for Work and Pensions,Employment Programmes,20-Dec-11,EP PROVIDER PAYMENT - WORK PROGRAMME,COO,INGEUS UK LTD,2023623200,"13,600"
Department for Work and Pensions,Employment Programmes,28-Dec-11,EP PROVIDER PAYMENT - WORK PROGRAMME,COO,NEWCASTLE COLLEGE GROUP,2023769997,"13,600"
Department for Work and Pensions,Employment Programmes,16-Dec-11,EP PROVIDER PAYMENT - WORK PROGRAMME,COO,PERTEMPS,2023614209,"13,600"
Department for Work and Pensions,Employment Programmes,21-Dec-11,EP PROVIDER PAYMENT - WORK PROGRAMME,COO,REED IN PARTNERSHIP LTD,2023680221,"13,600"
Department for Work and Pensions,Employment Programmes,15-Dec-11,EP PROVIDER PAYMENT - WORK PROGRAMME,COO,SEETEC BUSINESS TECHNOLOGY CENTRE LTD,2023609212,"13,600"
Department for Work and Pensions,Employment Programmes,14-Dec-11,EP PROVIDER PAYMENT - WORK PROGRAMME,COO,SERCO LTD,2023598791,"13,600"
Department for Work and Pensions,Employment Programmes,28-Dec-11,EP PROVIDER PAYMENT - WORK PROGRAMME,COO,WORKING LINKS,2023770738,"13,600"
Department for Work and Pensions,Employment Programmes,12-Dec-11,EP PROVIDER PAYMENT - WORK PROGRAMME,COO,WORKING LINKS,2023534263,"13,600"
Department for Work and Pensions,Employment Programmes,08-Dec-11,ACCESS TO WORK,COO,AME DISABILITY CONSULTANT,2023521609,"13,532"
Department for Work and Pensions,Employment Programmes,28-Dec-11,EP PROVIDER PAYMENT - NON-WORK PROGRAMME,COO,A4E LTD,2023767374,"13,333"
Department for Work and Pensions,Jobcentre Plus,12-Dec-11,PROFESSIONAL FEES,COO,THE BIG WORD INTERPRETING SERVICES LTD,2023534166,"13,281"
Department for Work and Pensions,Employment Programmes,14-Dec-11,EP PROVIDER PAYMENT - WORK PROGRAMME,COO,INGEUS UK LTD,2023563059,"13,260"
Department for Work and Pensions,Employment Programmes,19-Dec-11,EP PROVIDER PAYMENT - WORK PROGRAMME,COO,INGEUS UK LTD,2023618810,"13,260"
Department for Work and Pensions,Employment Programmes,06-Dec-11,EP PROVIDER PAYMENT - NON-WORK PROGRAMME,COO,INGEUS UK LTD,2023453910,"13,225"
Department for Work and Pensions,"Pension, Disability Carers Services",05-Dec-11,TELEPHONE AND POSTAGE,COO,ROYAL MAIL GROUP PLC,2023449928,"13,201"
Department for Work and Pensions,Employment Programmes,01-Dec-11,EP PROVIDER PAYMENT - WORK PROGRAMME,COO,AVANTA ENTERPRISE LTD,2023436517,"13,200"
Department for Work and Pensions,Employment Programmes,21-Dec-11,EP PROVIDER PAYMENT - WORK PROGRAMME,COO,CAREERS DEVELOPMENT GROUP,2023638542,"13,200"
Department for Work and Pensions,Employment Programmes,08-Dec-11,EP PROVIDER PAYMENT - WORK PROGRAMME,COO,EOS WORKS LTD,2023523297,"13,200"
Department for Work and Pensions,Employment Programmes,28-Dec-11,EP PROVIDER PAYMENT - WORK PROGRAMME,COO,ESG HOLDINGS LIMITED,2023769014,"13,200"
Department for Work and Pensions,Employment Programmes,21-Dec-11,EP PROVIDER PAYMENT - WORK PROGRAMME,COO,ESG HOLDINGS LIMITED,2023646196,"13,200"
Department for Work and Pensions,Employment Programmes,06-Dec-11,EP PROVIDER PAYMENT - WORK PROGRAMME,COO,G4S REGIONAL MANAGEMENT UK & I LTD,2023453758,"13,200"
Department for Work and Pensions,Employment Programmes,20-Dec-11,EP PROVIDER PAYMENT - WORK PROGRAMME,COO,G4S REGIONAL MANAGEMENT UK & I LTD,2023623035,"13,200"
Department for Work and Pensions,Employment Programmes,07-Dec-11,EP PROVIDER PAYMENT - WORK PROGRAMME,COO,G4S REGIONAL MANAGEMENT UK & I LTD,2023477489,"13,200"
Department for Work and Pensions,Employment Programmes,14-Dec-11,EP PROVIDER PAYMENT - WORK PROGRAMME,COO,INGEUS UK LTD,2023563059,"13,200"
Department for Work and Pensions,Employment Programmes,06-Dec-11,EP PROVIDER PAYMENT - WORK PROGRAMME,COO,INGEUS UK LTD,2023453910,"13,200"
Department for Work and Pensions,Employment Programmes,19-Dec-11,EP PROVIDER PAYMENT - WORK PROGRAMME,COO,INGEUS UK LTD,2023618810,"13,200"
Department for Work and Pensions,Employment Programmes,06-Dec-11,EP PROVIDER PAYMENT - WORK PROGRAMME,COO,INGEUS UK LTD,2023453910,"13,200"
